date,department/service,beneficiary,amount,summary of purpose,category,transaction number,SAP vendor number
01.12.2022,ASSET MANAGEMENT,GAS ADVISORY SERVICES LIMITED,"1,229.77",ENG CONTRACTS (NORTH),HEATING -DISTRICT SERVICE (CONTRACT SUM),5902553797,1000064649
01.12.2022,ASSET MANAGEMENT HGF,ROYAL MAIL GROUP LTD,"1,235.31",160 TOOLEY ST.,POSTAGES,5902553770,1000061535
01.12.2022,CENTRAL FUNCTIONS,BRESLIN CONSTRUCTION LTD,950.00,COMMERCIAL PROPERTIES,BUILDING R&M,2103591450,3000001948
01.12.2022,CENTRAL FUNCTIONS,ASHFORDS LLP OFFICE ACCOUNT,"4,318.20",TECHNICAL SUPPORT,SOLICITORS FRAMEWORK LEGAL SERVICES,5902554306,1000082695
01.12.2022,CHILDREN AND FAMILIES,PARENTS AND CHILDREN TOGETHER,300.00,NEW ASF,EXTERNAL AGENCIES AND BODIES,5902554356,1000068128
01.12.2022,CHILDREN AND FAMILIES,PARENTS AND CHILDREN TOGETHER,450.00,NEW ASF,EXTERNAL AGENCIES AND BODIES,5902554355,1000068128
01.12.2022,CHILDREN AND FAMILIES,FOCUS MENTAL HEALTH LTD,"2,500.00",NEW ASF,EXTERNAL AGENCIES AND BODIES,5902553885,1000087145
01.12.2022,CHILDREN AND FAMILIES,CITY MISSION CHILD CONTACT CENTRE,475.00,TEAM D,OTHER PAYMENTS FOR CLIENTS,5902553911,1000088578
01.12.2022,COMMUNITIES,EMS EVENTS LTD,655.00,MAYORAL SUPPORT,OP LEASE/HIRE CHARGES:PLANT/EQUIP/FURNIT,5902553733,1000057494
01.12.2022,COMMUNITIES,EMS EVENTS LTD,"1,142.60",MAYORAL SUPPORT,OP LEASE/HIRE CHARGES:PLANT/EQUIP/FURNIT,5902553734,1000057494
01.12.2022,COMMUNITIES,REDACTED PERSONAL DATA,350.00,UKRAINIAN PROGRAMME,GRANTS,REDACTED,REDACTED
01.12.2022,COMMUNITIES,REDACTED PERSONAL DATA,350.00,UKRAINIAN PROGRAMME,GRANTS,REDACTED,REDACTED
01.12.2022,COMMUNITIES,REDACTED PERSONAL DATA,350.00,UKRAINIAN PROGRAMME,GRANTS,REDACTED,REDACTED
01.12.2022,COMMUNITIES,REDACTED PERSONAL DATA,350.00,UKRAINIAN PROGRAMME,GRANTS,REDACTED,REDACTED
01.12.2022,COMMUNITIES,REDACTED PERSONAL DATA,350.00,UKRAINIAN PROGRAMME,GRANTS,REDACTED,REDACTED
01.12.2022,DSG,PROSPERO RECRUITMENT LTD,"7,914.38",ALTERNATIVE PROVISION,EXTERNAL AGENCIES AND BODIES,5902553789,1000082492
01.12.2022,EDUCATION,PULSE HEALTHCARE LTD,317.20,SCH TRANS � TRAVEL,AGENCY STAFF,5902553751,1000035063
01.12.2022,ENVIRONMENT AND LEISURE,ASKEWS & HOLTS LIBRARY SERVICES LTD,"4,014.13",CAPITAL PS (LEISURE),CAPITAL GRANTS,5902553904,1494168
01.12.2022,ENVIRONMENT AND LEISURE,CROWN OIL LTD,"1,351.03",SANDGATE STREET,VEHICLE FUEL,5902553899,1000081749
01.12.2022,F & C S EXCLUDING CORPORATE BUDGETS,NEC SOFTWARE SOLUTIONS UK LTD,"9,000.00",ADMINISTRATIVE SUPPORT,POSTAGES,5902554147,1000087043
01.12.2022,F & C S EXCLUDING CORPORATE BUDGETS,NEC SOFTWARE SOLUTIONS UK LTD,"30,000.00",ADMINISTRATIVE SUPPORT,POSTAGES,5902554147,1000087043
01.12.2022,HOUSING HRA,POTTER RAPER LTD,"11,411.83",CAPITAL PS (HRA),CONSTRUCTION FEES - EMPLOYERS AGENT,5902553625,1009369
01.12.2022,HOUSING HRA,CALFORD SEADEN LLP,630.00,CAPITAL PS (HRA),CONSTRUCTION FEES  - EXTERNAL,5902553996,1061592
01.12.2022,HOUSING HRA,CALFORD SEADEN LLP,"1,600.00",CAPITAL PS (HRA),CONSTRUCTION FEES  - EXTERNAL,5902554313,1061592
01.12.2022,HOUSING HRA,STANNAH LIFT SERVICES LTD,"2,499.00",CAPITAL PS (HRA),UTILITIES INSTALLATION,5902553704,1063595
01.12.2022,HOUSING HRA,A & E ELKINS LTD,"218,968.46",CAPITAL PS (HRA),CONSTRUCTION MAIN CONTRACT -CERTIFICATED,2103591257,4012501
01.12.2022,HOUSING HRA,XC02 ENERGY LTD,"9,960.00",CAPITAL PS (HRA),CONSTRUCTION FEES  - EXTERNAL,5902554455,1000050094
01.12.2022,HOUSING HRA,SHERGROUP LTD,"1,680.00",CAPITAL PS (HRA),CONSTRUCTION FEES  - EXTERNAL,5902553970,1000087977
01.12.2022,LEISURE DIRECTORATE,COMPLETE ECOLOGY LIMITED,"3,760.00",SOUTHWARK AREA TEAM,GROUNDS MAINTENANCE,5902553667,1000062303
01.12.2022,LEISURE DIRECTORATE,ASKEWS & HOLTS LIBRARY SERVICES LTD,"6,616.62",STOCK SERVICES,BOOKS & PUBLICATIONS,5902553903,1494168
01.12.2022,LEISURE DIRECTORATE,TAPEMASTER EUROPE LTD,"1,640.00",STOCK SERVICES,STATIONERY,5902554644,1000087254
01.12.2022,PUBLIC HEALTH,BURGESS SPORTS,"7,424.00",HOLIDAY ACTIVITIES & FOOD,EXTERNAL AGENCIES AND BODIES,5902553677,1000069532
01.12.2022,PUBLIC HEALTH,PRO TOUCH SA,"6,496.00",HOLIDAY ACTIVITIES & FOOD,EXTERNAL AGENCIES AND BODIES,5902553651,1000074843
01.12.2022,PUBLIC HEALTH,MM E&C LTD,"1,392.00",HOLIDAY ACTIVITIES & FOOD,EXTERNAL AGENCIES AND BODIES,5902553983,1000082235
01.12.2022,PUBLIC HEALTH,FAST58,"4,640.00",HOLIDAY ACTIVITIES & FOOD,EXTERNAL AGENCIES AND BODIES,5902553692,1000084542
01.12.2022,PUBLIC HEALTH,IVYDALE PRIMARY SCHOOL,"3,341.00",HOLIDAY ACTIVITIES & FOOD,EXTERNAL AGENCIES AND BODIES,5902553653,5001000038
01.12.2022,SBS OPERATIONS,AKW MEDI-CARE LTD,291.85,BERMONDSEY DD,MATERIALS,5902554724,1000047103
02.12.2022,ADULT SOCIAL CARE,COOLE BEVIS LLP,"81,818.03",APPOINTEESHIPS,OTHER PAYMENTS FOR CLIENTS,5902554880,1000089128
02.12.2022,ADULT SOCIAL CARE,REDACTED PERSONAL DATA,279.85,APPOINTEESHIPS,OTHER PAYMENTS FOR CLIENTS,REDACTED,REDACTED
02.12.2022,ADULT SOCIAL CARE,HUNTERSJOY LTD,"1,340.00",ASW - PROFESSIONAL DEVELOPMENT,CONSULTANTS SERVICES,5902553886,1000077343
02.12.2022,ADULT SOCIAL CARE,SUPREME CARE SERVICES LTD,"1,769.28",CARERS SERVICES,PLACEMENTS - RESPITE,2103594372,1000059416
02.12.2022,ADULT SOCIAL CARE,WESTCOMBE PARK NURSING HOME,"2,676.18",DISCHARGE TO ACCESS,NURSING PLACEMENTS FEES,2103594416,1792988
02.12.2022,ADULT SOCIAL CARE,QUEENS OAK CARE CENTRE,"-18,228.57",DISCHARGE TO ACCESS,NURSING PLACEMENTS FEES,2103582228,1000049621
02.12.2022,ADULT SOCIAL CARE,QUEENS OAK CARE CENTRE,-628.57,DISCHARGE TO ACCESS,NURSING PLACEMENTS FEES,2103589196,1000049621
02.12.2022,ADULT SOCIAL CARE,QUEENS OAK CARE CENTRE,"1,728.57",DISCHARGE TO ACCESS,RESIDENTIAL CARE,2103594405,1000049621
02.12.2022,ADULT SOCIAL CARE,HC-ONE LTD (TOWER BRIDGE CARE HOME),"2,367.86",DISCHARGE TO ACCESS,NURSING PLACEMENTS FEES,2103594391,1000067670
02.12.2022,ADULT SOCIAL CARE,COUNTRY COURT CARE HOMES 2 LTD,"-3,147.92",DISCHARGE TO ACCESS,NURSING PLACEMENTS FEES,2103594430,1000080172
02.12.2022,ADULT SOCIAL CARE,LONDON CARE LTD,"47,106.85",EXTRA CARE CONTRACT,HOMECARE - C&V,5902554886,1000003398
02.12.2022,ADULT SOCIAL CARE,SUPREME CARE SERVICES LTD,442.32,LD LTS 18-64,HOMECARE - C&V,2103594365,1000059416
02.12.2022,ADULT SOCIAL CARE,SUPREME CARE SERVICES LTD,490.46,LD LTS 18-64,HOMECARE - C&V,2103593957,1000059416
02.12.2022,ADULT SOCIAL CARE,SUPREME CARE SERVICES LTD,"1,105.82",LD LTS 18-64,HOMECARE - C&V,2103594349,1000059416
02.12.2022,ADULT SOCIAL CARE,ABBEYS CARE SUPPORT AND TRAINING LTD,"3,627.00",LD LTS 18-64,SUPPORTED LIVING,2103594485,1000086177
02.12.2022,ADULT SOCIAL CARE,ABBEYS CARE SUPPORT AND TRAINING LTD,"10,965.00",LD LTS 18-64,SUPPORTED LIVING,2103594484,1000086177
02.12.2022,ADULT SOCIAL CARE,THE FRANCES TAYLOR FOUNDATION,"-3,359.17",LD LTS 65+,"MAND STATUTORY CHARGES, RESIDENTIAL",2103594383,1000007274
02.12.2022,ADULT SOCIAL CARE,THE FRANCES TAYLOR FOUNDATION,"22,814.37",LD LTS 65+,RESIDENTIAL CARE,2103594384,1000007274
02.12.2022,ADULT SOCIAL CARE,SUPREME CARE SERVICES LTD,839.78,LD LTS 65+,HOMECARE - C&V,2103594269,1000059416
02.12.2022,ADULT SOCIAL CARE,SUPREME CARE SERVICES LTD,"1,364.52",LD LTS 65+,HOMECARE - C&V,2103594336,1000059416
02.12.2022,ADULT SOCIAL CARE,SANCTUARY CARE LTD,"1,018.04",LD LTS 65+,RESIDENTIAL CARE,2103594429,1000077831
02.12.2022,ADULT SOCIAL CARE,SUPREME CARE SERVICES LTD,423.84,MEM LTS 18-64,HOMECARE - C&V,2103594004,1000059416
02.12.2022,ADULT SOCIAL CARE,ANCHOR TRUST,"2,418.04",MEM LTS 65+,RESIDENTIAL CARE,2103594422,11257534
02.12.2022,ADULT SOCIAL CARE,QUEENS OAK CARE CENTRE,"-3,192.82",MEM LTS 65+,"MAND STATUTORY CHARGES, NURSING",2103582252,1000049621
02.12.2022,ADULT SOCIAL CARE,QUEENS OAK CARE CENTRE,"4,238.42",MEM LTS 65+,"MAND STATUTORY CHARGES, NURSING",2103582292,1000049621
02.12.2022,ADULT SOCIAL CARE,QUEENS OAK CARE CENTRE,-500.23,MEM LTS 65+,NURSING PLACEMENTS FEES,2103589738,1000049621
02.12.2022,ADULT SOCIAL CARE,QUEENS OAK CARE CENTRE,250.12,MEM LTS 65+,NURSING PLACEMENTS FEES,2103589574,1000049621
02.12.2022,ADULT SOCIAL CARE,QUEENS OAK CARE CENTRE,500.23,MEM LTS 65+,NURSING PLACEMENTS FEES,2103589882,1000049621
02.12.2022,ADULT SOCIAL CARE,QUEENS OAK CARE CENTRE,"2,000.94",MEM LTS 65+,NURSING PLACEMENTS FEES,2103594406,1000049621
02.12.2022,ADULT SOCIAL CARE,QUEENS OAK CARE CENTRE,479.62,MEM LTS 65+,RESIDENTIAL CARE,2103589736,1000049621
02.12.2022,ADULT SOCIAL CARE,SUPREME CARE SERVICES LTD,258.16,MEM LTS 65+,HOMECARE - C&V,2103594060,1000059416
02.12.2022,ADULT SOCIAL CARE,SUPREME CARE SERVICES LTD,267.35,MEM LTS 65+,HOMECARE - C&V,2103594185,1000059416
02.12.2022,ADULT SOCIAL CARE,SUPREME CARE SERVICES LTD,324.15,MEM LTS 65+,HOMECARE - C&V,2103594052,1000059416
02.12.2022,ADULT SOCIAL CARE,SUPREME CARE SERVICES LTD,"2,332.09",MEM LTS 65+,HOMECARE - C&V,2103594130,1000059416
02.12.2022,ADULT SOCIAL CARE,SUPREME CARE SERVICES LTD,"2,347.15",MEM LTS 65+,HOMECARE - C&V,2103593968,1000059416
02.12.2022,ADULT SOCIAL CARE,COUNTRY COURT CARE HOMES 2 LTD,"1,740.00",MEM LTS 65+,NURSING PLACEMENTS FEES,2103594427,1000080172
02.12.2022,ADULT SOCIAL CARE,SAGECARE LTD,680.40,MEM LTS 65+,HOMECARE - C&V,2103594487,1000080924
02.12.2022,ADULT SOCIAL CARE,SUPREME CARE SERVICES LTD,282.60,MH LTS 18-64,HOMECARE - C&V,2103594225,1000059416
02.12.2022,ADULT SOCIAL CARE,SUPREME CARE SERVICES LTD,299.49,MH LTS 18-64,HOMECARE - C&V,2103594054,1000059416
02.12.2022,ADULT SOCIAL CARE,SUPREME CARE SERVICES LTD,317.93,MH LTS 18-64,HOMECARE - C&V,2103594326,1000059416
02.12.2022,ADULT SOCIAL CARE,SUPREME CARE SERVICES LTD,357.85,MH LTS 18-64,HOMECARE - C&V,2103594151,1000059416
02.12.2022,ADULT SOCIAL CARE,SUPREME CARE SERVICES LTD,386.96,MH LTS 18-64,HOMECARE - C&V,2103594077,1000059416
02.12.2022,ADULT SOCIAL CARE,SUPREME CARE SERVICES LTD,847.84,MH LTS 18-64,HOMECARE - C&V,2103594136,1000059416
02.12.2022,ADULT SOCIAL CARE,MEDICREST LTD (ACORN LODGE),"1,571.43",MH LTS 65+,RESIDENTIAL CARE,2103594401,1000037363
02.12.2022,ADULT SOCIAL CARE,QUEENS OAK CARE CENTRE,"1,769.29",MH LTS 65+,RESIDENTIAL CARE,2103594394,1000049621
02.12.2022,ADULT SOCIAL CARE,SUPREME CARE SERVICES LTD,258.08,MH LTS 65+,HOMECARE - C&V,2103594196,1000059416
02.12.2022,ADULT SOCIAL CARE,SUPREME CARE SERVICES LTD,409.20,MH LTS 65+,HOMECARE - C&V,2103594370,1000059416
02.12.2022,ADULT SOCIAL CARE,SUPREME CARE SERVICES LTD,516.04,MH LTS 65+,HOMECARE - C&V,2103594252,1000059416
02.12.2022,ADULT SOCIAL CARE,SUPREME CARE SERVICES LTD,548.31,MH LTS 65+,HOMECARE - C&V,2103594308,1000059416
02.12.2022,ADULT SOCIAL CARE,SUPREME CARE SERVICES LTD,589.76,MH LTS 65+,HOMECARE - C&V,2103594328,1000059416
02.12.2022,ADULT SOCIAL CARE,SUPREME CARE SERVICES LTD,810.98,MH LTS 65+,HOMECARE - C&V,2103594001,1000059416
02.12.2022,ADULT SOCIAL CARE,COUNTRY COURT CARE HOMES 2 LTD,"1,885.00",MH LTS 65+,NURSING PLACEMENTS FEES,2103594410,1000080172
02.12.2022,ADULT SOCIAL CARE,ANCHOR TRUST,"5,269.32",PHY LTS 18-64,"MAND STATUTORY CHARGES, RESIDENTIAL",2103594423,11257534
02.12.2022,ADULT SOCIAL CARE,PRIORY,"1,384.55",PHY LTS 18-64,NURSING PLACEMENTS FEES,2103594428,1000015902
02.12.2022,ADULT SOCIAL CARE,SUPREME CARE SERVICES LTD,263.57,PHY LTS 18-64,HOMECARE - C&V,2103594229,1000059416
02.12.2022,ADULT SOCIAL CARE,SUPREME CARE SERVICES LTD,264.31,PHY LTS 18-64,HOMECARE - C&V,2103594329,1000059416
02.12.2022,ADULT SOCIAL CARE,SUPREME CARE SERVICES LTD,281.01,PHY LTS 18-64,HOMECARE - C&V,2103594166,1000059416
02.12.2022,ADULT SOCIAL CARE,SUPREME CARE SERVICES LTD,289.85,PHY LTS 18-64,HOMECARE - C&V,2103594263,1000059416
02.12.2022,ADULT SOCIAL CARE,SUPREME CARE SERVICES LTD,322.49,PHY LTS 18-64,HOMECARE - C&V,2103594345,1000059416
02.12.2022,ADULT SOCIAL CARE,SUPREME CARE SERVICES LTD,331.68,PHY LTS 18-64,HOMECARE - C&V,2103594034,1000059416
02.12.2022,ADULT SOCIAL CARE,SUPREME CARE SERVICES LTD,340.92,PHY LTS 18-64,HOMECARE - C&V,2103594110,1000059416
02.12.2022,ADULT SOCIAL CARE,SUPREME CARE SERVICES LTD,341.16,PHY LTS 18-64,HOMECARE - C&V,2103593958,1000059416
02.12.2022,ADULT SOCIAL CARE,SUPREME CARE SERVICES LTD,342.41,PHY LTS 18-64,HOMECARE - C&V,2103594045,1000059416
02.12.2022,ADULT SOCIAL CARE,SUPREME CARE SERVICES LTD,354.81,PHY LTS 18-64,HOMECARE - C&V,2103594236,1000059416
02.12.2022,ADULT SOCIAL CARE,SUPREME CARE SERVICES LTD,377.87,PHY LTS 18-64,HOMECARE - C&V,2103594108,1000059416
02.12.2022,ADULT SOCIAL CARE,SUPREME CARE SERVICES LTD,382.50,PHY LTS 18-64,HOMECARE - C&V,2103594111,1000059416
02.12.2022,ADULT SOCIAL CARE,SUPREME CARE SERVICES LTD,386.96,PHY LTS 18-64,HOMECARE - C&V,2103594147,1000059416
02.12.2022,ADULT SOCIAL CARE,SUPREME CARE SERVICES LTD,391.57,PHY LTS 18-64,HOMECARE - C&V,2103594127,1000059416
02.12.2022,ADULT SOCIAL CARE,SUPREME CARE SERVICES LTD,396.18,PHY LTS 18-64,HOMECARE - C&V,2103593972,1000059416
02.12.2022,ADULT SOCIAL CARE,SUPREME CARE SERVICES LTD,400.93,PHY LTS 18-64,HOMECARE - C&V,2103594235,1000059416
02.12.2022,ADULT SOCIAL CARE,SUPREME CARE SERVICES LTD,434.92,PHY LTS 18-64,HOMECARE - C&V,2103594368,1000059416
02.12.2022,ADULT SOCIAL CARE,SUPREME CARE SERVICES LTD,455.20,PHY LTS 18-64,HOMECARE - C&V,2103594307,1000059416
02.12.2022,ADULT SOCIAL CARE,SUPREME CARE SERVICES LTD,465.40,PHY LTS 18-64,HOMECARE - C&V,2103594009,1000059416
02.12.2022,ADULT SOCIAL CARE,SUPREME CARE SERVICES LTD,497.57,PHY LTS 18-64,HOMECARE - C&V,2103594253,1000059416
02.12.2022,ADULT SOCIAL CARE,SUPREME CARE SERVICES LTD,507.08,PHY LTS 18-64,HOMECARE - C&V,2103594270,1000059416
02.12.2022,ADULT SOCIAL CARE,SUPREME CARE SERVICES LTD,511.56,PHY LTS 18-64,HOMECARE - C&V,2103594333,1000059416
02.12.2022,ADULT SOCIAL CARE,SUPREME CARE SERVICES LTD,520.22,PHY LTS 18-64,HOMECARE - C&V,2103594364,1000059416
02.12.2022,ADULT SOCIAL CARE,SUPREME CARE SERVICES LTD,524.28,PHY LTS 18-64,HOMECARE - C&V,2103594319,1000059416
02.12.2022,ADULT SOCIAL CARE,SUPREME CARE SERVICES LTD,529.87,PHY LTS 18-64,HOMECARE - C&V,2103594070,1000059416
02.12.2022,ADULT SOCIAL CARE,SUPREME CARE SERVICES LTD,552.96,PHY LTS 18-64,HOMECARE - C&V,2103594163,1000059416
02.12.2022,ADULT SOCIAL CARE,SUPREME CARE SERVICES LTD,557.57,PHY LTS 18-64,HOMECARE - C&V,2103594029,1000059416
02.12.2022,ADULT SOCIAL CARE,SUPREME CARE SERVICES LTD,602.18,PHY LTS 18-64,HOMECARE - C&V,2103593988,1000059416
02.12.2022,ADULT SOCIAL CARE,SUPREME CARE SERVICES LTD,603.61,PHY LTS 18-64,HOMECARE - C&V,2103594093,1000059416
02.12.2022,ADULT SOCIAL CARE,SUPREME CARE SERVICES LTD,603.84,PHY LTS 18-64,HOMECARE - C&V,2103594071,1000059416
02.12.2022,ADULT SOCIAL CARE,SUPREME CARE SERVICES LTD,622.52,PHY LTS 18-64,HOMECARE - C&V,2103594320,1000059416
02.12.2022,ADULT SOCIAL CARE,SUPREME CARE SERVICES LTD,649.69,PHY LTS 18-64,HOMECARE - C&V,2103594273,1000059416
02.12.2022,ADULT SOCIAL CARE,SUPREME CARE SERVICES LTD,656.76,PHY LTS 18-64,HOMECARE - C&V,2103594295,1000059416
02.12.2022,ADULT SOCIAL CARE,SUPREME CARE SERVICES LTD,677.98,PHY LTS 18-64,HOMECARE - C&V,2103594309,1000059416
02.12.2022,ADULT SOCIAL CARE,SUPREME CARE SERVICES LTD,682.21,PHY LTS 18-64,HOMECARE - C&V,2103593999,1000059416
02.12.2022,ADULT SOCIAL CARE,SUPREME CARE SERVICES LTD,688.44,PHY LTS 18-64,HOMECARE - C&V,2103594094,1000059416
02.12.2022,ADULT SOCIAL CARE,SUPREME CARE SERVICES LTD,696.01,PHY LTS 18-64,HOMECARE - C&V,2103594176,1000059416
02.12.2022,ADULT SOCIAL CARE,SUPREME CARE SERVICES LTD,724.63,PHY LTS 18-64,HOMECARE - C&V,2103594262,1000059416
02.12.2022,ADULT SOCIAL CARE,SUPREME CARE SERVICES LTD,741.86,PHY LTS 18-64,HOMECARE - C&V,2103594173,1000059416
02.12.2022,ADULT SOCIAL CARE,SUPREME CARE SERVICES LTD,746.49,PHY LTS 18-64,HOMECARE - C&V,2103594031,1000059416
02.12.2022,ADULT SOCIAL CARE,SUPREME CARE SERVICES LTD,769.87,PHY LTS 18-64,HOMECARE - C&V,2103594043,1000059416
02.12.2022,ADULT SOCIAL CARE,SUPREME CARE SERVICES LTD,783.34,PHY LTS 18-64,HOMECARE - C&V,2103593970,1000059416
02.12.2022,ADULT SOCIAL CARE,SUPREME CARE SERVICES LTD,788.28,PHY LTS 18-64,HOMECARE - C&V,2103594026,1000059416
02.12.2022,ADULT SOCIAL CARE,SUPREME CARE SERVICES LTD,788.28,PHY LTS 18-64,HOMECARE - C&V,2103594081,1000059416
02.12.2022,ADULT SOCIAL CARE,SUPREME CARE SERVICES LTD,801.77,PHY LTS 18-64,HOMECARE - C&V,2103593969,1000059416
02.12.2022,ADULT SOCIAL CARE,SUPREME CARE SERVICES LTD,820.17,PHY LTS 18-64,HOMECARE - C&V,2103594117,1000059416
02.12.2022,ADULT SOCIAL CARE,SUPREME CARE SERVICES LTD,849.49,PHY LTS 18-64,HOMECARE - C&V,2103594073,1000059416
02.12.2022,ADULT SOCIAL CARE,SUPREME CARE SERVICES LTD,861.72,PHY LTS 18-64,HOMECARE - C&V,2103594095,1000059416
02.12.2022,ADULT SOCIAL CARE,SUPREME CARE SERVICES LTD,871.19,PHY LTS 18-64,HOMECARE - C&V,2103594152,1000059416
02.12.2022,ADULT SOCIAL CARE,SUPREME CARE SERVICES LTD,875.56,PHY LTS 18-64,HOMECARE - C&V,2103594155,1000059416
02.12.2022,ADULT SOCIAL CARE,SUPREME CARE SERVICES LTD,895.23,PHY LTS 18-64,HOMECARE - C&V,2103594322,1000059416
02.12.2022,ADULT SOCIAL CARE,SUPREME CARE SERVICES LTD,902.21,PHY LTS 18-64,HOMECARE - C&V,2103594042,1000059416
02.12.2022,ADULT SOCIAL CARE,SUPREME CARE SERVICES LTD,910.34,PHY LTS 18-64,HOMECARE - C&V,2103594275,1000059416
02.12.2022,ADULT SOCIAL CARE,SUPREME CARE SERVICES LTD,930.89,PHY LTS 18-64,HOMECARE - C&V,2103594096,1000059416
02.12.2022,ADULT SOCIAL CARE,SUPREME CARE SERVICES LTD,940.09,PHY LTS 18-64,HOMECARE - C&V,2103593961,1000059416
02.12.2022,ADULT SOCIAL CARE,SUPREME CARE SERVICES LTD,951.01,PHY LTS 18-64,HOMECARE - C&V,2103594087,1000059416
02.12.2022,ADULT SOCIAL CARE,SUPREME CARE SERVICES LTD,958.32,PHY LTS 18-64,HOMECARE - C&V,2103594259,1000059416
02.12.2022,ADULT SOCIAL CARE,SUPREME CARE SERVICES LTD,964.61,PHY LTS 18-64,HOMECARE - C&V,2103594274,1000059416
02.12.2022,ADULT SOCIAL CARE,SUPREME CARE SERVICES LTD,976.22,PHY LTS 18-64,HOMECARE - C&V,2103594129,1000059416
02.12.2022,ADULT SOCIAL CARE,SUPREME CARE SERVICES LTD,976.42,PHY LTS 18-64,HOMECARE - C&V,2103594351,1000059416
02.12.2022,ADULT SOCIAL CARE,SUPREME CARE SERVICES LTD,"1,006.20",PHY LTS 18-64,HOMECARE - C&V,2103594314,1000059416
02.12.2022,ADULT SOCIAL CARE,SUPREME CARE SERVICES LTD,"1,023.10",PHY LTS 18-64,HOMECARE - C&V,2103594146,1000059416
02.12.2022,ADULT SOCIAL CARE,SUPREME CARE SERVICES LTD,"1,036.86",PHY LTS 18-64,HOMECARE - C&V,2103593989,1000059416
02.12.2022,ADULT SOCIAL CARE,SUPREME CARE SERVICES LTD,"1,050.73",PHY LTS 18-64,HOMECARE - C&V,2103593993,1000059416
02.12.2022,ADULT SOCIAL CARE,SUPREME CARE SERVICES LTD,"1,059.97",PHY LTS 18-64,HOMECARE - C&V,2103594011,1000059416
02.12.2022,ADULT SOCIAL CARE,SUPREME CARE SERVICES LTD,"1,059.99",PHY LTS 18-64,HOMECARE - C&V,2103594247,1000059416
02.12.2022,ADULT SOCIAL CARE,SUPREME CARE SERVICES LTD,"1,198.27",PHY LTS 18-64,HOMECARE - C&V,2103594209,1000059416
02.12.2022,ADULT SOCIAL CARE,SUPREME CARE SERVICES LTD,"1,211.83",PHY LTS 18-64,HOMECARE - C&V,2103594137,1000059416
02.12.2022,ADULT SOCIAL CARE,SUPREME CARE SERVICES LTD,"1,227.93",PHY LTS 18-64,HOMECARE - C&V,2103594296,1000059416
02.12.2022,ADULT SOCIAL CARE,SUPREME CARE SERVICES LTD,"1,236.34",PHY LTS 18-64,HOMECARE - C&V,2103594179,1000059416
02.12.2022,ADULT SOCIAL CARE,SUPREME CARE SERVICES LTD,"1,276.36",PHY LTS 18-64,HOMECARE - C&V,2103594013,1000059416
02.12.2022,ADULT SOCIAL CARE,SUPREME CARE SERVICES LTD,"1,321.68",PHY LTS 18-64,HOMECARE - C&V,2103594072,1000059416
02.12.2022,ADULT SOCIAL CARE,SUPREME CARE SERVICES LTD,"1,371.36",PHY LTS 18-64,HOMECARE - C&V,2103594138,1000059416
02.12.2022,ADULT SOCIAL CARE,SUPREME CARE SERVICES LTD,"1,386.21",PHY LTS 18-64,HOMECARE - C&V,2103594261,1000059416
02.12.2022,ADULT SOCIAL CARE,SUPREME CARE SERVICES LTD,"1,483.97",PHY LTS 18-64,HOMECARE - C&V,2103594300,1000059416
02.12.2022,ADULT SOCIAL CARE,SUPREME CARE SERVICES LTD,"1,492.76",PHY LTS 18-64,HOMECARE - C&V,2103594088,1000059416
02.12.2022,ADULT SOCIAL CARE,SUPREME CARE SERVICES LTD,"1,787.56",PHY LTS 18-64,HOMECARE - C&V,2103594047,1000059416
02.12.2022,ADULT SOCIAL CARE,SUPREME CARE SERVICES LTD,"1,930.76",PHY LTS 18-64,HOMECARE - C&V,2103594343,1000059416
02.12.2022,ADULT SOCIAL CARE,SUPREME CARE SERVICES LTD,"2,147.10",PHY LTS 18-64,HOMECARE - C&V,2103594304,1000059416
02.12.2022,ADULT SOCIAL CARE,SUPREME CARE SERVICES LTD,"2,235.06",PHY LTS 18-64,HOMECARE - C&V,2103594175,1000059416
02.12.2022,ADULT SOCIAL CARE,SUPREME CARE SERVICES LTD,"2,289.82",PHY LTS 18-64,HOMECARE - C&V,2103594321,1000059416
02.12.2022,ADULT SOCIAL CARE,SUPREME CARE SERVICES LTD,"2,300.14",PHY LTS 18-64,HOMECARE - C&V,2103594005,1000059416
02.12.2022,ADULT SOCIAL CARE,SUPREME CARE SERVICES LTD,"2,865.74",PHY LTS 18-64,HOMECARE - C&V,2103594284,1000059416
02.12.2022,ADULT SOCIAL CARE,SUPREME CARE SERVICES LTD,"2,889.67",PHY LTS 18-64,HOMECARE - C&V,2103594105,1000059416
02.12.2022,ADULT SOCIAL CARE,SUPREME CARE SERVICES LTD,"2,985.69",PHY LTS 18-64,HOMECARE - C&V,2103594356,1000059416
02.12.2022,ADULT SOCIAL CARE,SUPREME CARE SERVICES LTD,"3,685.78",PHY LTS 18-64,HOMECARE - C&V,2103594306,1000059416
02.12.2022,ADULT SOCIAL CARE,SUPREME CARE SERVICES LTD,"3,801.01",PHY LTS 18-64,HOMECARE - C&V,2103594187,1000059416
02.12.2022,ADULT SOCIAL CARE,CHARLTON PARK (FOUR SEASONS),"2,978.77",PHY LTS 65+,"MAND STATUTORY CHARGES, NURSING",2103594377,11180076
02.12.2022,ADULT SOCIAL CARE,CHARLTON PARK (FOUR SEASONS),"-1,122.13",PHY LTS 65+,NURSING PLACEMENTS FEES,2103594376,11180076
02.12.2022,ADULT SOCIAL CARE,ANCHOR TRUST,-313.04,PHY LTS 65+,RESIDENTIAL CARE,2103594414,11257534
02.12.2022,ADULT SOCIAL CARE,MEDICREST LTD (ACORN LODGE),-299.98,PHY LTS 65+,RESIDENTIAL CARE,2103594402,1000037363
02.12.2022,ADULT SOCIAL CARE,PEARTREE CARE CENTRE (EXCELCARE),"2,125.00",PHY LTS 65+,RESIDENTIAL CARE,2103594387,1000048698
02.12.2022,ADULT SOCIAL CARE,QUEENS OAK CARE CENTRE,"-16,132.56",PHY LTS 65+,NURSING PLACEMENTS FEES,2103582250,1000049621
02.12.2022,ADULT SOCIAL CARE,QUEENS OAK CARE CENTRE,"-1,767.60",PHY LTS 65+,NURSING PLACEMENTS FEES,2103582249,1000049621
02.12.2022,ADULT SOCIAL CARE,QUEENS OAK CARE CENTRE,-625.29,PHY LTS 65+,NURSING PLACEMENTS FEES,2103590024,1000049621
02.12.2022,ADULT SOCIAL CARE,QUEENS OAK CARE CENTRE,-500.23,PHY LTS 65+,NURSING PLACEMENTS FEES,2103590237,1000049621
02.12.2022,ADULT SOCIAL CARE,QUEENS OAK CARE CENTRE,-471.36,PHY LTS 65+,NURSING PLACEMENTS FEES,2103590236,1000049621
02.12.2022,ADULT SOCIAL CARE,QUEENS OAK CARE CENTRE,272.78,PHY LTS 65+,NURSING PLACEMENTS FEES,2103594398,1000049621
02.12.2022,ADULT SOCIAL CARE,QUEENS OAK CARE CENTRE,375.18,PHY LTS 65+,NURSING PLACEMENTS FEES,2103589304,1000049621
02.12.2022,ADULT SOCIAL CARE,QUEENS OAK CARE CENTRE,471.36,PHY LTS 65+,NURSING PLACEMENTS FEES,2103589585,1000049621
02.12.2022,ADULT SOCIAL CARE,QUEENS OAK CARE CENTRE,625.29,PHY LTS 65+,NURSING PLACEMENTS FEES,2103590001,1000049621
02.12.2022,ADULT SOCIAL CARE,QUEENS OAK CARE CENTRE,875.41,PHY LTS 65+,NURSING PLACEMENTS FEES,2103589305,1000049621
02.12.2022,ADULT SOCIAL CARE,QUEENS OAK CARE CENTRE,875.41,PHY LTS 65+,NURSING PLACEMENTS FEES,2103589575,1000049621
02.12.2022,ADULT SOCIAL CARE,QUEENS OAK CARE CENTRE,"1,000.47",PHY LTS 65+,NURSING PLACEMENTS FEES,2103589737,1000049621
02.12.2022,ADULT SOCIAL CARE,QUEENS OAK CARE CENTRE,"1,125.53",PHY LTS 65+,NURSING PLACEMENTS FEES,2103594408,1000049621
02.12.2022,ADULT SOCIAL CARE,QUEENS OAK CARE CENTRE,"1,250.59",PHY LTS 65+,NURSING PLACEMENTS FEES,2103594407,1000049621
02.12.2022,ADULT SOCIAL CARE,QUEENS OAK CARE CENTRE,"1,316.22",PHY LTS 65+,NURSING PLACEMENTS FEES,2103594381,1000049621
02.12.2022,ADULT SOCIAL CARE,QUEENS OAK CARE CENTRE,"1,767.60",PHY LTS 65+,NURSING PLACEMENTS FEES,2103594396,1000049621
02.12.2022,ADULT SOCIAL CARE,QUEENS OAK CARE CENTRE,"1,767.60",PHY LTS 65+,NURSING PLACEMENTS FEES,2103594424,1000049621
02.12.2022,ADULT SOCIAL CARE,QUEENS OAK CARE CENTRE,"1,885.44",PHY LTS 65+,NURSING PLACEMENTS FEES,2103594425,1000049621
02.12.2022,ADULT SOCIAL CARE,QUEENS OAK CARE CENTRE,"2,003.28",PHY LTS 65+,NURSING PLACEMENTS FEES,2103594378,1000049621
02.12.2022,ADULT SOCIAL CARE,QUEENS OAK CARE CENTRE,"2,003.28",PHY LTS 65+,NURSING PLACEMENTS FEES,2103594426,1000049621
02.12.2022,ADULT SOCIAL CARE,QUEENS OAK CARE CENTRE,"2,121.12",PHY LTS 65+,NURSING PLACEMENTS FEES,2103594397,1000049621
02.12.2022,ADULT SOCIAL CARE,QUEENS OAK CARE CENTRE,"13,669.44",PHY LTS 65+,NURSING PLACEMENTS FEES,2103582309,1000049621
02.12.2022,ADULT SOCIAL CARE,SUPREME CARE SERVICES LTD,252.52,PHY LTS 65+,HOMECARE - C&V,2103594113,1000059416
02.12.2022,ADULT SOCIAL CARE,SUPREME CARE SERVICES LTD,257.69,PHY LTS 65+,HOMECARE - C&V,2103594217,1000059416
02.12.2022,ADULT SOCIAL CARE,SUPREME CARE SERVICES LTD,258.14,PHY LTS 65+,HOMECARE - C&V,2103594216,1000059416
02.12.2022,ADULT SOCIAL CARE,SUPREME CARE SERVICES LTD,258.30,PHY LTS 65+,HOMECARE - C&V,2103594027,1000059416
02.12.2022,ADULT SOCIAL CARE,SUPREME CARE SERVICES LTD,262.60,PHY LTS 65+,HOMECARE - C&V,2103594171,1000059416
02.12.2022,ADULT SOCIAL CARE,SUPREME CARE SERVICES LTD,262.61,PHY LTS 65+,HOMECARE - C&V,2103594242,1000059416
02.12.2022,ADULT SOCIAL CARE,SUPREME CARE SERVICES LTD,262.65,PHY LTS 65+,HOMECARE - C&V,2103594291,1000059416
02.12.2022,ADULT SOCIAL CARE,SUPREME CARE SERVICES LTD,262.76,PHY LTS 65+,HOMECARE - C&V,2103594039,1000059416
02.12.2022,ADULT SOCIAL CARE,SUPREME CARE SERVICES LTD,262.76,PHY LTS 65+,HOMECARE - C&V,2103594212,1000059416
02.12.2022,ADULT SOCIAL CARE,SUPREME CARE SERVICES LTD,276.51,PHY LTS 65+,HOMECARE - C&V,2103594182,1000059416
02.12.2022,ADULT SOCIAL CARE,SUPREME CARE SERVICES LTD,277.16,PHY LTS 65+,HOMECARE - C&V,2103593962,1000059416
02.12.2022,ADULT SOCIAL CARE,SUPREME CARE SERVICES LTD,294.88,PHY LTS 65+,HOMECARE - C&V,2103594030,1000059416
02.12.2022,ADULT SOCIAL CARE,SUPREME CARE SERVICES LTD,304.07,PHY LTS 65+,HOMECARE - C&V,2103594119,1000059416
02.12.2022,ADULT SOCIAL CARE,SUPREME CARE SERVICES LTD,308.71,PHY LTS 65+,HOMECARE - C&V,2103594239,1000059416
02.12.2022,ADULT SOCIAL CARE,SUPREME CARE SERVICES LTD,317.96,PHY LTS 65+,HOMECARE - C&V,2103594228,1000059416
02.12.2022,ADULT SOCIAL CARE,SUPREME CARE SERVICES LTD,318.08,PHY LTS 65+,HOMECARE - C&V,2103594118,1000059416
02.12.2022,ADULT SOCIAL CARE,SUPREME CARE SERVICES LTD,331.75,PHY LTS 65+,HOMECARE - C&V,2103594354,1000059416
02.12.2022,ADULT SOCIAL CARE,SUPREME CARE SERVICES LTD,345.68,PHY LTS 65+,HOMECARE - C&V,2103594148,1000059416
02.12.2022,ADULT SOCIAL CARE,SUPREME CARE SERVICES LTD,354.87,PHY LTS 65+,HOMECARE - C&V,2103594202,1000059416
02.12.2022,ADULT SOCIAL CARE,SUPREME CARE SERVICES LTD,368.54,PHY LTS 65+,HOMECARE - C&V,2103594268,1000059416
02.12.2022,ADULT SOCIAL CARE,SUPREME CARE SERVICES LTD,377.75,PHY LTS 65+,HOMECARE - C&V,2103594221,1000059416
02.12.2022,ADULT SOCIAL CARE,SUPREME CARE SERVICES LTD,382.36,PHY LTS 65+,HOMECARE - C&V,2103594121,1000059416
02.12.2022,ADULT SOCIAL CARE,SUPREME CARE SERVICES LTD,386.96,PHY LTS 65+,HOMECARE - C&V,2103594066,1000059416
02.12.2022,ADULT SOCIAL CARE,SUPREME CARE SERVICES LTD,386.96,PHY LTS 65+,HOMECARE - C&V,2103594211,1000059416
02.12.2022,ADULT SOCIAL CARE,SUPREME CARE SERVICES LTD,387.24,PHY LTS 65+,HOMECARE - C&V,2103594086,1000059416
02.12.2022,ADULT SOCIAL CARE,SUPREME CARE SERVICES LTD,396.18,PHY LTS 65+,HOMECARE - C&V,2103594215,1000059416
02.12.2022,ADULT SOCIAL CARE,SUPREME CARE SERVICES LTD,398.51,PHY LTS 65+,HOMECARE - C&V,2103594097,1000059416
02.12.2022,ADULT SOCIAL CARE,SUPREME CARE SERVICES LTD,400.79,PHY LTS 65+,HOMECARE - C&V,2103594074,1000059416
02.12.2022,ADULT SOCIAL CARE,SUPREME CARE SERVICES LTD,400.80,PHY LTS 65+,HOMECARE - C&V,2103594080,1000059416
02.12.2022,ADULT SOCIAL CARE,SUPREME CARE SERVICES LTD,405.40,PHY LTS 65+,HOMECARE - C&V,2103594075,1000059416
02.12.2022,ADULT SOCIAL CARE,SUPREME CARE SERVICES LTD,409.32,PHY LTS 65+,HOMECARE - C&V,2103594188,1000059416
02.12.2022,ADULT SOCIAL CARE,SUPREME CARE SERVICES LTD,410.01,PHY LTS 65+,HOMECARE - C&V,2103594149,1000059416
02.12.2022,ADULT SOCIAL CARE,SUPREME CARE SERVICES LTD,419.49,PHY LTS 65+,HOMECARE - C&V,2103594089,1000059416
02.12.2022,ADULT SOCIAL CARE,SUPREME CARE SERVICES LTD,424.01,PHY LTS 65+,HOMECARE - C&V,2103593994,1000059416
02.12.2022,ADULT SOCIAL CARE,SUPREME CARE SERVICES LTD,426.32,PHY LTS 65+,HOMECARE - C&V,2103594283,1000059416
02.12.2022,ADULT SOCIAL CARE,SUPREME CARE SERVICES LTD,426.32,PHY LTS 65+,HOMECARE - C&V,2103594348,1000059416
02.12.2022,ADULT SOCIAL CARE,SUPREME CARE SERVICES LTD,438.41,PHY LTS 65+,HOMECARE - C&V,2103594258,1000059416
02.12.2022,ADULT SOCIAL CARE,SUPREME CARE SERVICES LTD,446.89,PHY LTS 65+,HOMECARE - C&V,2103594051,1000059416
02.12.2022,ADULT SOCIAL CARE,SUPREME CARE SERVICES LTD,461.92,PHY LTS 65+,HOMECARE - C&V,2103594008,1000059416
02.12.2022,ADULT SOCIAL CARE,SUPREME CARE SERVICES LTD,465.29,PHY LTS 65+,HOMECARE - C&V,2103594109,1000059416
02.12.2022,ADULT SOCIAL CARE,SUPREME CARE SERVICES LTD,470.16,PHY LTS 65+,HOMECARE - C&V,2103594104,1000059416
02.12.2022,ADULT SOCIAL CARE,SUPREME CARE SERVICES LTD,477.40,PHY LTS 65+,HOMECARE - C&V,2103594255,1000059416
02.12.2022,ADULT SOCIAL CARE,SUPREME CARE SERVICES LTD,488.42,PHY LTS 65+,HOMECARE - C&V,2103594210,1000059416
02.12.2022,ADULT SOCIAL CARE,SUPREME CARE SERVICES LTD,492.72,PHY LTS 65+,HOMECARE - C&V,2103594315,1000059416
02.12.2022,ADULT SOCIAL CARE,SUPREME CARE SERVICES LTD,495.30,PHY LTS 65+,HOMECARE - C&V,2103594167,1000059416
02.12.2022,ADULT SOCIAL CARE,SUPREME CARE SERVICES LTD,497.72,PHY LTS 65+,HOMECARE - C&V,2103594041,1000059416
02.12.2022,ADULT SOCIAL CARE,SUPREME CARE SERVICES LTD,505.18,PHY LTS 65+,HOMECARE - C&V,2103594256,1000059416
02.12.2022,ADULT SOCIAL CARE,SUPREME CARE SERVICES LTD,516.32,PHY LTS 65+,HOMECARE - C&V,2103594059,1000059416
02.12.2022,ADULT SOCIAL CARE,SUPREME CARE SERVICES LTD,516.32,PHY LTS 65+,HOMECARE - C&V,2103594184,1000059416
02.12.2022,ADULT SOCIAL CARE,SUPREME CARE SERVICES LTD,516.32,PHY LTS 65+,HOMECARE - C&V,2103594214,1000059416
02.12.2022,ADULT SOCIAL CARE,SUPREME CARE SERVICES LTD,530.12,PHY LTS 65+,HOMECARE - C&V,2103594161,1000059416
02.12.2022,ADULT SOCIAL CARE,SUPREME CARE SERVICES LTD,533.86,PHY LTS 65+,HOMECARE - C&V,2103594040,1000059416
02.12.2022,ADULT SOCIAL CARE,SUPREME CARE SERVICES LTD,534.40,PHY LTS 65+,HOMECARE - C&V,2103594069,1000059416
02.12.2022,ADULT SOCIAL CARE,SUPREME CARE SERVICES LTD,539.10,PHY LTS 65+,HOMECARE - C&V,2103594367,1000059416
02.12.2022,ADULT SOCIAL CARE,SUPREME CARE SERVICES LTD,543.59,PHY LTS 65+,HOMECARE - C&V,2103594144,1000059416
02.12.2022,ADULT SOCIAL CARE,SUPREME CARE SERVICES LTD,543.70,PHY LTS 65+,HOMECARE - C&V,2103594139,1000059416
02.12.2022,ADULT SOCIAL CARE,SUPREME CARE SERVICES LTD,562.18,PHY LTS 65+,HOMECARE - C&V,2103594032,1000059416
02.12.2022,ADULT SOCIAL CARE,SUPREME CARE SERVICES LTD,571.28,PHY LTS 65+,HOMECARE - C&V,2103593959,1000059416
02.12.2022,ADULT SOCIAL CARE,SUPREME CARE SERVICES LTD,572.02,PHY LTS 65+,HOMECARE - C&V,2103594267,1000059416
02.12.2022,ADULT SOCIAL CARE,SUPREME CARE SERVICES LTD,576.16,PHY LTS 65+,HOMECARE - C&V,2103594037,1000059416
02.12.2022,ADULT SOCIAL CARE,SUPREME CARE SERVICES LTD,580.71,PHY LTS 65+,HOMECARE - C&V,2103593978,1000059416
02.12.2022,ADULT SOCIAL CARE,SUPREME CARE SERVICES LTD,584.16,PHY LTS 65+,HOMECARE - C&V,2103594272,1000059416
02.12.2022,ADULT SOCIAL CARE,SUPREME CARE SERVICES LTD,585.22,PHY LTS 65+,HOMECARE - C&V,2103594020,1000059416
02.12.2022,ADULT SOCIAL CARE,SUPREME CARE SERVICES LTD,588.42,PHY LTS 65+,HOMECARE - C&V,2103594325,1000059416
02.12.2022,ADULT SOCIAL CARE,SUPREME CARE SERVICES LTD,599.03,PHY LTS 65+,HOMECARE - C&V,2103594000,1000059416
02.12.2022,ADULT SOCIAL CARE,SUPREME CARE SERVICES LTD,602.07,PHY LTS 65+,HOMECARE - C&V,2103593971,1000059416
02.12.2022,ADULT SOCIAL CARE,SUPREME CARE SERVICES LTD,608.52,PHY LTS 65+,HOMECARE - C&V,2103594014,1000059416
02.12.2022,ADULT SOCIAL CARE,SUPREME CARE SERVICES LTD,613.42,PHY LTS 65+,HOMECARE - C&V,2103594213,1000059416
02.12.2022,ADULT SOCIAL CARE,SUPREME CARE SERVICES LTD,618.65,PHY LTS 65+,HOMECARE - C&V,2103594098,1000059416
02.12.2022,ADULT SOCIAL CARE,SUPREME CARE SERVICES LTD,624.12,PHY LTS 65+,HOMECARE - C&V,2103594018,1000059416
02.12.2022,ADULT SOCIAL CARE,SUPREME CARE SERVICES LTD,634.03,PHY LTS 65+,HOMECARE - C&V,2103594062,1000059416
02.12.2022,ADULT SOCIAL CARE,SUPREME CARE SERVICES LTD,635.99,PHY LTS 65+,HOMECARE - C&V,2103594264,1000059416
02.12.2022,ADULT SOCIAL CARE,SUPREME CARE SERVICES LTD,638.92,PHY LTS 65+,HOMECARE - C&V,2103594278,1000059416
02.12.2022,ADULT SOCIAL CARE,SUPREME CARE SERVICES LTD,645.26,PHY LTS 65+,HOMECARE - C&V,2103594186,1000059416
02.12.2022,ADULT SOCIAL CARE,SUPREME CARE SERVICES LTD,649.73,PHY LTS 65+,HOMECARE - C&V,2103594122,1000059416
02.12.2022,ADULT SOCIAL CARE,SUPREME CARE SERVICES LTD,650.92,PHY LTS 65+,HOMECARE - C&V,2103594044,1000059416
02.12.2022,ADULT SOCIAL CARE,SUPREME CARE SERVICES LTD,656.64,PHY LTS 65+,HOMECARE - C&V,2103594355,1000059416
02.12.2022,ADULT SOCIAL CARE,SUPREME CARE SERVICES LTD,658.48,PHY LTS 65+,HOMECARE - C&V,2103594131,1000059416
02.12.2022,ADULT SOCIAL CARE,SUPREME CARE SERVICES LTD,658.92,PHY LTS 65+,HOMECARE - C&V,2103594064,1000059416
02.12.2022,ADULT SOCIAL CARE,SUPREME CARE SERVICES LTD,658.92,PHY LTS 65+,HOMECARE - C&V,2103594076,1000059416
02.12.2022,ADULT SOCIAL CARE,SUPREME CARE SERVICES LTD,677.94,PHY LTS 65+,HOMECARE - C&V,2103594344,1000059416
02.12.2022,ADULT SOCIAL CARE,SUPREME CARE SERVICES LTD,679.00,PHY LTS 65+,HOMECARE - C&V,2103594115,1000059416
02.12.2022,ADULT SOCIAL CARE,SUPREME CARE SERVICES LTD,680.16,PHY LTS 65+,HOMECARE - C&V,2103594019,1000059416
02.12.2022,ADULT SOCIAL CARE,SUPREME CARE SERVICES LTD,681.96,PHY LTS 65+,HOMECARE - C&V,2103594156,1000059416
02.12.2022,ADULT SOCIAL CARE,SUPREME CARE SERVICES LTD,681.98,PHY LTS 65+,HOMECARE - C&V,2103594124,1000059416
02.12.2022,ADULT SOCIAL CARE,SUPREME CARE SERVICES LTD,686.54,PHY LTS 65+,HOMECARE - C&V,2103594301,1000059416
02.12.2022,ADULT SOCIAL CARE,SUPREME CARE SERVICES LTD,699.23,PHY LTS 65+,HOMECARE - C&V,2103594334,1000059416
02.12.2022,ADULT SOCIAL CARE,SUPREME CARE SERVICES LTD,705.02,PHY LTS 65+,HOMECARE - C&V,2103593965,1000059416
02.12.2022,ADULT SOCIAL CARE,SUPREME CARE SERVICES LTD,714.20,PHY LTS 65+,HOMECARE - C&V,2103594339,1000059416
02.12.2022,ADULT SOCIAL CARE,SUPREME CARE SERVICES LTD,714.22,PHY LTS 65+,HOMECARE - C&V,2103594012,1000059416
02.12.2022,ADULT SOCIAL CARE,SUPREME CARE SERVICES LTD,714.25,PHY LTS 65+,HOMECARE - C&V,2103593980,1000059416
02.12.2022,ADULT SOCIAL CARE,SUPREME CARE SERVICES LTD,718.84,PHY LTS 65+,HOMECARE - C&V,2103593987,1000059416
02.12.2022,ADULT SOCIAL CARE,SUPREME CARE SERVICES LTD,728.26,PHY LTS 65+,HOMECARE - C&V,2103594222,1000059416
02.12.2022,ADULT SOCIAL CARE,SUPREME CARE SERVICES LTD,732.67,PHY LTS 65+,HOMECARE - C&V,2103594021,1000059416
02.12.2022,ADULT SOCIAL CARE,SUPREME CARE SERVICES LTD,736.87,PHY LTS 65+,HOMECARE - C&V,2103594099,1000059416
02.12.2022,ADULT SOCIAL CARE,SUPREME CARE SERVICES LTD,751.22,PHY LTS 65+,HOMECARE - C&V,2103594230,1000059416
02.12.2022,ADULT SOCIAL CARE,SUPREME CARE SERVICES LTD,761.88,PHY LTS 65+,HOMECARE - C&V,2103594067,1000059416
02.12.2022,ADULT SOCIAL CARE,SUPREME CARE SERVICES LTD,764.93,PHY LTS 65+,HOMECARE - C&V,2103594025,1000059416
02.12.2022,ADULT SOCIAL CARE,SUPREME CARE SERVICES LTD,764.94,PHY LTS 65+,HOMECARE - C&V,2103593997,1000059416
02.12.2022,ADULT SOCIAL CARE,SUPREME CARE SERVICES LTD,769.83,PHY LTS 65+,HOMECARE - C&V,2103594281,1000059416
02.12.2022,ADULT SOCIAL CARE,SUPREME CARE SERVICES LTD,774.47,PHY LTS 65+,HOMECARE - C&V,2103594091,1000059416
02.12.2022,ADULT SOCIAL CARE,SUPREME CARE SERVICES LTD,780.29,PHY LTS 65+,HOMECARE - C&V,2103594299,1000059416
02.12.2022,ADULT SOCIAL CARE,SUPREME CARE SERVICES LTD,783.42,PHY LTS 65+,HOMECARE - C&V,2103594159,1000059416
02.12.2022,ADULT SOCIAL CARE,SUPREME CARE SERVICES LTD,783.62,PHY LTS 65+,HOMECARE - C&V,2103593984,1000059416
02.12.2022,ADULT SOCIAL CARE,SUPREME CARE SERVICES LTD,788.28,PHY LTS 65+,HOMECARE - C&V,2103594162,1000059416
02.12.2022,ADULT SOCIAL CARE,SUPREME CARE SERVICES LTD,792.87,PHY LTS 65+,HOMECARE - C&V,2103594036,1000059416
02.12.2022,ADULT SOCIAL CARE,SUPREME CARE SERVICES LTD,801.85,PHY LTS 65+,HOMECARE - C&V,2103594120,1000059416
02.12.2022,ADULT SOCIAL CARE,SUPREME CARE SERVICES LTD,818.32,PHY LTS 65+,HOMECARE - C&V,2103594285,1000059416
02.12.2022,ADULT SOCIAL CARE,SUPREME CARE SERVICES LTD,835.78,PHY LTS 65+,HOMECARE - C&V,2103594327,1000059416
02.12.2022,ADULT SOCIAL CARE,SUPREME CARE SERVICES LTD,840.25,PHY LTS 65+,HOMECARE - C&V,2103594198,1000059416
02.12.2022,ADULT SOCIAL CARE,SUPREME CARE SERVICES LTD,855.57,PHY LTS 65+,HOMECARE - C&V,2103593966,1000059416
02.12.2022,ADULT SOCIAL CARE,SUPREME CARE SERVICES LTD,856.88,PHY LTS 65+,HOMECARE - C&V,2103594287,1000059416
02.12.2022,ADULT SOCIAL CARE,SUPREME CARE SERVICES LTD,861.19,PHY LTS 65+,HOMECARE - C&V,2103594294,1000059416
02.12.2022,ADULT SOCIAL CARE,SUPREME CARE SERVICES LTD,861.44,PHY LTS 65+,HOMECARE - C&V,2103593956,1000059416
02.12.2022,ADULT SOCIAL CARE,SUPREME CARE SERVICES LTD,861.44,PHY LTS 65+,HOMECARE - C&V,2103594353,1000059416
02.12.2022,ADULT SOCIAL CARE,SUPREME CARE SERVICES LTD,867.81,PHY LTS 65+,HOMECARE - C&V,2103594046,1000059416
02.12.2022,ADULT SOCIAL CARE,SUPREME CARE SERVICES LTD,870.91,PHY LTS 65+,HOMECARE - C&V,2103594223,1000059416
02.12.2022,ADULT SOCIAL CARE,SUPREME CARE SERVICES LTD,875.57,PHY LTS 65+,HOMECARE - C&V,2103594219,1000059416
02.12.2022,ADULT SOCIAL CARE,SUPREME CARE SERVICES LTD,875.59,PHY LTS 65+,HOMECARE - C&V,2103594227,1000059416
02.12.2022,ADULT SOCIAL CARE,SUPREME CARE SERVICES LTD,893.56,PHY LTS 65+,HOMECARE - C&V,2103594010,1000059416
02.12.2022,ADULT SOCIAL CARE,SUPREME CARE SERVICES LTD,893.96,PHY LTS 65+,HOMECARE - C&V,2103594078,1000059416
02.12.2022,ADULT SOCIAL CARE,SUPREME CARE SERVICES LTD,893.98,PHY LTS 65+,HOMECARE - C&V,2103594340,1000059416
02.12.2022,ADULT SOCIAL CARE,SUPREME CARE SERVICES LTD,894.16,PHY LTS 65+,HOMECARE - C&V,2103594132,1000059416
02.12.2022,ADULT SOCIAL CARE,SUPREME CARE SERVICES LTD,897.77,PHY LTS 65+,HOMECARE - C&V,2103594317,1000059416
02.12.2022,ADULT SOCIAL CARE,SUPREME CARE SERVICES LTD,898.61,PHY LTS 65+,HOMECARE - C&V,2103594035,1000059416
02.12.2022,ADULT SOCIAL CARE,SUPREME CARE SERVICES LTD,901.45,PHY LTS 65+,HOMECARE - C&V,2103594028,1000059416
02.12.2022,ADULT SOCIAL CARE,SUPREME CARE SERVICES LTD,903.28,PHY LTS 65+,HOMECARE - C&V,2103594057,1000059416
02.12.2022,ADULT SOCIAL CARE,SUPREME CARE SERVICES LTD,907.82,PHY LTS 65+,HOMECARE - C&V,2103594150,1000059416
02.12.2022,ADULT SOCIAL CARE,SUPREME CARE SERVICES LTD,908.45,PHY LTS 65+,HOMECARE - C&V,2103594084,1000059416
02.12.2022,ADULT SOCIAL CARE,SUPREME CARE SERVICES LTD,910.32,PHY LTS 65+,HOMECARE - C&V,2103594279,1000059416
02.12.2022,ADULT SOCIAL CARE,SUPREME CARE SERVICES LTD,913.88,PHY LTS 65+,HOMECARE - C&V,2103594024,1000059416
02.12.2022,ADULT SOCIAL CARE,SUPREME CARE SERVICES LTD,919.92,PHY LTS 65+,HOMECARE - C&V,2103594153,1000059416
02.12.2022,ADULT SOCIAL CARE,SUPREME CARE SERVICES LTD,930.03,PHY LTS 65+,HOMECARE - C&V,2103594016,1000059416
02.12.2022,ADULT SOCIAL CARE,SUPREME CARE SERVICES LTD,932.80,PHY LTS 65+,HOMECARE - C&V,2103593979,1000059416
02.12.2022,ADULT SOCIAL CARE,SUPREME CARE SERVICES LTD,934.70,PHY LTS 65+,HOMECARE - C&V,2103594220,1000059416
02.12.2022,ADULT SOCIAL CARE,SUPREME CARE SERVICES LTD,940.09,PHY LTS 65+,HOMECARE - C&V,2103594280,1000059416
02.12.2022,ADULT SOCIAL CARE,SUPREME CARE SERVICES LTD,954.11,PHY LTS 65+,HOMECARE - C&V,2103593977,1000059416
02.12.2022,ADULT SOCIAL CARE,SUPREME CARE SERVICES LTD,955.85,PHY LTS 65+,HOMECARE - C&V,2103594170,1000059416
02.12.2022,ADULT SOCIAL CARE,SUPREME CARE SERVICES LTD,958.36,PHY LTS 65+,HOMECARE - C&V,2103594371,1000059416
02.12.2022,ADULT SOCIAL CARE,SUPREME CARE SERVICES LTD,985.42,PHY LTS 65+,HOMECARE - C&V,2103594277,1000059416
02.12.2022,ADULT SOCIAL CARE,SUPREME CARE SERVICES LTD,986.18,PHY LTS 65+,HOMECARE - C&V,2103593964,1000059416
02.12.2022,ADULT SOCIAL CARE,SUPREME CARE SERVICES LTD,"1,005.54",PHY LTS 65+,HOMECARE - C&V,2103594190,1000059416
02.12.2022,ADULT SOCIAL CARE,SUPREME CARE SERVICES LTD,"1,014.44",PHY LTS 65+,HOMECARE - C&V,2103594248,1000059416
02.12.2022,ADULT SOCIAL CARE,SUPREME CARE SERVICES LTD,"1,018.47",PHY LTS 65+,HOMECARE - C&V,2103594103,1000059416
02.12.2022,ADULT SOCIAL CARE,SUPREME CARE SERVICES LTD,"1,027.54",PHY LTS 65+,HOMECARE - C&V,2103594359,1000059416
02.12.2022,ADULT SOCIAL CARE,SUPREME CARE SERVICES LTD,"1,029.27",PHY LTS 65+,HOMECARE - C&V,2103593985,1000059416
02.12.2022,ADULT SOCIAL CARE,SUPREME CARE SERVICES LTD,"1,032.25",PHY LTS 65+,HOMECARE - C&V,2103594208,1000059416
02.12.2022,ADULT SOCIAL CARE,SUPREME CARE SERVICES LTD,"1,032.97",PHY LTS 65+,HOMECARE - C&V,2103593975,1000059416
02.12.2022,ADULT SOCIAL CARE,SUPREME CARE SERVICES LTD,"1,036.69",PHY LTS 65+,HOMECARE - C&V,2103594053,1000059416
02.12.2022,ADULT SOCIAL CARE,SUPREME CARE SERVICES LTD,"1,041.57",PHY LTS 65+,HOMECARE - C&V,2103594302,1000059416
02.12.2022,ADULT SOCIAL CARE,SUPREME CARE SERVICES LTD,"1,055.22",PHY LTS 65+,HOMECARE - C&V,2103594180,1000059416
02.12.2022,ADULT SOCIAL CARE,SUPREME CARE SERVICES LTD,"1,082.76",PHY LTS 65+,HOMECARE - C&V,2103593982,1000059416
02.12.2022,ADULT SOCIAL CARE,SUPREME CARE SERVICES LTD,"1,082.93",PHY LTS 65+,HOMECARE - C&V,2103594191,1000059416
02.12.2022,ADULT SOCIAL CARE,SUPREME CARE SERVICES LTD,"1,085.52",PHY LTS 65+,HOMECARE - C&V,2103594310,1000059416
02.12.2022,ADULT SOCIAL CARE,SUPREME CARE SERVICES LTD,"1,093.92",PHY LTS 65+,HOMECARE - C&V,2103594260,1000059416
02.12.2022,ADULT SOCIAL CARE,SUPREME CARE SERVICES LTD,"1,097.10",PHY LTS 65+,HOMECARE - C&V,2103594192,1000059416
02.12.2022,ADULT SOCIAL CARE,SUPREME CARE SERVICES LTD,"1,105.80",PHY LTS 65+,HOMECARE - C&V,2103593991,1000059416
02.12.2022,ADULT SOCIAL CARE,SUPREME CARE SERVICES LTD,"1,111.54",PHY LTS 65+,HOMECARE - C&V,2103594189,1000059416
02.12.2022,ADULT SOCIAL CARE,SUPREME CARE SERVICES LTD,"1,120.56",PHY LTS 65+,HOMECARE - C&V,2103594038,1000059416
02.12.2022,ADULT SOCIAL CARE,SUPREME CARE SERVICES LTD,"1,127.59",PHY LTS 65+,HOMECARE - C&V,2103594194,1000059416
02.12.2022,ADULT SOCIAL CARE,SUPREME CARE SERVICES LTD,"1,131.49",PHY LTS 65+,HOMECARE - C&V,2103594165,1000059416
02.12.2022,ADULT SOCIAL CARE,SUPREME CARE SERVICES LTD,"1,133.45",PHY LTS 65+,HOMECARE - C&V,2103594090,1000059416
02.12.2022,ADULT SOCIAL CARE,SUPREME CARE SERVICES LTD,"1,152.37",PHY LTS 65+,HOMECARE - C&V,2103594251,1000059416
02.12.2022,ADULT SOCIAL CARE,SUPREME CARE SERVICES LTD,"1,152.38",PHY LTS 65+,HOMECARE - C&V,2103593981,1000059416
02.12.2022,ADULT SOCIAL CARE,SUPREME CARE SERVICES LTD,"1,157.39",PHY LTS 65+,HOMECARE - C&V,2103594022,1000059416
02.12.2022,ADULT SOCIAL CARE,SUPREME CARE SERVICES LTD,"1,171.29",PHY LTS 65+,HOMECARE - C&V,2103594056,1000059416
02.12.2022,ADULT SOCIAL CARE,SUPREME CARE SERVICES LTD,"1,177.89",PHY LTS 65+,HOMECARE - C&V,2103593990,1000059416
02.12.2022,ADULT SOCIAL CARE,SUPREME CARE SERVICES LTD,"1,180.67",PHY LTS 65+,HOMECARE - C&V,2103594142,1000059416
02.12.2022,ADULT SOCIAL CARE,SUPREME CARE SERVICES LTD,"1,185.94",PHY LTS 65+,HOMECARE - C&V,2103594126,1000059416
02.12.2022,ADULT SOCIAL CARE,SUPREME CARE SERVICES LTD,"1,216.69",PHY LTS 65+,HOMECARE - C&V,2103594289,1000059416
02.12.2022,ADULT SOCIAL CARE,SUPREME CARE SERVICES LTD,"1,221.26",PHY LTS 65+,HOMECARE - C&V,2103594169,1000059416
02.12.2022,ADULT SOCIAL CARE,SUPREME CARE SERVICES LTD,"1,224.54",PHY LTS 65+,HOMECARE - C&V,2103594206,1000059416
02.12.2022,ADULT SOCIAL CARE,SUPREME CARE SERVICES LTD,"1,227.80",PHY LTS 65+,HOMECARE - C&V,2103594313,1000059416
02.12.2022,ADULT SOCIAL CARE,SUPREME CARE SERVICES LTD,"1,239.68",PHY LTS 65+,HOMECARE - C&V,2103594346,1000059416
02.12.2022,ADULT SOCIAL CARE,SUPREME CARE SERVICES LTD,"1,242.34",PHY LTS 65+,HOMECARE - C&V,2103594366,1000059416
02.12.2022,ADULT SOCIAL CARE,SUPREME CARE SERVICES LTD,"1,255.44",PHY LTS 65+,HOMECARE - C&V,2103594123,1000059416
02.12.2022,ADULT SOCIAL CARE,SUPREME CARE SERVICES LTD,"1,257.98",PHY LTS 65+,HOMECARE - C&V,2103594114,1000059416
02.12.2022,ADULT SOCIAL CARE,SUPREME CARE SERVICES LTD,"1,258.15",PHY LTS 65+,HOMECARE - C&V,2103594015,1000059416
02.12.2022,ADULT SOCIAL CARE,SUPREME CARE SERVICES LTD,"1,261.14",PHY LTS 65+,HOMECARE - C&V,2103594271,1000059416
02.12.2022,ADULT SOCIAL CARE,SUPREME CARE SERVICES LTD,"1,294.92",PHY LTS 65+,HOMECARE - C&V,2103594160,1000059416
02.12.2022,ADULT SOCIAL CARE,SUPREME CARE SERVICES LTD,"1,299.54",PHY LTS 65+,HOMECARE - C&V,2103594250,1000059416
02.12.2022,ADULT SOCIAL CARE,SUPREME CARE SERVICES LTD,"1,317.97",PHY LTS 65+,HOMECARE - C&V,2103594174,1000059416
02.12.2022,ADULT SOCIAL CARE,SUPREME CARE SERVICES LTD,"1,340.86",PHY LTS 65+,HOMECARE - C&V,2103594177,1000059416
02.12.2022,ADULT SOCIAL CARE,SUPREME CARE SERVICES LTD,"1,345.63",PHY LTS 65+,HOMECARE - C&V,2103594335,1000059416
02.12.2022,ADULT SOCIAL CARE,SUPREME CARE SERVICES LTD,"1,365.38",PHY LTS 65+,HOMECARE - C&V,2103594323,1000059416
02.12.2022,ADULT SOCIAL CARE,SUPREME CARE SERVICES LTD,"1,396.44",PHY LTS 65+,HOMECARE - C&V,2103594347,1000059416
02.12.2022,ADULT SOCIAL CARE,SUPREME CARE SERVICES LTD,"1,414.55",PHY LTS 65+,HOMECARE - C&V,2103594369,1000059416
02.12.2022,ADULT SOCIAL CARE,SUPREME CARE SERVICES LTD,"1,420.16",PHY LTS 65+,HOMECARE - C&V,2103594203,1000059416
02.12.2022,ADULT SOCIAL CARE,SUPREME CARE SERVICES LTD,"1,423.88",PHY LTS 65+,HOMECARE - C&V,2103594193,1000059416
02.12.2022,ADULT SOCIAL CARE,SUPREME CARE SERVICES LTD,"1,424.49",PHY LTS 65+,HOMECARE - C&V,2103594292,1000059416
02.12.2022,ADULT SOCIAL CARE,SUPREME CARE SERVICES LTD,"1,440.97",PHY LTS 65+,HOMECARE - C&V,2103594311,1000059416
02.12.2022,ADULT SOCIAL CARE,SUPREME CARE SERVICES LTD,"1,446.91",PHY LTS 65+,HOMECARE - C&V,2103594157,1000059416
02.12.2022,ADULT SOCIAL CARE,SUPREME CARE SERVICES LTD,"1,451.45",PHY LTS 65+,HOMECARE - C&V,2103594218,1000059416
02.12.2022,ADULT SOCIAL CARE,SUPREME CARE SERVICES LTD,"1,479.88",PHY LTS 65+,HOMECARE - C&V,2103594181,1000059416
02.12.2022,ADULT SOCIAL CARE,SUPREME CARE SERVICES LTD,"1,486.55",PHY LTS 65+,HOMECARE - C&V,2103594061,1000059416
02.12.2022,ADULT SOCIAL CARE,SUPREME CARE SERVICES LTD,"1,497.37",PHY LTS 65+,HOMECARE - C&V,2103594330,1000059416
02.12.2022,ADULT SOCIAL CARE,SUPREME CARE SERVICES LTD,"1,512.31",PHY LTS 65+,HOMECARE - C&V,2103594048,1000059416
02.12.2022,ADULT SOCIAL CARE,SUPREME CARE SERVICES LTD,"1,545.94",PHY LTS 65+,HOMECARE - C&V,2103594143,1000059416
02.12.2022,ADULT SOCIAL CARE,SUPREME CARE SERVICES LTD,"1,603.47",PHY LTS 65+,HOMECARE - C&V,2103594079,1000059416
02.12.2022,ADULT SOCIAL CARE,SUPREME CARE SERVICES LTD,"1,649.71",PHY LTS 65+,HOMECARE - C&V,2103594083,1000059416
02.12.2022,ADULT SOCIAL CARE,SUPREME CARE SERVICES LTD,"1,679.86",PHY LTS 65+,HOMECARE - C&V,2103594342,1000059416
02.12.2022,ADULT SOCIAL CARE,SUPREME CARE SERVICES LTD,"1,727.63",PHY LTS 65+,HOMECARE - C&V,2103594358,1000059416
02.12.2022,ADULT SOCIAL CARE,SUPREME CARE SERVICES LTD,"1,764.73",PHY LTS 65+,HOMECARE - C&V,2103594197,1000059416
02.12.2022,ADULT SOCIAL CARE,SUPREME CARE SERVICES LTD,"1,771.68",PHY LTS 65+,HOMECARE - C&V,2103593983,1000059416
02.12.2022,ADULT SOCIAL CARE,SUPREME CARE SERVICES LTD,"1,875.41",PHY LTS 65+,HOMECARE - C&V,2103594164,1000059416
02.12.2022,ADULT SOCIAL CARE,SUPREME CARE SERVICES LTD,"1,985.76",PHY LTS 65+,HOMECARE - C&V,2103594201,1000059416
02.12.2022,ADULT SOCIAL CARE,SUPREME CARE SERVICES LTD,"1,999.58",PHY LTS 65+,HOMECARE - C&V,2103594116,1000059416
02.12.2022,ADULT SOCIAL CARE,SUPREME CARE SERVICES LTD,"2,005.65",PHY LTS 65+,HOMECARE - C&V,2103594125,1000059416
02.12.2022,ADULT SOCIAL CARE,SUPREME CARE SERVICES LTD,"2,008.27",PHY LTS 65+,HOMECARE - C&V,2103594350,1000059416
02.12.2022,ADULT SOCIAL CARE,SUPREME CARE SERVICES LTD,"2,071.21",PHY LTS 65+,HOMECARE - C&V,2103594290,1000059416
02.12.2022,ADULT SOCIAL CARE,SUPREME CARE SERVICES LTD,"2,091.66",PHY LTS 65+,HOMECARE - C&V,2103594006,1000059416
02.12.2022,ADULT SOCIAL CARE,SUPREME CARE SERVICES LTD,"2,145.09",PHY LTS 65+,HOMECARE - C&V,2103594007,1000059416
02.12.2022,ADULT SOCIAL CARE,SUPREME CARE SERVICES LTD,"2,158.66",PHY LTS 65+,HOMECARE - C&V,2103594246,1000059416
02.12.2022,ADULT SOCIAL CARE,SUPREME CARE SERVICES LTD,"2,163.28",PHY LTS 65+,HOMECARE - C&V,2103594101,1000059416
02.12.2022,ADULT SOCIAL CARE,SUPREME CARE SERVICES LTD,"2,170.03",PHY LTS 65+,HOMECARE - C&V,2103594362,1000059416
02.12.2022,ADULT SOCIAL CARE,SUPREME CARE SERVICES LTD,"2,265.85",PHY LTS 65+,HOMECARE - C&V,2103594200,1000059416
02.12.2022,ADULT SOCIAL CARE,SUPREME CARE SERVICES LTD,"2,345.27",PHY LTS 65+,HOMECARE - C&V,2103593986,1000059416
02.12.2022,ADULT SOCIAL CARE,SUPREME CARE SERVICES LTD,"2,372.52",PHY LTS 65+,HOMECARE - C&V,2103594107,1000059416
02.12.2022,ADULT SOCIAL CARE,SUPREME CARE SERVICES LTD,"2,442.90",PHY LTS 65+,HOMECARE - C&V,2103594249,1000059416
02.12.2022,ADULT SOCIAL CARE,SUPREME CARE SERVICES LTD,"2,480.47",PHY LTS 65+,HOMECARE - C&V,2103594207,1000059416
02.12.2022,ADULT SOCIAL CARE,SUPREME CARE SERVICES LTD,"2,494.38",PHY LTS 65+,HOMECARE - C&V,2103594305,1000059416
02.12.2022,ADULT SOCIAL CARE,SUPREME CARE SERVICES LTD,"2,498.62",PHY LTS 65+,HOMECARE - C&V,2103594360,1000059416
02.12.2022,ADULT SOCIAL CARE,SUPREME CARE SERVICES LTD,"2,525.51",PHY LTS 65+,HOMECARE - C&V,2103593973,1000059416
02.12.2022,ADULT SOCIAL CARE,SUPREME CARE SERVICES LTD,"2,643.47",PHY LTS 65+,HOMECARE - C&V,2103593963,1000059416
02.12.2022,ADULT SOCIAL CARE,SUPREME CARE SERVICES LTD,"2,660.67",PHY LTS 65+,HOMECARE - C&V,2103594112,1000059416
02.12.2022,ADULT SOCIAL CARE,SUPREME CARE SERVICES LTD,"2,737.11",PHY LTS 65+,HOMECARE - C&V,2103594133,1000059416
02.12.2022,ADULT SOCIAL CARE,SUPREME CARE SERVICES LTD,"2,758.39",PHY LTS 65+,HOMECARE - C&V,2103594332,1000059416
02.12.2022,ADULT SOCIAL CARE,SUPREME CARE SERVICES LTD,"2,808.72",PHY LTS 65+,HOMECARE - C&V,2103594100,1000059416
02.12.2022,ADULT SOCIAL CARE,SUPREME CARE SERVICES LTD,"2,838.96",PHY LTS 65+,HOMECARE - C&V,2103594303,1000059416
02.12.2022,ADULT SOCIAL CARE,SUPREME CARE SERVICES LTD,"2,865.00",PHY LTS 65+,HOMECARE - C&V,2103594361,1000059416
02.12.2022,ADULT SOCIAL CARE,SUPREME CARE SERVICES LTD,"2,997.10",PHY LTS 65+,HOMECARE - C&V,2103594265,1000059416
02.12.2022,ADULT SOCIAL CARE,SUPREME CARE SERVICES LTD,"3,014.10",PHY LTS 65+,HOMECARE - C&V,2103594254,1000059416
02.12.2022,ADULT SOCIAL CARE,SUPREME CARE SERVICES LTD,"3,303.09",PHY LTS 65+,HOMECARE - C&V,2103593967,1000059416
02.12.2022,ADULT SOCIAL CARE,SUPREME CARE SERVICES LTD,"3,340.54",PHY LTS 65+,HOMECARE - C&V,2103594293,1000059416
02.12.2022,ADULT SOCIAL CARE,SUPREME CARE SERVICES LTD,"3,414.56",PHY LTS 65+,HOMECARE - C&V,2103594318,1000059416
02.12.2022,ADULT SOCIAL CARE,SUPREME CARE SERVICES LTD,"3,640.34",PHY LTS 65+,HOMECARE - C&V,2103594357,1000059416
02.12.2022,ADULT SOCIAL CARE,SUPREME CARE SERVICES LTD,"3,888.89",PHY LTS 65+,HOMECARE - C&V,2103594017,1000059416
02.12.2022,ADULT SOCIAL CARE,SUPREME CARE SERVICES LTD,"4,229.73",PHY LTS 65+,HOMECARE - C&V,2103593996,1000059416
02.12.2022,ADULT SOCIAL CARE,SUPREME CARE SERVICES LTD,"1,022.01",PHY LTS 65+,HOMECARE - SPOT,2103594085,1000059416
02.12.2022,ADULT SOCIAL CARE,HC-ONE LTD (TOWER BRIDGE CARE HOME),541.36,PHY LTS 65+,NURSING PLACEMENTS FEES,2103594392,1000067670
02.12.2022,ADULT SOCIAL CARE,HC-ONE LTD (TOWER BRIDGE CARE HOME),"1,314.43",PHY LTS 65+,RESIDENTIAL CARE,2103594379,1000067670
02.12.2022,ADULT SOCIAL CARE,COUNTRY COURT CARE HOMES 2 LTD,726.39,PHY LTS 65+,"MAND STATUTORY CHARGES, NURSING",2103594411,1000080172
02.12.2022,ADULT SOCIAL CARE,COUNTRY COURT CARE HOMES 2 LTD,"1,450.00",PHY LTS 65+,NURSING PLACEMENTS FEES,2103594417,1000080172
02.12.2022,ADULT SOCIAL CARE,COUNTRY COURT CARE HOMES 2 LTD,"1,595.00",PHY LTS 65+,NURSING PLACEMENTS FEES,2103594399,1000080172
02.12.2022,ADULT SOCIAL CARE,COUNTRY COURT CARE HOMES 2 LTD,"1,885.00",PHY LTS 65+,NURSING PLACEMENTS FEES,2103594400,1000080172
02.12.2022,ADULT SOCIAL CARE,COUNTRY COURT CARE HOMES 2 LTD,"1,885.00",PHY LTS 65+,NURSING PLACEMENTS FEES,2103594431,1000080172
02.12.2022,ADULT SOCIAL CARE,COUNTRY COURT CARE HOMES 2 LTD,"2,755.00",PHY LTS 65+,NURSING PLACEMENTS FEES,2103594389,1000080172
02.12.2022,ADULT SOCIAL CARE,COUNTRY COURT CARE HOMES 2 LTD,"4,862.08",PHY LTS 65+,NURSING PLACEMENTS FEES,2103594409,1000080172
02.12.2022,ADULT SOCIAL CARE,SAGECARE LTD,382.71,PHY LTS 65+,HOMECARE - C&V,2103594488,1000080924
02.12.2022,ADULT SOCIAL CARE,FOXLEY LODGE CARE HOME,"3,428.57",PHY LTS 65+,RESIDENTIAL CARE,2103594390,1000083209
02.12.2022,ADULT SOCIAL CARE,CAREPOINT SERVICES LTD,356.60,PHY LTS 65+,HOMECARE - C&V,2103594374,1000087914
02.12.2022,ADULT SOCIAL CARE,CAREPOINT SERVICES LTD,945.24,PHY LTS 65+,HOMECARE - C&V,2103594373,1000087914
02.12.2022,ADULT SOCIAL CARE,SUPREME CARE SERVICES LTD,719.52,PHY STS 65+,HOMECARE - IC,2103594341,1000059416
02.12.2022,ADULT SOCIAL CARE,SAGECARE LTD,"2,778.32",PHY STS 65+,HOMECARE - IC,2103594489,1000080924
02.12.2022,ADULT SOCIAL CARE,SUPREME CARE SERVICES LTD,576.26,SEN LTS 65+,HOMECARE - C&V,2103594316,1000059416
02.12.2022,ADULT SOCIAL CARE,SUPREME CARE SERVICES LTD,769.49,SEN LTS 65+,HOMECARE - C&V,2103594199,1000059416
02.12.2022,ADULT SOCIAL CARE,SUPREME CARE SERVICES LTD,"1,003.07",SEN LTS 65+,HOMECARE - C&V,2103594128,1000059416
02.12.2022,ADULT SOCIAL CARE,SUPREME CARE SERVICES LTD,"1,105.77",SEN LTS 65+,HOMECARE - C&V,2103594297,1000059416
02.12.2022,ADULT SOCIAL CARE,SUPREME CARE SERVICES LTD,388.98,SOCIAL ISOLATION,HOMECARE - C&V,2103594226,1000059416
02.12.2022,ADULT SOCIAL CARE,SUPREME CARE SERVICES LTD,565.44,SOCIAL ISOLATION,HOMECARE - C&V,2103593995,1000059416
02.12.2022,ADULT SOCIAL CARE,SUPREME CARE SERVICES LTD,617.32,SOCIAL ISOLATION,HOMECARE - C&V,2103594141,1000059416
02.12.2022,ADULT SOCIAL CARE,SUPREME CARE SERVICES LTD,"2,175.52",SOCIAL ISOLATION,HOMECARE - C&V,2103594298,1000059416
02.12.2022,ASSET MANAGEMENT HGF,BRITISH GAS,"1,707.32",CURLEW HOUSE,GAS,5902553748,1000054825
02.12.2022,ASSET MANAGEMENT HGF,RELIANCE HIGH-TECH LTD,"5,396.82",REPAIR AND MAINTENANCE SERVICES,MEDICAL / HEALTH & SAFETY SERVICES,5902554310,1000079374
02.12.2022,CENTRAL FUNCTIONS,WESTMINSTER FORUM PROJECTS LIMITED,260.00,HOME OWNERSHIP,TRAINING,5902554874,1000089130
02.12.2022,CENTRAL FUNCTIONS,DSI BILLING SERVICES LTD,701.48,OPERATIONAL TEAM,POSTAGES,5902554193,1000058640
02.12.2022,CHIEF EXECUTIVE,PARTNERING REGENERATION DEVELOPMENT,"14,000.00",CORPORATE & DEPARTMENTAL EXPENDITURE,CONSULTANTS SERVICES,5902554046,1000087681
02.12.2022,CHILDREN AND ADULT,CBS MAINTENANCE SERVICES LTD,"163,337.96",CAPITAL PS (EDUCATION),CONSTRUCTION,2103592690,3000001518
02.12.2022,CHILDREN AND FAMILIES,REDACTED PERSONAL DATA,520.00,ADOPTION SUPP FUND,EXTERNAL AGENCIES AND BODIES,REDACTED,REDACTED
02.12.2022,CHILDREN AND FAMILIES,REDACTED PERSONAL DATA,300.00,FE SUPPORT,CLIENT TRANSPORT,REDACTED,REDACTED
02.12.2022,CHILDREN AND FAMILIES,REDACTED PERSONAL DATA,300.00,FE SUPPORT,CLIENT TRANSPORT,REDACTED,REDACTED
02.12.2022,CHILDREN AND FAMILIES,REDACTED PERSONAL DATA,300.00,FE SUPPORT,CLIENT TRANSPORT,REDACTED,REDACTED
02.12.2022,CHILDREN AND FAMILIES,REDACTED PERSONAL DATA,739.28,FOSTERING ALLOWANCES,OTHER PAYMENTS FOR CLIENTS,REDACTED,REDACTED
02.12.2022,CHILDREN AND FAMILIES,ZENITH CARS LTD,630.00,P & R CARE TEAM,CLIENT TRANSPORT,5902554978,1000070570
02.12.2022,CHILDREN AND FAMILIES,PURPLE PEBBLES(CHILD CARE) SERVICES,"-1,150.01",SEMI-IND CARELEAVERS,COSTS RECOVERED,2103594509,1000070705
02.12.2022,CHILDREN AND FAMILIES,PURPLE PEBBLES(CHILD CARE) SERVICES,-875.00,SEMI-IND CARELEAVERS,COSTS RECOVERED,2103594505,1000070705
02.12.2022,CHILDREN AND FAMILIES,PURPLE PEBBLES(CHILD CARE) SERVICES,535.71,SEMI-IND CARELEAVERS,EXTERNAL AGENCIES AND BODIES,2103594463,1000070705
02.12.2022,CHILDREN AND FAMILIES,PURPLE PEBBLES(CHILD CARE) SERVICES,"1,928.57",SEMI-IND CARELEAVERS,EXTERNAL AGENCIES AND BODIES,2103594444,1000070705
02.12.2022,CHILDREN AND FAMILIES,PURPLE PEBBLES(CHILD CARE) SERVICES,"2,142.86",SEMI-IND CARELEAVERS,EXTERNAL AGENCIES AND BODIES,2103594439,1000070705
02.12.2022,CHILDREN AND FAMILIES,PURPLE PEBBLES(CHILD CARE) SERVICES,"2,400.00",SEMI-IND CARELEAVERS,EXTERNAL AGENCIES AND BODIES,2103594455,1000070705
02.12.2022,CHILDREN AND FAMILIES,PURPLE PEBBLES(CHILD CARE) SERVICES,"3,428.57",SEMI-IND CARELEAVERS,EXTERNAL AGENCIES AND BODIES,2103594459,1000070705
02.12.2022,CHILDREN AND FAMILIES,PURPLE PEBBLES(CHILD CARE) SERVICES,"3,857.14",SEMI-IND CARELEAVERS,EXTERNAL AGENCIES AND BODIES,2103594445,1000070705
02.12.2022,CHILDREN AND FAMILIES,OUR ROCK LTD,"2,442.86",SEMI-IND CARELEAVERS,EXTERNAL AGENCIES AND BODIES,2103594446,1000088325
02.12.2022,CHILDREN AND FAMILIES,PURPLE PEBBLES(CHILD CARE) SERVICES,"4,071.43",SEMI-IND LAC 16-17,EXTERNAL AGENCIES AND BODIES,2103594474,1000070705
02.12.2022,CHILDREN AND FAMILIES,PURPLE PEBBLES(CHILD CARE) SERVICES,"4,285.71",SEMI-IND LAC 16-17,EXTERNAL AGENCIES AND BODIES,2103594468,1000070705
02.12.2022,CHILDREN AND FAMILIES,REDACTED PERSONAL DATA,280.00,SEMI-IND LAC 16-17,OTHER PAYMENTS FOR CLIENTS,REDACTED,REDACTED
02.12.2022,CHILDREN AND FAMILIES,REDACTED PERSONAL DATA,258.57,SEMI-IND LAC 16-17,OTHER PAYMENTS FOR CLIENTS,REDACTED,REDACTED
02.12.2022,CHILDREN AND FAMILIES,REDACTED PERSONAL DATA,300.00,SEMI-IND LAC 16-17,OTHER PAYMENTS FOR CLIENTS,REDACTED,REDACTED
02.12.2022,CHILDREN AND FAMILIES,REDACTED PERSONAL DATA,"5,731.80",SEMI-IND LAC 16-17,OTHER PAYMENTS FOR CLIENTS,REDACTED,REDACTED
02.12.2022,CHILDREN AND FAMILIES,NURSERIES BY GYMFINITY KIDS MAIDSTONE,528.75,SPECIAL GUARDIANSHIP,OTHER PAYMENTS FOR CLIENTS,5902553696,1000087919
02.12.2022,CHILDREN AND FAMILIES,ZENITH CARS LTD,370.00,TEAM B,CLIENT TRANSPORT,5902554981,1000070570
02.12.2022,CHILDREN AND FAMILIES,ZENITH CARS LTD,550.00,TEAM B,CLIENT TRANSPORT,5902554980,1000070570
02.12.2022,CHILDREN AND FAMILIES,LONDON EARLY YEARS FOUNDATION,519.61,TEAM D,OTHER PAYMENTS FOR CLIENTS,5902554327,1000077919
02.12.2022,CHILDREN AND FAMILIES,PURPLE PEBBLES(CHILD CARE) SERVICES,-894.99,UASC CARELEAVERS,COSTS RECOVERED,2103594507,1000070705
02.12.2022,CHILDREN AND FAMILIES,PURPLE PEBBLES(CHILD CARE) SERVICES,-875.00,UASC CARELEAVERS,COSTS RECOVERED,2103594506,1000070705
02.12.2022,CHILDREN AND FAMILIES,PURPLE PEBBLES(CHILD CARE) SERVICES,-875.00,UASC CARELEAVERS,COSTS RECOVERED,2103594508,1000070705
02.12.2022,CHILDREN AND FAMILIES,PURPLE PEBBLES(CHILD CARE) SERVICES,"1,500.00",UASC CARELEAVERS,EXTERNAL AGENCIES AND BODIES,2103594462,1000070705
02.12.2022,CHILDREN AND FAMILIES,PURPLE PEBBLES(CHILD CARE) SERVICES,"1,542.86",UASC CARELEAVERS,EXTERNAL AGENCIES AND BODIES,2103594437,1000070705
02.12.2022,CHILDREN AND FAMILIES,PURPLE PEBBLES(CHILD CARE) SERVICES,"1,607.14",UASC CARELEAVERS,EXTERNAL AGENCIES AND BODIES,2103594438,1000070705
02.12.2022,CHILDREN AND FAMILIES,PURPLE PEBBLES(CHILD CARE) SERVICES,"1,607.14",UASC CARELEAVERS,EXTERNAL AGENCIES AND BODIES,2103594466,1000070705
02.12.2022,CHILDREN AND FAMILIES,PURPLE PEBBLES(CHILD CARE) SERVICES,"1,692.86",UASC CARELEAVERS,EXTERNAL AGENCIES AND BODIES,2103594440,1000070705
02.12.2022,CHILDREN AND FAMILIES,PURPLE PEBBLES(CHILD CARE) SERVICES,"1,714.29",UASC CARELEAVERS,EXTERNAL AGENCIES AND BODIES,2103594454,1000070705
02.12.2022,CHILDREN AND FAMILIES,PURPLE PEBBLES(CHILD CARE) SERVICES,"1,714.29",UASC CARELEAVERS,EXTERNAL AGENCIES AND BODIES,2103594464,1000070705
02.12.2022,CHILDREN AND FAMILIES,PURPLE PEBBLES(CHILD CARE) SERVICES,"1,757.14",UASC CARELEAVERS,EXTERNAL AGENCIES AND BODIES,2103594451,1000070705
02.12.2022,CHILDREN AND FAMILIES,PURPLE PEBBLES(CHILD CARE) SERVICES,"1,821.43",UASC CARELEAVERS,EXTERNAL AGENCIES AND BODIES,2103594449,1000070705
02.12.2022,CHILDREN AND FAMILIES,PURPLE PEBBLES(CHILD CARE) SERVICES,"1,821.43",UASC CARELEAVERS,EXTERNAL AGENCIES AND BODIES,2103594450,1000070705
02.12.2022,CHILDREN AND FAMILIES,PURPLE PEBBLES(CHILD CARE) SERVICES,"1,885.71",UASC CARELEAVERS,EXTERNAL AGENCIES AND BODIES,2103594434,1000070705
02.12.2022,CHILDREN AND FAMILIES,PURPLE PEBBLES(CHILD CARE) SERVICES,"1,885.71",UASC CARELEAVERS,EXTERNAL AGENCIES AND BODIES,2103594441,1000070705
02.12.2022,CHILDREN AND FAMILIES,PURPLE PEBBLES(CHILD CARE) SERVICES,"1,885.71",UASC CARELEAVERS,EXTERNAL AGENCIES AND BODIES,2103594442,1000070705
02.12.2022,CHILDREN AND FAMILIES,PURPLE PEBBLES(CHILD CARE) SERVICES,"1,885.71",UASC CARELEAVERS,EXTERNAL AGENCIES AND BODIES,2103594465,1000070705
02.12.2022,CHILDREN AND FAMILIES,PURPLE PEBBLES(CHILD CARE) SERVICES,"1,917.86",UASC CARELEAVERS,EXTERNAL AGENCIES AND BODIES,2103594436,1000070705
02.12.2022,CHILDREN AND FAMILIES,PURPLE PEBBLES(CHILD CARE) SERVICES,"1,928.57",UASC CARELEAVERS,EXTERNAL AGENCIES AND BODIES,2103594433,1000070705
02.12.2022,CHILDREN AND FAMILIES,PURPLE PEBBLES(CHILD CARE) SERVICES,"1,928.57",UASC CARELEAVERS,EXTERNAL AGENCIES AND BODIES,2103594460,1000070705
02.12.2022,CHILDREN AND FAMILIES,PURPLE PEBBLES(CHILD CARE) SERVICES,"2,035.71",UASC CARELEAVERS,EXTERNAL AGENCIES AND BODIES,2103594447,1000070705
02.12.2022,CHILDREN AND FAMILIES,PURPLE PEBBLES(CHILD CARE) SERVICES,"2,142.85",UASC CARELEAVERS,EXTERNAL AGENCIES AND BODIES,2103594443,1000070705
02.12.2022,CHILDREN AND FAMILIES,PURPLE PEBBLES(CHILD CARE) SERVICES,"3,428.57",UASC CARELEAVERS,EXTERNAL AGENCIES AND BODIES,2103594448,1000070705
02.12.2022,CHILDREN AND FAMILIES,PURPLE PEBBLES(CHILD CARE) SERVICES,"3,428.57",UASC CARELEAVERS,EXTERNAL AGENCIES AND BODIES,2103594456,1000070705
02.12.2022,CHILDREN AND FAMILIES,PURPLE PEBBLES(CHILD CARE) SERVICES,"1,821.43",UASC LAC 16-17,EXTERNAL AGENCIES AND BODIES,2103594480,1000070705
02.12.2022,CHILDREN AND FAMILIES,PURPLE PEBBLES(CHILD CARE) SERVICES,"1,821.43",UASC LAC 16-17,EXTERNAL AGENCIES AND BODIES,2103594481,1000070705
02.12.2022,CHILDREN AND FAMILIES,PURPLE PEBBLES(CHILD CARE) SERVICES,"3,428.57",UASC LAC 16-17,EXTERNAL AGENCIES AND BODIES,2103594475,1000070705
02.12.2022,CHILDREN AND FAMILIES,PURPLE PEBBLES(CHILD CARE) SERVICES,"3,625.00",UASC LAC 16-17,EXTERNAL AGENCIES AND BODIES,2103594471,1000070705
02.12.2022,CHILDREN AND FAMILIES,PURPLE PEBBLES(CHILD CARE) SERVICES,"3,750.00",UASC LAC 16-17,EXTERNAL AGENCIES AND BODIES,2103594472,1000070705
02.12.2022,CHILDREN AND FAMILIES,PURPLE PEBBLES(CHILD CARE) SERVICES,"3,857.14",UASC LAC 16-17,EXTERNAL AGENCIES AND BODIES,2103594473,1000070705
02.12.2022,CHILDREN AND FAMILIES,PURPLE PEBBLES(CHILD CARE) SERVICES,300.00,UASC LAC 16-17,OTHER PAYMENTS FOR CLIENTS,2103594478,1000070705
02.12.2022,CHILDREN AND FAMILIES,PURPLE PEBBLES(CHILD CARE) SERVICES,300.00,UASC LAC 16-17,OTHER PAYMENTS FOR CLIENTS,2103594482,1000070705
02.12.2022,CHILDREN AND FAMILIES,OUR ROCK LTD,"3,214.29",UASC LAC 16-17,EXTERNAL AGENCIES AND BODIES,2103594476,1000088325
02.12.2022,CHILDREN AND FAMILIES,LONDON BUBBLE THEATRE COMPANY,"8,571.00",YJS MGMT & SUPPORT,EXTERNAL AGENCIES AND BODIES,5902553724,11022517
02.12.2022,COMMUNITIES,CHANGE GROW LIVE SERVICES LTD,"285,060.00",ADULT SM SERVICE,OTHER CONTRACTORS,5902554968,1000082721
02.12.2022,COMMUNITIES,TOWER HAMLETS YOUTH SPORT FOUNDATION,"6,189.00",NORTH EAST,GRANTS,5902553999,1000087465
02.12.2022,COMMUNITIES,REDACTED PERSONAL DATA,350.00,UKRAINIAN PROGRAMME,GRANTS,REDACTED,REDACTED
02.12.2022,COMMUNITIES,REDACTED PERSONAL DATA,"1,750.00",UKRAINIAN PROGRAMME,GRANTS,REDACTED,REDACTED
02.12.2022,COMMUNITIES,REDACTED PERSONAL DATA,"1,400.00",UKRAINIAN PROGRAMME,GRANTS,REDACTED,REDACTED
02.12.2022,COMMUNITIES,REDACTED PERSONAL DATA,350.00,UKRAINIAN PROGRAMME,GRANTS,REDACTED,REDACTED
02.12.2022,COMMUNITIES,REDACTED PERSONAL DATA,350.00,UKRAINIAN PROGRAMME,GRANTS,REDACTED,REDACTED
02.12.2022,CUSTOMER EXPERIENCE,ROL SOLUTIONS LTD,"2,285.00",PECKHAM MSSP,HARDWARE,5902554863,1000069512
02.12.2022,EDUCATION,JESUS COLLEGE CAMBRIDGE,"9,250.00",SCHOLARSHIP SCHEME,EXTERNAL AGENCIES AND BODIES,5902554829,1000086434
02.12.2022,ENVIRONMENT AND LEISURE,INTO SERVICES LONDON LTD,800.00,CAPITAL PS (LEISURE),CONSTRUCTION MAIN CONTRACT,5902554889,1000059328
02.12.2022,ENVIRONMENT DIRECTORATE,BARRETTINE ENVIRONMENTAL HEALTH,264.98,COMMERCIAL PEST CONTROL WORKS,MATERIALS,5902554949,1000050556
02.12.2022,ENVIRONMENT DIRECTORATE,BARRETTINE ENVIRONMENTAL HEALTH,624.00,COMMERCIAL PEST CONTROL WORKS,MATERIALS,5902554941,1000050556
02.12.2022,ENVIRONMENT DIRECTORATE,BARRETTINE ENVIRONMENTAL HEALTH,"1,669.03",COMMERCIAL PEST CONTROL WORKS,MATERIALS,5902554936,1000050556
02.12.2022,ENVIRONMENT DIRECTORATE,FAROL LTD,"3,190.00",ICC SPECIAL TEAMS,EQUIPMENT PURCHASE & REPAIR,5902554901,1000078940
02.12.2022,ENVIRONMENT DIRECTORATE,BARRETTINE ENVIRONMENTAL HEALTH,331.05,PEST CONTROL,MATERIALS,5902554937,1000050556
02.12.2022,ENVIRONMENT DIRECTORATE,1ENV SOLUTIONS LTD,318.87,PEST CONTROL,MATERIALS,5902554925,1000075410
02.12.2022,ENVIRONMENT DIRECTORATE,1ENV SOLUTIONS LTD,"1,836.46",PEST CONTROL,MATERIALS,5902554935,1000075410
02.12.2022,ENVIRONMENT DIRECTORATE,SECURE-A-FIELD LTD,705.00,PROJECT SUPPORT,STATIONERY,5902553988,1000072371
02.12.2022,ENVIRONMENT DIRECTORATE,CYCLE CONFIDENT LTD,"25,738.70","ROAD SAFETY EDUCATION,TRAINING&PUBLICITY",PROFESSIONAL FEES,5902553731,1000070228
02.12.2022,ENVIRONMENT DIRECTORATE,ELLIOT ENVIRONMENTAL LTD,500.00,STREET CLEANING-GENERAL,OTHER CONTRACTORS,5902554884,1000047392
02.12.2022,ENVIRONMENT DIRECTORATE,ELLIOT ENVIRONMENTAL LTD,500.00,STREET CLEANING-GENERAL,OTHER CONTRACTORS,5902554885,1000047392
02.12.2022,ENVIRONMENT DIRECTORATE,ELLIOT ENVIRONMENTAL LTD,"1,000.00",STREET CLEANING-GENERAL,OTHER CONTRACTORS,5902554887,1000047392
02.12.2022,F & C S EXCLUDING CORPORATE BUDGETS,CIVICA UK LTD,"12,079.22",ADMINISTRATIVE SUPPORT,SOFTWARE,5902554876,1730625
02.12.2022,F & C S EXCLUDING CORPORATE BUDGETS,POST OFFICE LTD,"5,290.11",COST OF LIVING FUND,MISCELLANEOUS EXPENSES,5902554915,1000069858
02.12.2022,F & C S EXCLUDING CORPORATE BUDGETS,POST OFFICE LTD,"17,440.66",DISCRETIONARY RATES REBATE,MISCELLANEOUS EXPENSES,5902554914,1000069858
02.12.2022,F & C S EXCLUDING CORPORATE BUDGETS,POST OFFICE LTD,"2,512.92",HOUSEHOLD SUPPORT GRANT,MISCELLANEOUS EXPENSES,5902554877,1000069858
02.12.2022,HOUSING,OCO LIMITED,"152,061.75",PAYMENTS CONTROL ACCOUNT - OCO,I-WORLD CONTRACTORS HOLDING ACCOUNT,5902554902,1006066
02.12.2022,HOUSING,PENNINGTON CHOICES LTD,"17,710.37",PENNINGTON,I-WORLD CONTRACTORS HOLDING ACCOUNT,5902554891,1000067888
02.12.2022,HOUSING,SMITH & BYFORD LTD,"130,701.25",SMITH AND BYFORD,I-WORLD CONTRACTORS HOLDING ACCOUNT,5902554903,11212119
02.12.2022,HOUSING GENERAL FUND,UNIFIED CONSULTANCY LTD,"2,400.00",CAPITAL PS (HOUSING GF),ICT ACQUISITION,5902554866,1000081827
02.12.2022,HOUSING HRA,SHARPE PRITCHARD LLP,481.50,CAPITAL PS (HRA),CONSTRUCTION FEES - ARCHITECT,5902554970,1790085
02.12.2022,HOUSING HRA,SHARPE PRITCHARD LLP,360.00,CAPITAL PS (HRA),CONSTRUCTION FEES - LEGAL,5902554961,1790085
02.12.2022,HOUSING HRA,A & H PEST CONTROL LTD,"8,470.00",CAPITAL PS (HRA),CONSTRUCTION FEES  - EXTERNAL,5902554322,11230875
02.12.2022,HOUSING HRA,COTTRELL AND VERMEULEN ARCH LTD,375.00,CAPITAL PS (HRA),CONSTRUCTION FEES  - EXTERNAL,5902553882,1000012119
02.12.2022,HOUSING HRA,COTTRELL AND VERMEULEN ARCH LTD,"2,100.00",CAPITAL PS (HRA),CONSTRUCTION FEES  - EXTERNAL,5902553887,1000012119
02.12.2022,HOUSING HRA,COTTRELL AND VERMEULEN ARCH LTD,"3,600.00",CAPITAL PS (HRA),CONSTRUCTION FEES - ARCHITECT,5902553893,1000012119
02.12.2022,HOUSING HRA,VPS (UK) LTD,-451.56,CAPITAL PS (HRA),CONSTRUCTION FEES  - EXTERNAL,2103594569,1000040614
02.12.2022,HOUSING HRA,VPS (UK) LTD,-451.56,CAPITAL PS (HRA),CONSTRUCTION FEES  - EXTERNAL,2103594572,1000040614
02.12.2022,HOUSING HRA,VPS (UK) LTD,-382.94,CAPITAL PS (HRA),CONSTRUCTION FEES  - EXTERNAL,2103594570,1000040614
02.12.2022,HOUSING HRA,VPS (UK) LTD,382.94,CAPITAL PS (HRA),CONSTRUCTION FEES  - EXTERNAL,2103594568,1000040614
02.12.2022,HOUSING HRA,VPS (UK) LTD,451.56,CAPITAL PS (HRA),CONSTRUCTION FEES  - EXTERNAL,2103594566,1000040614
02.12.2022,HOUSING HRA,VPS (UK) LTD,451.56,CAPITAL PS (HRA),CONSTRUCTION FEES  - EXTERNAL,2103594571,1000040614
02.12.2022,HOUSING HRA,NATHAN LICHFIELD & PARTNERS,"1,250.00",CAPITAL PS (HRA),CONSTRUCTION FEES,5902554138,1000043324
02.12.2022,HOUSING HRA,CARTER JONAS LLP,500.00,CAPITAL PS (HRA),LAND & BUILDINGS ACQUISITION FEES,5902554957,1000073124
02.12.2022,HOUSING HRA,CARTER JONAS LLP,500.00,CAPITAL PS (HRA),LAND & BUILDINGS ACQUISITION FEES,5902554957,1000073124
02.12.2022,HOUSING HRA,STUDIO DEKKA LTD,"3,995.00",CAPITAL PS (HRA),CONSTRUCTION FEES - ARCHITECT,5902554859,1000079577
02.12.2022,HOUSING HRA,OLDEN PROPERTY CONSULTING LTD,750.00,CAPITAL PS (HRA),LAND & BUILDINGS ACQUISITION FEES,5902554860,1000081793
02.12.2022,HOUSING HRA,SILVER DCC LTD,538.97,CAPITAL PS (HRA),CONSTRUCTION FEES  - EXTERNAL,5902554201,1000087546
02.12.2022,HOUSING HRA,SILVER DCC LTD,538.97,CAPITAL PS (HRA),CONSTRUCTION FEES  - EXTERNAL,5902554268,1000087546
02.12.2022,HOUSING HRA,SILVER DCC LTD,"1,225.90",CAPITAL PS (HRA),CONSTRUCTION FEES  - EXTERNAL,5902554864,1000087546
02.12.2022,HOUSING HRA,SILVER DCC LTD,"1,315.18",CAPITAL PS (HRA),CONSTRUCTION FEES  - EXTERNAL,5902554229,1000087546
02.12.2022,HOUSING HRA,SILVER DCC LTD,"1,342.65",CAPITAL PS (HRA),CONSTRUCTION FEES  - EXTERNAL,5902554827,1000087546
02.12.2022,HOUSING HRA,NIBLOCK (BUILDERS) LTD,"154,049.11",CAPITAL PS (HRA),CONSTRUCTION MAIN CONTRACT -CERTIFICATED,2103592686,3000000235
02.12.2022,HOUSING HRA,GUILDMORE LTD,"122,820.73",CAPITAL PS (HRA),CONSTRUCTION MAIN CONTRACT,2103593932,3000002150
02.12.2022,HOUSING HRA,LAND REGISTRY,276.00,HOME OWNERSHIP,PROFESSIONAL FEES,6102061473,DIRECT DEBIT PAYMENT
02.12.2022,HR & OT,CENTRE FOR GOVERNANCE & SCRUTINY,"1,800.00",MEMBER DEVELOPMENT,TRAINING,5902554966,1000076455
02.12.2022,LEISURE DIRECTORATE,OLMEC,"7,250.00",ARTS PROJECT,GRANTS,5902554065,1000086225
02.12.2022,LEISURE DIRECTORATE,WEST MALLING FLOWERS,"2,960.00",CEMETERIES,MATERIALS,5902554875,1000079594
02.12.2022,LEISURE DIRECTORATE,RH WROUGHT IRON,"1,500.00",SOUTHWARK AREA TEAM,OTHER R&M,2103592915,3000000680
02.12.2022,LEISURE DIRECTORATE,GRISTWOOD & TOMS LTD,"7,000.00",TREES PRINCIPAL ROADS,OTHER CONTRACTORS,5902554897,1000028580
02.12.2022,LEISURE DIRECTORATE,GRISTWOOD & TOMS LTD,"3,780.00",TREES PRINCIPAL ROADS,TREE MAINTENANCE,5902554894,1000028580
02.12.2022,LEISURE DIRECTORATE,GRISTWOOD & TOMS LTD,"5,705.00",TREES PRINCIPAL ROADS,TREE MAINTENANCE,5902554895,1000028580
02.12.2022,LEISURE DIRECTORATE,GRISTWOOD & TOMS LTD,"6,020.00",TREES PRINCIPAL ROADS,TREE MAINTENANCE,5902554893,1000028580
02.12.2022,LEISURE DIRECTORATE,GRISTWOOD & TOMS LTD,"9,305.00",TREES PRINCIPAL ROADS,TREE MAINTENANCE,5902554896,1000028580
02.12.2022,PUBLIC HEALTH,BRITISH SAFETY COUNCIL,"2,095.00",COVID-19 CONTROL OUTBREAK MGMNT.FUND,TRAINING,5902553894,1001553
02.12.2022,PUBLIC HEALTH,BLUE ELEPHANT THEATRE LTD,"3,826.50",COVID-19 CONTROL OUTBREAK MGMNT.FUND,EXTERNAL AGENCIES AND BODIES,5902554042,1000015417
02.12.2022,PUBLIC HEALTH,ANGELS BREAKFAST AND AFTERSCHOOL CLUB,"12,992.00",HOLIDAY ACTIVITIES & FOOD,EXTERNAL AGENCIES AND BODIES,5902553624,1000087659
02.12.2022,RESIDENT SERVICES,BRITISH GAS TRADING LTD,-757.81,OPERATIONS/OFFICES ACCOMMODATION,ELECTRICITY,5902554747,1000055977
02.12.2022,RESIDENT SERVICES,BRITISH GAS TRADING LTD,-654.71,OPERATIONS/OFFICES ACCOMMODATION,ELECTRICITY,5902554747,1000055977
02.12.2022,RESIDENT SERVICES,BRITISH GAS TRADING LTD,"1,030.04",OPERATIONS/OFFICES ACCOMMODATION,ELECTRICITY,5902554318,1000055977
02.12.2022,RESIDENT SERVICES,BRITISH GAS TRADING LTD,"1,705.04",OPERATIONS/OFFICES ACCOMMODATION,ELECTRICITY,5902554318,1000055977
02.12.2022,RESIDENT SERVICES,SITTARA LTD,"16,702.20",TA PLACEMENTS,EXTERNAL AGENCIES AND BODIES,5902554873,1000080857
02.12.2022,RESIDENT SERVICES HGF,SMARTLET ESTATES LTD,"2,381.94",HOMELESS PROJECTS,GRANTS,5902554963,1000086913
02.12.2022,RESIDENT SERVICES HGF,RELIANCE RESIDENTIAL,475.00,NIGHTLY TA (NSC),EXTERNAL AGENCIES AND BODIES,5902554926,1000084814
02.12.2022,RESIDENT SERVICES HGF,RELIANCE RESIDENTIAL,"1,814.50",NIGHTLY TA (NSC),EXTERNAL AGENCIES AND BODIES,5902554934,1000084814
02.12.2022,RESIDENT SERVICES HGF,JAIRZINHO ETTIENNE,"3,985.71",PRIVATE SECTOR LEASING,EXTERNAL AGENCIES AND BODIES,2103593946,1000089078
02.12.2022,RESIDENT SERVICES HGF,JAIRZINHO ETTIENNE,"2,000.00",PRIVATE SECTOR LEASING,GRANTS,2103593947,1000089078
02.12.2022,RESIDENT SERVICES HGF,KOLA OLAMIJU,"5,001.43",PSL (SOCIAL LETTINGS),EXTERNAL AGENCIES AND BODIES,2103593948,1000089013
02.12.2022,RESIDENT SERVICES HGF,S & G PROPERTIES,"1,064.56",PSL PLACEMENTS,EXTERNAL AGENCIES AND BODIES,5902554964,1000005082
02.12.2022,SBS OPERATIONS,AKW MEDI-CARE LTD,254.82,SBS AIDS AND ADAPTATIONS,MATERIALS,5902554717,1000047103
02.12.2022,SBS OPERATIONS,AKW MEDI-CARE LTD,291.85,SBS AIDS AND ADAPTATIONS,MATERIALS,5902554715,1000047103
02.12.2022,SBS OPERATIONS,AKW MEDI-CARE LTD,355.81,SBS AIDS AND ADAPTATIONS,MATERIALS,5902554717,1000047103
02.12.2022,SBS OPERATIONS,AKW MEDI-CARE LTD,355.81,SBS AIDS AND ADAPTATIONS,MATERIALS,5902554718,1000047103
02.12.2022,SBS SUPPORT,E & E BUILDING SERVICES LTD,"1,502.00",SBS - HOLDING ACCOUNT,OTHER CONTRACTORS,2103593931,3000001176
02.12.2022,STRATEGIC FINANCING BUDGETS,COMENSURA LTD,"864,772.29",WEEKLY PAYMENTS,AGENCY STAFF,5902554952,1000051261
03.12.2022,ADULT SOCIAL CARE,REALITY FAMILY SUPPORT SERVICES LTD,862.40,PHY LTS 18-64,OTHER PAYMENTS FOR CLIENTS,5902554329,1000087878
03.12.2022,ASSET MANAGEMENT,ARMINA LTD,"2,810.52",DISREPAIR,BUILDING R&M,2103593761,3000002121
03.12.2022,ASSET MANAGEMENT,JUDGE AND PRIESTLEY SOLICITORS,"1,065.00",DISREPAIR,BUILDING R&M,5902554152,1472217
03.12.2022,CHILDREN AND FAMILIES,REALITY FAMILY SUPPORT SERVICES LTD,369.60,EDGE OF CARE DECIS�S,OTHER PAYMENTS FOR CLIENTS,5902554329,1000087878
03.12.2022,CHILDREN AND FAMILIES,LINDA COBB,500.00,SSCP TRAINING,TRAINING,5902554529,1000029191
03.12.2022,COMMUNITIES,REDACTED PERSONAL DATA,"3,675.36",AFGHAN RESETTLEMENT,ACCOMMODATION CHARGES,REDACTED,REDACTED
03.12.2022,EDUCATION,CARDIFF UNIVERSITY,"9,000.00",SCHOLARSHIP SCHEME,EXTERNAL AGENCIES AND BODIES,5902554825,1000077155
03.12.2022,ENVIRONMENT AND LEISURE,ADVANCED TRANSPORT RESEARCH LTD,"2,895.00",CAPITAL PS (LEISURE),CONSTRUCTION,5902553993,1000070527
03.12.2022,ENVIRONMENT AND LEISURE,SOUTH DOCK MARINA BERTHHOLDERS,"1,750.00",CAPITAL PS (LEISURE),CAPITAL GRANTS,5902554476,1000071974
03.12.2022,ENVIRONMENT AND LEISURE,RESTORATIVE JUSTICE FOR ALL,"10,000.00",CAPITAL PS (LEISURE),CAPITAL GRANTS,5902554194,1000081455
03.12.2022,ENVIRONMENT AND LEISURE,BUXTON BUILDING CONTRACTORS LTD,"175,075.00",CAPITAL PS (LEISURE),CONSTRUCTION MAIN CONTRACT -CERTIFICATED,2103592689,3000000830
03.12.2022,ENVIRONMENT AND LEISURE,WARWICK LANDSCAPING LTD,"92,258.77",CAPITAL PS (LEISURE),CONSTRUCTION,2103592913,3000001705
03.12.2022,ENVIRONMENT AND LEISURE,VINCENTSTOKES LTD,"33,891.59",CAPITAL PS (LEISURE),CONSTRUCTION MAIN CONTRACT -CERTIFICATED,2103592259,3000001965
03.12.2022,ENVIRONMENT DIRECTORATE,RED R DESIGN,600.00,HIGHWAYS DEVELOPMENT,RECHARGE HOUSING,5902554126,1000035984
03.12.2022,ENVIRONMENT DIRECTORATE,RED R DESIGN,"1,060.00",HIGHWAYS DEVELOPMENT,RECHARGE HOUSING,5902554126,1000035984
03.12.2022,HOUSING,LIFTEC LIFTS LTD,"114,948.63",PAYMENTS CONTROL ACCOUNT - LIFTEC,I-WORLD CONTRACTORS HOLDING ACCOUNT,5902554137,1000057278
03.12.2022,HOUSING GENERAL FUND,PINNICALE BUILDING SERVICES LIMITED,"10,780.00",CAPITAL PS (HOUSING GF),CAPITAL GRANTS,5902554183,1000082308
03.12.2022,HOUSING GENERAL FUND,ASBESTOS SOLUTIONS LIMITED,"5,250.00",CAPITAL PS (REGEN),CONSTRUCTION MAIN CONTRACT,2103592914,3000002114
03.12.2022,HOUSING GENERAL FUND,UNIFIED CONSULTANCY LTD,"4,922.57",CAPITAL PS (STRAT SERV),ICT ACQUISITION,5902554471,1000081827
03.12.2022,HOUSING HRA,ARCADIS CONSULTING (UK) LIMITED,"6,908.00",CAPITAL PS (HRA),CONSTRUCTION FEES  - EXTERNAL,5902554834,1000089038
03.12.2022,LEISURE DIRECTORATE,P D CONSTRUCTION LTD,"3,290.00",SOUTHWARK AREA TEAM,OTHER R&M,2103591936,4001883
03.12.2022,PUBLIC HEALTH,CITY HOPE CHURCH,"3,248.00",HOLIDAY ACTIVITIES & FOOD,EXTERNAL AGENCIES AND BODIES,5902554592,1000035253
03.12.2022,PUBLIC HEALTH,"CHRIST APOSTOLIC CHURCH, SURREY DOC","9,280.00",HOLIDAY ACTIVITIES & FOOD,EXTERNAL AGENCIES AND BODIES,5902554101,1000051903
03.12.2022,PUBLIC HEALTH,ACTIVITIES 4 U,"4,640.00",HOLIDAY ACTIVITIES & FOOD,EXTERNAL AGENCIES AND BODIES,5902554097,1000071005
03.12.2022,PUBLIC HEALTH,CAMELOT PRIMARY SCHOOL,"18,560.00",HOLIDAY ACTIVITIES & FOOD,EXTERNAL AGENCIES AND BODIES,5902554094,5001000014
03.12.2022,REGENERATION,LIVE-IN CARETAKERS LTD,"2,288.00",22 SHAND STREET,SECURITY SERVICES,5902554190,1000088236
04.12.2022,ADULT SOCIAL CARE,BRESLIN CONSTRUCTION LTD,"3,540.91",86-88 BELLENDEN ROAD,BUILDING R&M,2103592691,3000001948
04.12.2022,ASSET MANAGEMENT HGF,DISPOSABLES AND CATERING SUPPLIES LTD,"1,077.40",160 TOOLEY ST.,BUILDING R&M,5902554191,1000082869
04.12.2022,CENTRAL FUNCTIONS,DSI BILLING SERVICES LTD,357.05,OPERATIONAL TEAM,POSTAGES,5902554613,1000058640
04.12.2022,CHILDREN AND FAMILIES,THE APPROPRIATE ADULT SERVICE LTD,850.00,YJS MGMT & SUPPORT,EXTERNAL AGENCIES AND BODIES,5902554338,1000047682
04.12.2022,CUSTOMER EXPERIENCE HGF,ARCH CONSULTING,"7,252.16",SAP OPERATING COSTS,SOFTWARE,5902554781,1000056829
04.12.2022,CUSTOMER EXPERIENCE HGF,ARCH CONSULTING,"24,388.63",SAP OPERATING COSTS,SOFTWARE,5902554781,1000056829
04.12.2022,EDUCATION,DANIELLE JANE THOMAS,500.00,GOVERNOR SUPPORT,CONSULTANTS SERVICES,5902554247,1000089105
04.12.2022,EDUCATION,JOHN GUEST SAFEGUARDING LIMITED,325.00,GOVERNOR SUPPORT,CONSULTANTS SERVICES,5902554280,1000065465
04.12.2022,ENVIRONMENT AND LEISURE,STREET TREE LTD,"11,585.00",CAPITAL PS (LEISURE),CONSTRUCTION,5902554182,1000055901
04.12.2022,ENVIRONMENT AND LEISURE,CHELSEA AND WESTMINSTER HOSPITAL,485.10,SEXUAL HEALTH - STI,MEDICAL / HEALTH & SAFETY SERVICES,5902554916,1000072053
04.12.2022,ENVIRONMENT AND LEISURE,CHELSEA AND WESTMINSTER HOSPITAL,"7,699.01",SEXUAL HEALTH - STI,MEDICAL / HEALTH & SAFETY SERVICES,5902554919,1000072053
04.12.2022,ENVIRONMENT AND LEISURE,BIONICAL SOLUTIONS LIMITED,"5,415.00",STOP SMOKING,EXTERNAL AGENCIES AND BODIES,5902554646,1000084774
04.12.2022,HOUSING HRA,CALFORD SEADEN LLP,"1,865.00",CAPITAL PS (HRA),CONSTRUCTION FEES,5902554315,1061592
04.12.2022,HOUSING HRA,CALFORD SEADEN LLP,"2,750.00",CAPITAL PS (HRA),CONSTRUCTION FEES,5902554244,1061592
04.12.2022,HOUSING HRA,CALFORD SEADEN (HEALTH & SAFETY) LTD,810.00,CAPITAL PS (HRA),CONSTRUCTION FEES,5902554144,1097125
04.12.2022,HOUSING HRA,SALTASH ENTERPRISES LTD,"120,922.90",CAPITAL PS (HRA),CONSTRUCTION MAIN CONTRACT -CERTIFICATED,2103593765,4013605
04.12.2022,HOUSING HRA,CRS DRAWING AND DESIGN LTD,"17,280.00",CAPITAL PS (HRA),CONSTRUCTION,5902554651,1000085835
04.12.2022,HOUSING HRA,STEPHEN TAYLOR ARCHITECTS LTD,"19,916.00",CAPITAL PS (REGEN),CONSTRUCTION FEES  - EXTERNAL,5902552571,1000083590
04.12.2022,LEISURE DIRECTORATE,BIBLIOTHECA LTD,773.41,STOCK SERVICES,STATIONERY,5902554197,1000069536
04.12.2022,LEISURE DIRECTORATE,CONSTELLIA PUBLIC LIMITED,256.44,TREES PRINCIPAL ROADS,TREE MAINTENANCE,5902554237,1000088137
04.12.2022,PUBLIC HEALTH,WESTMINSTER HOUSE YOUTH CLUB,"3,480.00",HOLIDAY ACTIVITIES & FOOD,EXTERNAL AGENCIES AND BODIES,5902554241,11088645
04.12.2022,SOUTHWARK BUILDING SERVICES,PILKINGTON UK LTD,"1,816.60",STORES/LOGISTICS,CREDITORS -GR/IR CLEARING ACCOUNT,5902554795,11224519
04.12.2022,SOUTHWARK BUILDING SERVICES,PILKINGTON UK LTD,"2,053.50",STORES/LOGISTICS,CREDITORS -GR/IR CLEARING ACCOUNT,5902554794,11224519
04.12.2022,SOUTHWARK BUILDING SERVICES,PILKINGTON UK LTD,"3,294.15",STORES/LOGISTICS,CREDITORS -GR/IR CLEARING ACCOUNT,5902554796,11224519
05.12.2022,ADULT SOCIAL CARE,LONDON CARE LTD,357.90,EXTRA CARE CONTRACT,HOMECARE - C&V,5902555139,1000003398
05.12.2022,ADULT SOCIAL CARE,LONDON CARE LTD,"7,067.46",EXTRA CARE CONTRACT,HOMECARE - C&V,5902555123,1000003398
05.12.2022,ADULT SOCIAL CARE,LONDON CARE LTD,"40,212.87",EXTRA CARE CONTRACT,HOMECARE - C&V,5902555148,1000003398
05.12.2022,ADULT SOCIAL CARE,LONDON CARE LTD,"47,106.85",EXTRA CARE CONTRACT,HOMECARE - C&V,5902555187,1000003398
05.12.2022,ADULT SOCIAL CARE,CONTACT PROFESSIONALS,684.00,LD LTS 18-64,SUPPORTED LIVING,2103594561,1000057263
05.12.2022,ADULT SOCIAL CARE,CONTACT PROFESSIONALS,912.00,LD LTS 18-64,SUPPORTED LIVING,2103594560,1000057263
05.12.2022,ADULT SOCIAL CARE,CARE OUTLOOK LTD,"1,005.40",MH LTS 18-64,HOMECARE - C&V,2103594542,1000064508
05.12.2022,ADULT SOCIAL CARE,CARE OUTLOOK LTD,255.92,PHY LTS 18-64,HOMECARE - C&V,2103594544,1000064508
05.12.2022,ADULT SOCIAL CARE,CARE OUTLOOK LTD,530.12,PHY LTS 18-64,HOMECARE - C&V,2103594550,1000064508
05.12.2022,ADULT SOCIAL CARE,CARE OUTLOOK LTD,676.36,PHY LTS 18-64,HOMECARE - C&V,2103594541,1000064508
05.12.2022,ADULT SOCIAL CARE,CARE OUTLOOK LTD,"1,544.66",PHY LTS 18-64,HOMECARE - C&V,2103594556,1000064508
05.12.2022,ADULT SOCIAL CARE,CARE OUTLOOK LTD,"2,764.85",PHY LTS 18-64,HOMECARE - C&V,2103594533,1000064508
05.12.2022,ADULT SOCIAL CARE,CARE OUTLOOK LTD,"3,308.68",PHY LTS 18-64,HOMECARE - C&V,2103594539,1000064508
05.12.2022,ADULT SOCIAL CARE,CARE OUTLOOK LTD,447.86,PHY LTS 65+,HOMECARE - C&V,2103594553,1000064508
05.12.2022,ADULT SOCIAL CARE,CARE OUTLOOK LTD,493.56,PHY LTS 65+,HOMECARE - C&V,2103594555,1000064508
05.12.2022,ADULT SOCIAL CARE,CARE OUTLOOK LTD,511.84,PHY LTS 65+,HOMECARE - C&V,2103594552,1000064508
05.12.2022,ADULT SOCIAL CARE,CARE OUTLOOK LTD,548.40,PHY LTS 65+,HOMECARE - C&V,2103594534,1000064508
05.12.2022,ADULT SOCIAL CARE,CARE OUTLOOK LTD,607.81,PHY LTS 65+,HOMECARE - C&V,2103594543,1000064508
05.12.2022,ADULT SOCIAL CARE,CARE OUTLOOK LTD,639.80,PHY LTS 65+,HOMECARE - C&V,2103594549,1000064508
05.12.2022,ADULT SOCIAL CARE,CARE OUTLOOK LTD,639.80,PHY LTS 65+,HOMECARE - C&V,2103594554,1000064508
05.12.2022,ADULT SOCIAL CARE,CARE OUTLOOK LTD,735.77,PHY LTS 65+,HOMECARE - C&V,2103594540,1000064508
05.12.2022,ADULT SOCIAL CARE,CARE OUTLOOK LTD,786.04,PHY LTS 65+,HOMECARE - C&V,2103594551,1000064508
05.12.2022,ADULT SOCIAL CARE,CARE OUTLOOK LTD,"1,096.80",PHY LTS 65+,HOMECARE - C&V,2103594535,1000064508
05.12.2022,ADULT SOCIAL CARE,CARE OUTLOOK LTD,"1,188.20",PHY LTS 65+,HOMECARE - C&V,2103594538,1000064508
05.12.2022,ADULT SOCIAL CARE,CARE OUTLOOK LTD,"1,343.58",PHY LTS 65+,HOMECARE - C&V,2103594548,1000064508
05.12.2022,ADULT SOCIAL CARE,CARE OUTLOOK LTD,"2,527.21",PHY LTS 65+,HOMECARE - C&V,2103594537,1000064508
05.12.2022,ASSET MANAGEMENT,PELLINGS LLP,"1,250.00",REPAIRS OPERATIONS,BUILDING R&M,5902555120,1009262
05.12.2022,ASSET MANAGEMENT HGF,DIGITAL ID LTD T/A ESSENTRA SECURITY,"1,030.85",160 TOOLEY ST.,BUILDING R&M,5902555081,1000025760
05.12.2022,ASSET MANAGEMENT HGF,GREENHAM TRADING LTD,789.92,FM SERVICES BY INTERSERVE,INTEGRATED FACILITIES MANAGEMENT CONTRACT,5902555004,1000006610
05.12.2022,ASSET MANAGEMENT HGF,GREENHAM TRADING LTD,"2,026.43",FM SERVICES BY INTERSERVE,INTEGRATED FACILITIES MANAGEMENT CONTRACT,5902555009,1000006610
05.12.2022,ASSET MANAGEMENT HGF,GREENHAM TRADING LTD,"3,086.80",FM SERVICES BY INTERSERVE,INTEGRATED FACILITIES MANAGEMENT CONTRACT,5902555007,1000006610
05.12.2022,CENTRAL FUNCTIONS,AQUEVO LTD,"4,550.00",COMMERCIAL PROPERTIES,BUILDING R&M,5902555026,1000089139
05.12.2022,CENTRAL FUNCTIONS,BRESLIN CONSTRUCTION LTD,420.00,COMMERCIAL PROPERTIES,BUILDING R&M,2103593905,3000001948
05.12.2022,CENTRAL FUNCTIONS,NATALIE FOSTER,"1,012.50",ENVIRONMENTAL ESTATE WORKS,LEGAL FEES & COURT COSTS,2103594521,1000086775
05.12.2022,CENTRAL FUNCTIONS,1ST ACE SECURITY LTD,"39,715.20",LAKANAL (TENANCY),SECURITY SERVICES,5902555108,1000006992
05.12.2022,CHIEF EXECUTIVE,PENNINGTON CHOICES LTD,265.00,CAPITAL PS (REGEN),CONSTRUCTION FEES  - EXTERNAL,5902555119,1000067888
05.12.2022,CHIEF EXECUTIVE,GREENGAGE ENVIROMENTAL LTD,425.00,CAPITAL PS (REGEN),CONSTRUCTION FEES  - EXTERNAL,5902555152,1000086955
05.12.2022,CHILDREN AND ADULT,SOUTH PARK HEATING SERVICES LTD,"1,872.89",CAPITAL PS (EDUCATION),CONSTRUCTION FEES - INTERNAL,5902555055,1000087443
05.12.2022,CHILDREN AND ADULT,PETER COX LTD,750.00,CAPITAL PS (EDUCATION),CONSTRUCTION FEES  - EXTERNAL,5902555210,1000089131
05.12.2022,CHILDREN AND FAMILIES,INDEPENDENT BIA LTD,300.00,ADOPTION SUPP FUND,EXTERNAL AGENCIES AND BODIES,5902555233,1000086264
05.12.2022,CHILDREN AND FAMILIES,TAE PSYCHOLOGY LIMITED,980.00,ADOPTION SUPP FUND,EXTERNAL AGENCIES AND BODIES,5902555214,1000088058
05.12.2022,CHILDREN AND FAMILIES,ALEX VOLOVISKY LTD,400.00,ADOPTION SUPP FUND,EXTERNAL AGENCIES AND BODIES,5902555237,1000088469
05.12.2022,CHILDREN AND FAMILIES,REDACTED PERSONAL DATA,570.00,ADOPTION SUPP FUND,EXTERNAL AGENCIES AND BODIES,REDACTED,REDACTED
05.12.2022,CHILDREN AND FAMILIES,INTERPRETING DIRECT CO (UK) LTD,"4,811.40",CENTRAL SUPPORT,TRANSLATION SERVICES,5902555125,1000070133
05.12.2022,CHILDREN AND FAMILIES,FGC PRACTICE UK LTD,351.00,FAMILY GROUP CONF�S,PROFESSIONAL FEES,5902555230,1000088322
05.12.2022,CHILDREN AND FAMILIES,REVIVE THERAPY LTD,"2,000.00",NEW ASF,EXTERNAL AGENCIES AND BODIES,5902555234,1000086960
05.12.2022,CHILDREN AND FAMILIES,THE THERAPEUTIC CONSULTANTS,440.00,NEW ASF,EXTERNAL AGENCIES AND BODIES,5902555225,1000086961
05.12.2022,CHILDREN AND FAMILIES,TAE PSYCHOLOGY LIMITED,"1,260.00",NEW ASF,EXTERNAL AGENCIES AND BODIES,5902555213,1000088058
05.12.2022,CHILDREN AND FAMILIES,ALEX VOLOVISKY LTD,300.00,NEW ASF,EXTERNAL AGENCIES AND BODIES,5902555235,1000088469
05.12.2022,CHILDREN AND FAMILIES,REDACTED PERSONAL DATA,"2,300.00",NEW ASF,EXTERNAL AGENCIES AND BODIES,REDACTED,REDACTED
05.12.2022,CHILDREN AND FAMILIES,REDACTED PERSONAL DATA,"7,200.00",NEW ASF,EXTERNAL AGENCIES AND BODIES,REDACTED,REDACTED
05.12.2022,CHILDREN AND FAMILIES,REDACTED PERSONAL DATA,300.00,NEW ASF,EXTERNAL AGENCIES AND BODIES,REDACTED,REDACTED
05.12.2022,CHILDREN AND FAMILIES,REDACTED PERSONAL DATA,392.50,NEW ASF,EXTERNAL AGENCIES AND BODIES,REDACTED,REDACTED
05.12.2022,CHILDREN AND FAMILIES,REDACTED PERSONAL DATA,280.00,NEW ASF,EXTERNAL AGENCIES AND BODIES,REDACTED,REDACTED
05.12.2022,CHILDREN AND FAMILIES,REDACTED PERSONAL DATA,330.00,NEW ASF,EXTERNAL AGENCIES AND BODIES,REDACTED,REDACTED
05.12.2022,CHILDREN AND FAMILIES,REDACTED PERSONAL DATA,475.00,NEW ASF,EXTERNAL AGENCIES AND BODIES,REDACTED,REDACTED
05.12.2022,CHILDREN AND FAMILIES,REDACTED PERSONAL DATA,475.00,NEW ASF,EXTERNAL AGENCIES AND BODIES,REDACTED,REDACTED
05.12.2022,CHILDREN AND FAMILIES,REDACTED PERSONAL DATA,390.00,NEW ASF,EXTERNAL AGENCIES AND BODIES,REDACTED,REDACTED
05.12.2022,CHILDREN AND FAMILIES,REDACTED PERSONAL DATA,600.00,NEW ASF,EXTERNAL AGENCIES AND BODIES,REDACTED,REDACTED
05.12.2022,CHILDREN AND FAMILIES,DNA LEGAL LTD,699.00,SFS MGMT & SUPPORT,LEGAL FEES & COURT COSTS,2103594514,1000082533
05.12.2022,CHILDREN AND FAMILIES,DR SAIMA LATIF LTD,608.40,SFS MGMT & SUPPORT,LEGAL FEES & COURT COSTS,2103594515,1000086863
05.12.2022,CHILDREN AND FAMILIES,JD CHILD PROTECTION LTD,"1,085.35",SFS MGMT & SUPPORT,LEGAL FEES & COURT COSTS,2103594518,1000089132
05.12.2022,CHILDREN AND FAMILIES,TOM RESTALL,"1,200.00",SFS MGMT & SUPPORT,LEGAL FEES & COURT COSTS,2103594526,1000063020
05.12.2022,CHILDREN AND FAMILIES,MAX MELSA,575.00,SFS MGMT & SUPPORT,LEGAL FEES & COURT COSTS,2103594520,1000083902
05.12.2022,CHILDREN AND FAMILIES,THEODORE BUNCE,350.00,SFS MGMT & SUPPORT,LEGAL FEES & COURT COSTS,2103594525,1000085585
05.12.2022,COMMUNITIES,CITYGLEN LTD,"23,001.00",NO RECOURSE TO PUBLIC FUNDS,ACCOMMODATION CHARGES,5902555102,1000026239
05.12.2022,COMMUNITIES,CARE OUTLOOK LTD,324.47,NO RECOURSE TO PUBLIC FUNDS,HOMECARE - C&V,2103594558,1000064508
05.12.2022,COMMUNITIES,REDACTED PERSONAL DATA,350.00,UKRAINIAN PROGRAMME,GRANTS,REDACTED,REDACTED
05.12.2022,COMMUNITIES,REDACTED PERSONAL DATA,350.00,UKRAINIAN PROGRAMME,GRANTS,REDACTED,REDACTED
05.12.2022,COMMUNITIES,REDACTED PERSONAL DATA,350.00,UKRAINIAN PROGRAMME,GRANTS,REDACTED,REDACTED
05.12.2022,COMMUNITIES,REDACTED PERSONAL DATA,350.00,UKRAINIAN PROGRAMME,GRANTS,REDACTED,REDACTED
05.12.2022,COMMUNITIES,REDACTED PERSONAL DATA,350.00,UKRAINIAN PROGRAMME,GRANTS,REDACTED,REDACTED
05.12.2022,COMMUNITIES,REDACTED PERSONAL DATA,700.00,UKRAINIAN PROGRAMME,GRANTS,REDACTED,REDACTED
05.12.2022,COMMUNITIES HRA,SHERGROUP LTD,"1,040.00",TRA HALLS (REPAIRS),SECURITY SERVICES,5902555053,1000087977
05.12.2022,COMMUNITIES HRA,SHERGROUP LTD,"1,344.00",TRA HALLS (REPAIRS),SECURITY SERVICES,5902555052,1000087977
05.12.2022,CUSTOMER EXPERIENCE HGF,JONATHAN HOUGH,"1,097.25",CORONER'S,LEGAL FEES & COURT COSTS,2103594519,1000037332
05.12.2022,CUSTOMER EXPERIENCE HGF,LONDON BOROUGH OF BRENT,"96,949.00",SHARED SERVICES,COMMS & COMPUTING CONTRACT CHARGES,5902555162,1000064734
05.12.2022,CUSTOMER EXPERIENCE HGF,LONDON BOROUGH OF BRENT,"165,327.00",SHARED SERVICES,COMMS & COMPUTING CONTRACT CHARGES,5902555160,1000064734
05.12.2022,CUSTOMER EXPERIENCE HGF,LONDON BOROUGH OF BRENT,"381,457.00",SHARED SERVICES,COMMS & COMPUTING CONTRACT CHARGES,5902555162,1000064734
05.12.2022,CUSTOMER EXPERIENCE HGF,LONDON BOROUGH OF BRENT,"508,045.00",SHARED SERVICES,COMMS & COMPUTING CONTRACT CHARGES,5902555160,1000064734
05.12.2022,CUSTOMER EXPERIENCE HGF,LONDON BOROUGH OF BRENT,613.00,TECHNOLOGY,COMMS & COMPUTING CONTRACT CHARGES,5902555160,1000064734
05.12.2022,CUSTOMER EXPERIENCE HGF,LONDON BOROUGH OF BRENT,"2,136.00",TECHNOLOGY,COMMS & COMPUTING CONTRACT CHARGES,5902555160,1000064734
05.12.2022,EDUCATION,MULTI-STORY MUSIC,"2,200.00",LEA MUSIC SERVICE(310) - 5018566,CONSULTANTS SERVICES,5902555018,1000086196
05.12.2022,ENVIRONMENT AND LEISURE,ALBERTA T&RA,900.00,CAPITAL PS (LEISURE),CAPITAL GRANTS,5902555014,1446939
05.12.2022,ENVIRONMENT AND LEISURE,WATERMAN INFRASTRUCTURE & ENVIRONMENT LTD,"1,976.45",CAPITAL PS (LEISURE),CONSTR'N SUB CONTRACT - NON CERTIFICATED,5902554870,1000060529
05.12.2022,ENVIRONMENT AND LEISURE,WATERMAN INFRASTRUCTURE & ENVIRONMENT LTD,"3,160.60",CAPITAL PS (LEISURE),CONSTR'N SUB CONTRACT - NON CERTIFICATED,5902554872,1000060529
05.12.2022,ENVIRONMENT AND LEISURE,WATERMAN INFRASTRUCTURE & ENVIRONMENT LTD,"3,545.20",CAPITAL PS (LEISURE),CONSTR'N SUB CONTRACT - NON CERTIFICATED,5902554842,1000060529
05.12.2022,ENVIRONMENT AND LEISURE,WATERMAN INFRASTRUCTURE & ENVIRONMENT LTD,"6,302.00",CAPITAL PS (LEISURE),CONSTR'N SUB CONTRACT - NON CERTIFICATED,5902554956,1000060529
05.12.2022,ENVIRONMENT AND LEISURE,PRICE ARTHUR LTD,"7,120.00",CAPITAL PS (LEISURE),CONSTRUCTION FEES  - EXTERNAL,5902554468,1000074125
05.12.2022,ENVIRONMENT AND LEISURE,TRACSIS TRAFFIC DATA LTD,295.00,CAPITAL PS (LEISURE),CONSTRUCTION FEES  - EXTERNAL,5902554605,1000079382
05.12.2022,ENVIRONMENT AND LEISURE,HOMERTON UNIVERSITY HOSPITAL NHS FOUNDATION TRUST,"21,944.94",SEXUAL HEALTH - STI,MEDICAL / HEALTH & SAFETY SERVICES,5902555040,1000075435
05.12.2022,ENVIRONMENT DIRECTORATE,1ENV SOLUTIONS LTD,"1,960.73",COMMERCIAL PEST CONTROL WORKS,MATERIALS,5902554923,1000075410
05.12.2022,ENVIRONMENT DIRECTORATE,DAWSON RENTALS BUS & COACH LTD,"1,455.65",COMMERCIAL VEH CTRL A/C,HIRED VEHICLES,5902555172,1000042174
05.12.2022,ENVIRONMENT DIRECTORATE,DAWSON RENTALS SWEEPERS,"5,038.00",COMMERCIAL VEH CTRL A/C,HIRED VEHICLES,5902555179,1000068168
05.12.2022,ENVIRONMENT DIRECTORATE,ENTERPRISE FLEX E RENT,765.80,COMMERCIAL VEH CTRL A/C,HIRED VEHICLES,5902555205,1000069585
05.12.2022,ENVIRONMENT DIRECTORATE,DAWSONGROUP VANS LTD,485.18,COMMERCIAL VEH CTRL A/C,HIRED VEHICLES,5902555217,1000082230
05.12.2022,ENVIRONMENT DIRECTORATE,DAWSONGROUP VANS LTD,500.18,COMMERCIAL VEH CTRL A/C,HIRED VEHICLES,5902555222,1000082230
05.12.2022,ENVIRONMENT DIRECTORATE,SPALDINGS (UK) LTD,641.08,GROUNDS MAINTENANCE - GENERAL,MATERIALS,5902555033,1907384
05.12.2022,ENVIRONMENT DIRECTORATE,SOUTHWARK NEWSPAPER LTD,948.00,HIGHWAYS DEVELOPMENT,MARKETING & PUBLICITY SERVICES,5902555062,1556957
05.12.2022,ENVIRONMENT DIRECTORATE,SOUTHWARK NEWSPAPER LTD,"1,752.00",HIGHWAYS DEVELOPMENT,MARKETING & PUBLICITY SERVICES,5902555058,1556957
05.12.2022,ENVIRONMENT DIRECTORATE,GARY GRANT,"10,000.00",LICENSING,LEGAL FEES & COURT COSTS,2103594517,1000056929
05.12.2022,ENVIRONMENT DIRECTORATE,DR MICHAEL J WATTS LIMITED,"1,136.40",SASBU,LEGAL FEES & COURT COSTS,2103594516,1000088963
05.12.2022,ENVIRONMENT DIRECTORATE,WATERMAN INFRASTRUCTURE & ENVIRONMENT LTD,"3,302.00",STRUCTURES MINOR ROADS,HIGHWAYS TERM CONTRACT,5902554868,1000060529
05.12.2022,F & C S EXCLUDING CORPORATE BUDGETS,BDO LLP,"26,455.00",INTERNAL AUDIT CONTRACTS,PAYMENTS FOR FINANCIAL SERVICES,5902554478,1000057898
05.12.2022,F & C S EXCLUDING CORPORATE BUDGETS,FAMILY FUND TRADING LTD,"25,000.00",SESS,OTHER PAYMENTS FOR CLIENTS,5902555164,1000071092
05.12.2022,HOUSING,ARMSTRONG YORK,"2,756.55",PAYMENTS CONTROL ACCOUNT-ARMSTRONG YORKE,I-WORLD CONTRACTORS HOLDING ACCOUNT,5902555066,1000058092
05.12.2022,HOUSING GENERAL FUND,LEADTEC LIMITED,"3,825.00",CAPITAL PS (STRAT SERV),ICT ACQUISITION,5902555136,1000088992
05.12.2022,HOUSING GENERAL FUND,LONDON BOROUGH OF BRENT,"132,207.00",CAPITAL PS (STRAT SERV),ICT ACQUISITION,5902555160,1000064734
05.12.2022,HOUSING GENERAL FUND,LONDON BOROUGH OF BRENT,"162,053.00",CAPITAL PS (STRAT SERV),ICT ACQUISITION,5902555160,1000064734
05.12.2022,HOUSING HRA,BAILY  GARNER LLP,"3,224.85",CAPITAL PS (HRA),CONSTRUCTION FEES - EMPLOYERS AGENT,5902555012,1000663
05.12.2022,HOUSING HRA,BAILY  GARNER LLP,"7,433.60",CAPITAL PS (HRA),CONSTRUCTION FEES - EMPLOYERS AGENT,5902555022,1000663
05.12.2022,HOUSING HRA,PELLINGS LLP,"4,202.30",CAPITAL PS (HRA),CONSTRUCTION FEES  - EXTERNAL,5902555015,1009262
05.12.2022,HOUSING HRA,PELLINGS LLP,"12,137.93",CAPITAL PS (HRA),CONSTRUCTION FEES  - EXTERNAL,5902555013,1009262
05.12.2022,HOUSING HRA,SHARPE PRITCHARD LLP,567.00,CAPITAL PS (HRA),CONSTRUCTION FEES - LEGAL,5902555061,1790085
05.12.2022,HOUSING HRA,SHARPE PRITCHARD LLP,811.60,CAPITAL PS (HRA),CONSTRUCTION FEES - LEGAL,5902555063,1790085
05.12.2022,HOUSING HRA,SHARPE PRITCHARD LLP,489.20,CAPITAL PS (HRA),LAND & BUILDINGS ACQUISITION FEES,5902555079,1790085
05.12.2022,HOUSING HRA,A & E ELKINS LTD,"742,134.24",CAPITAL PS (HRA),CONSTRUCTION MAIN CONTRACT -CERTIFICATED,2103593764,4012501
05.12.2022,HOUSING HRA,VPS (UK) LTD,285.12,CAPITAL PS (HRA),CONSTRUCTION FEES  - EXTERNAL,5902555135,1000040614
05.12.2022,HOUSING HRA,VPS (UK) LTD,285.12,CAPITAL PS (HRA),CONSTRUCTION FEES  - EXTERNAL,5902555138,1000040614
05.12.2022,HOUSING HRA,VPS (UK) LTD,285.12,CAPITAL PS (HRA),CONSTRUCTION FEES  - EXTERNAL,5902555150,1000040614
05.12.2022,HOUSING HRA,VPS (UK) LTD,319.12,CAPITAL PS (HRA),CONSTRUCTION FEES  - EXTERNAL,2103594578,1000040614
05.12.2022,HOUSING HRA,VPS (UK) LTD,319.12,CAPITAL PS (HRA),CONSTRUCTION FEES  - EXTERNAL,2103594580,1000040614
05.12.2022,HOUSING HRA,VPS (UK) LTD,319.12,CAPITAL PS (HRA),CONSTRUCTION FEES  - EXTERNAL,2103594581,1000040614
05.12.2022,HOUSING HRA,VPS (UK) LTD,336.20,CAPITAL PS (HRA),CONSTRUCTION FEES  - EXTERNAL,5902555155,1000040614
05.12.2022,HOUSING HRA,VPS (UK) LTD,356.40,CAPITAL PS (HRA),CONSTRUCTION FEES  - EXTERNAL,5902555144,1000040614
05.12.2022,HOUSING HRA,VPS (UK) LTD,376.30,CAPITAL PS (HRA),CONSTRUCTION FEES  - EXTERNAL,2103594577,1000040614
05.12.2022,HOUSING HRA,VPS (UK) LTD,398.90,CAPITAL PS (HRA),CONSTRUCTION FEES  - EXTERNAL,2103594579,1000040614
05.12.2022,HOUSING HRA,VPS (UK) LTD,"2,419.30",CAPITAL PS (HRA),CONSTRUCTION FEES  - EXTERNAL,5902555159,1000040614
05.12.2022,HOUSING HRA,DUCTCLEAN (UK) LIMITED,"10,875.00",CAPITAL PS (HRA),CONSTRUCTION,5902555116,1000062478
05.12.2022,HOUSING HRA,DUCTCLEAN (UK) LIMITED,"36,425.00",CAPITAL PS (HRA),CONSTRUCTION,5902555116,1000062478
05.12.2022,HOUSING HRA,BELL PHILLIPS ARCHITECTS LTD,"19,880.00",CAPITAL PS (HRA),CONSTRUCTION FEES,5902555054,1000069307
05.12.2022,HOUSING HRA,HTA DESIGN LLP,"8,500.00",CAPITAL PS (HRA),CONSTRUCTION FEES  - EXTERNAL,5902555078,1000074662
05.12.2022,HOUSING HRA,WALWORTH HOMES LTD,"46,489.00",CAPITAL PS (HRA),CONSTRUCTION FEES  - EXTERNAL,5902555158,1000079197
05.12.2022,HOUSING HRA,SHARON HOSEGOOD ASSOCIATES LTD,390.00,CAPITAL PS (HRA),CONSTRUCTION FEES  - EXTERNAL,5902555023,1000086568
05.12.2022,HOUSING HRA,SHARON HOSEGOOD ASSOCIATES LTD,600.00,CAPITAL PS (HRA),CONSTRUCTION FEES  - EXTERNAL,5902555023,1000086568
05.12.2022,HOUSING HRA,SILVER DCC LTD,"2,445.94",CAPITAL PS (HRA),CONSTRUCTION FEES  - EXTERNAL,5902555077,1000087546
05.12.2022,HOUSING HRA,PRB ESTATES LTD,"4,496.00",CAPITAL PS (HRA),CONSTRUCTION,2103594573,3000001691
05.12.2022,HOUSING HRA,DAVID ROGERSON,600.00,CAPITAL PS (REGEN),CONSTRUCTION FEES  - EXTERNAL,5902555196,1753617
05.12.2022,HR & OT,ANGELINA OSBORNE,500.00,WOMEN�S NETWORK,TRAINING,5902555011,1000056182
05.12.2022,LEISURE DIRECTORATE,QUADRON SERVICES LIMITED,300.00,BURGESS AREA TEAM,GROUNDS MAINTENANCE,5902554520,1000066528
05.12.2022,LEISURE DIRECTORATE,WESTMINSTER WASTE,746.00,CEMETERIES,OTHER CONTRACTORS,5902555074,1000080933
05.12.2022,LEISURE DIRECTORATE,WESTMINSTER WASTE,868.20,CEMETERIES,OTHER CONTRACTORS,5902555087,1000080933
05.12.2022,LEISURE DIRECTORATE,RH WROUGHT IRON,890.00,DULWICH AREA TEAM,OTHER R&M,2103593903,3000000680
05.12.2022,LEISURE DIRECTORATE,QUADRON SERVICES LIMITED,"1,194.52",SOUTHWARK AREA TEAM,GROUNDS MAINTENANCE,5902554462,1000066528
05.12.2022,LEISURE DIRECTORATE,QUADRON SERVICES LIMITED,"4,898.86",SOUTHWARK AREA TEAM,GROUNDS MAINTENANCE,5902554464,1000066528
05.12.2022,LEISURE DIRECTORATE,C S G (USHERS) LTD,"1,835.00",TREES TERM CONTRACT,TREE MAINTENANCE,5902554805,1000073203
05.12.2022,LEISURE DIRECTORATE,C S G (USHERS) LTD,"17,805.50",TREES TERM CONTRACT,TREE MAINTENANCE,5902554804,1000073203
05.12.2022,PLANNING AND TRANSPORT,SOUTHWARK NEWSPAPER LTD,504.00,DEV MGT ADMIN & INCOME,MARKETING & PUBLICITY SERVICES,5902555016,1556957
05.12.2022,PLANNING AND TRANSPORT,GVA GRIMLEY LTD T/A AVISON YOUNG,"16,000.00",MAJOR APPLICATIONS,PROFESSIONAL FEES,5902555242,1000016057
05.12.2022,PUBLIC HEALTH,FIGHT FOR CHANGE FOUNDATION,"4,387.50",COVID-19 CONTROL OUTBREAK MGMNT.FUND,EXTERNAL AGENCIES AND BODIES,5902555039,1000064516
05.12.2022,PUBLIC HEALTH,COLOMBO STREET COMMUNITY & SPORTS CENTRE,"3,750.00",COVID-19 CONTROL OUTBREAK MGMNT.FUND,EXTERNAL AGENCIES AND BODIES,5902554480,1000085115
05.12.2022,REGENERATION,RICS,539.00,DIRECTORS OFFICE,SUBSCRIPTIONS,5902555032,1000078821
05.12.2022,REGENERATION,ALLIES AND MORRISON PARTNERSHIP,"2,000.00",PECKHAM/CAMBERWELL SITES - FEES/MPLAN,PROFESSIONAL FEES,5902555097,1000070515
05.12.2022,REGENERATION,RICS,"6,756.00",PROPERTY SERVICES,SUBSCRIPTIONS,5902555032,1000078821
05.12.2022,REGENERATION,RICS,539.00,REGENERATION NORTH M & A,SUBSCRIPTIONS,5902555032,1000078821
05.12.2022,REGENERATION,RICS,"1,239.00",REGENERATION SOUTH M & A,SUBSCRIPTIONS,5902555032,1000078821
05.12.2022,RESIDENT SERVICES,VIBRANT ENERGY MATTERS LTD,634.40,ENERGY MANAGEMENT,PROFESSIONAL FEES,5902555177,1000068154
05.12.2022,RESIDENT SERVICES,NIAMH O'BRIEN,450.00,OPERATIONS/OFFICES ACCOMMODATION,LEGAL FEES & COURT COSTS,2103594522,1000080225
05.12.2022,RESIDENT SERVICES,CHRISTOPHER MCCARTHY,450.00,OPERATIONS/OFFICES ACCOMMODATION,LEGAL FEES & COURT COSTS,2103594511,1000086064
05.12.2022,RESIDENT SERVICES HGF,LIFE SKILLZ CIC,"3,745.58",AFEO,EXTERNAL AGENCIES AND BODIES,5902555038,1000088098
05.12.2022,RESIDENT SERVICES HGF,SMARTLET ESTATES LTD,"2,381.94",HOMELESS PROJECTS,GRANTS,5902555208,1000086913
05.12.2022,RESIDENT SERVICES HGF,DAVID GEORGE HALL,350.00,HOMELESS PROJECTS,LEGAL FEES & COURT COSTS,2103594513,1000059226
05.12.2022,RESIDENT SERVICES HGF,CATHERINE ROWLANDS,"2,500.00",HOMELESS PROJECTS,LEGAL FEES & COURT COSTS,2103594510,1000069104
05.12.2022,RESIDENT SERVICES HGF,SGS UK LTD,"1,477.50",NIGHTLY TA (NSC),CONSULTANTS SERVICES,5902555057,1000037326
05.12.2022,RESIDENT SERVICES HGF,ZFA ACCOMMODATION LTD,-540.81,PSL PLACEMENTS,EXTERNAL AGENCIES AND BODIES,5902555085,1000082620
05.12.2022,RESIDENT SERVICES HGF,ZFA ACCOMMODATION LTD,"176,737.79",PSL PLACEMENTS,EXTERNAL AGENCIES AND BODIES,5902555084,1000082620
05.12.2022,RESIDENT SERVICES HGF,HELP2SUPPORT LIMITED,566.28,RAPID REHOUSING,REMOVAL EXPENSES,5902554308,1000084604
05.12.2022,SBS SUPPORT,TOTALMOBILE LTD,"8,000.00",ICT & COMMUNICATIONS,SOFTWARE,5902554459,1000085502
05.12.2022,SBS SUPPORT,SPECTRA-GLAZE SERVICES,"17,146.82",SBS - HOLDING ACCOUNT,OTHER CONTRACTORS,5902555124,1000077605
05.12.2022,SBS SUPPORT,CRATUS BUILDING SERVICES LIMITED,"109,657.73",SBS - HOLDING ACCOUNT,OTHER CONTRACTORS,2103594574,3000001055
05.12.2022,SBS SUPPORT,LOCKESLEYS ELECTRICAL SERVICES LTD,"1,157.76",SBS - HOLDING ACCOUNT,OTHER CONTRACTORS,2103594576,3000001480
05.12.2022,SBS SUPPORT,CM CONSTRUCT SOLUTIONS LTD,599.35,SBS - HOLDING ACCOUNT,OTHER CONTRACTORS,2103594575,3000002233
05.12.2022,SUSTAINABILITY & BUSINESS DEVELOPMENT,WORKING TRANSITIONS LIMITED,400.00,E & L CHANGE PROGRAMME,TRAINING,5902555002,1000063689
06.12.2022,ADULT SOCIAL CARE,HUNTERSJOY LTD,670.00,ASW - PROFESSIONAL DEVELOPMENT,CONSULTANTS SERVICES,5902555436,1000077343
06.12.2022,ADULT SOCIAL CARE,THE DRIVE CARE HOMES LTD,"14,393.10",DISABILITIES LAC,EXTERNAL AGENCIES AND BODIES,2103594700,1000003889
06.12.2022,ADULT SOCIAL CARE,THE DRIVE CARE HOMES LTD,"2,040.00",DISABILITIES LAC,OTHER PAYMENTS FOR CLIENTS,2103594701,1000003889
06.12.2022,ADULT SOCIAL CARE,NATIONAL FOSTERING AGENCY LTD,"5,815.50",DISABILITIES LAC,EXTERNAL AGENCIES AND BODIES,2103594688,1000038868
06.12.2022,ADULT SOCIAL CARE,FOSTERING SUPPORT GROUP LTD,"1,118.58",DISABILITIES LAC,EXTERNAL AGENCIES AND BODIES,2103594685,1000065830
06.12.2022,ADULT SOCIAL CARE,LONDON CARE LTD,"40,894.59",EXTRA CARE CONTRACT,HOMECARE - C&V,5902555178,1000003398
06.12.2022,ADULT SOCIAL CARE,MEDACS HOMECARE,"1,730.00",LD LTS 18-64,SUPPORTED LIVING,2103594625,11287415
06.12.2022,ADULT SOCIAL CARE,SAGECARE LTD,283.20,PHY LTS 65+,HOMECARE - C&V,2103594639,1000080924
06.12.2022,ADULT SOCIAL CARE,SAGECARE LTD,255.44,PHY STS 65+,HOMECARE - IC,2103594631,1000080924
06.12.2022,ADULT SOCIAL CARE,NISBETS PLC,831.10,SOUTHWARK RESOURCE CENTRE,STATIONERY,5902555434,1414155
06.12.2022,ADULT SOCIAL CARE,METRO HOMECARE LTD,792.00,SPECIALIST CARE,SECTION 17 PAYMENTS TO AGENCIES/CARERS,2103594694,1000070695
06.12.2022,ADULT SOCIAL CARE,METRO HOMECARE LTD,792.00,SPECIALIST CARE,SECTION 17 PAYMENTS TO AGENCIES/CARERS,2103594696,1000070695
06.12.2022,ADULT SOCIAL CARE,METRO HOMECARE LTD,"1,848.00",SPECIALIST CARE,SECTION 17 PAYMENTS TO AGENCIES/CARERS,2103594695,1000070695
06.12.2022,ASSET MANAGEMENT,CHESHIRE ESTATE AND LEGAL LTD,833.33,DISREPAIR,PAYMENTS FOR LEGAL SERVICES,2103594782,1000081908
06.12.2022,ASSET MANAGEMENT,CHESHIRE ESTATE AND LEGAL LTD,"4,166.67",DISREPAIR,PAYMENTS FOR LEGAL SERVICES,2103594775,1000081908
06.12.2022,ASSET MANAGEMENT,SHEILDPAY LIMITED,916.67,DISREPAIR,PAYMENTS FOR LEGAL SERVICES,2103594788,1000083794
06.12.2022,ASSET MANAGEMENT,SJS LEGAL LTD,791.67,DISREPAIR,PAYMENTS FOR LEGAL SERVICES,2103594789,1000083821
06.12.2022,ASSET MANAGEMENT,SJS LEGAL LTD,"2,500.00",DISREPAIR,PAYMENTS FOR LEGAL SERVICES,2103594790,1000083821
06.12.2022,ASSET MANAGEMENT,NNE LAW LIMITED,"1,119.16",DISREPAIR,PAYMENTS FOR LEGAL SERVICES,2103594780,1000087730
06.12.2022,ASSET MANAGEMENT,MCDERMOTT SMITH  LAW LTD,"3,466.84",DISREPAIR,PAYMENTS FOR LEGAL SERVICES,2103594793,1000088449
06.12.2022,ASSET MANAGEMENT,ANTONY HODARI  SOLICITORS,340.00,DISREPAIR,PAYMENTS FOR LEGAL SERVICES,2103594781,1000031040
06.12.2022,ASSET MANAGEMENT,ANTONY HODARI  SOLICITORS,500.00,DISREPAIR,PAYMENTS FOR LEGAL SERVICES,2103594769,1000031040
06.12.2022,ASSET MANAGEMENT,ANTONY HODARI  SOLICITORS,"1,875.00",DISREPAIR,PAYMENTS FOR LEGAL SERVICES,2103594776,1000031040
06.12.2022,ASSET MANAGEMENT,ANTONY HODARI  SOLICITORS,"5,625.00",DISREPAIR,PAYMENTS FOR LEGAL SERVICES,2103594770,1000031040
06.12.2022,ASSET MANAGEMENT,BESTWAY SOLICITORS,"10,000.00",DISREPAIR,PAYMENTS FOR LEGAL SERVICES,2103594791,1000078330
06.12.2022,ASSET MANAGEMENT,BESTWAY SOLICITORS,"13,333.33",DISREPAIR,PAYMENTS FOR LEGAL SERVICES,2103594792,1000078330
06.12.2022,ASSET MANAGEMENT,PROGRESS LAW SOLICITORS,"3,787.10",DISREPAIR,PAYMENTS FOR LEGAL SERVICES,2103594785,1000082154
06.12.2022,ASSET MANAGEMENT,DRISCOLL KINGSTON SOLICITORS,833.33,DISREPAIR,PAYMENTS FOR LEGAL SERVICES,2103594794,1000082357
06.12.2022,ASSET MANAGEMENT,MALONE & WHITE SOLICITORS LTD,"1,800.00",DISREPAIR,PAYMENTS FOR LEGAL SERVICES,2103594786,1000083893
06.12.2022,ASSET MANAGEMENT,BOND TURNER  SOLICITORS,458.33,DISREPAIR,PAYMENTS FOR LEGAL SERVICES,2103594773,1000085362
06.12.2022,ASSET MANAGEMENT,BOND TURNER  SOLICITORS,833.33,DISREPAIR,PAYMENTS FOR LEGAL SERVICES,2103594784,1000085362
06.12.2022,ASSET MANAGEMENT,ASK LEGAL  SOLICITORS,"6,875.00",DISREPAIR,PAYMENTS FOR LEGAL SERVICES,2103594771,1000086317
06.12.2022,ASSET MANAGEMENT,MANSFIELD SOLICITORS & ADVOCATES LTD,"3,333.33",DISREPAIR,PAYMENTS FOR LEGAL SERVICES,2103594787,1000087050
06.12.2022,ASSET MANAGEMENT,P R SCULLY & CO SOLICITORS,"2,259.29",DISREPAIR,PAYMENTS FOR LEGAL SERVICES,2103594772,1000088399
06.12.2022,ASSET MANAGEMENT,HIGH STREET  SOLICITORS,"2,083.33",DISREPAIR,PAYMENTS FOR LEGAL SERVICES,2103594779,1000088784
06.12.2022,ASSET MANAGEMENT,HAMARA SOLICITOR LTD,"1,377.37",DISREPAIR,PAYMENTS FOR LEGAL SERVICES,2103594777,1000088875
06.12.2022,ASSET MANAGEMENT,SLS SOLICITORS,833.33,DISREPAIR,PAYMENTS FOR LEGAL SERVICES,2103594768,1000089011
06.12.2022,ASSET MANAGEMENT,BYRNE LOOBY  PARTNERS (UK) LIMITED,"4,175.00",MAJOR REPAIRS,BUILDING R&M,5902555584,1000087100
06.12.2022,ASSET MANAGEMENT HGF,CASTLE WATER LTD,263.09,160 TOOLEY ST.,WATER,5902555394,1000078867
06.12.2022,ASSET MANAGEMENT HGF,CASTLE WATER LTD,385.37,160 TOOLEY ST.,WATER,5902555394,1000078867
06.12.2022,ASSET MANAGEMENT HGF,OT GROUP LIMITED,-947.10,160 TOOLEY ST.,STATIONERY,5902555571,1000087285
06.12.2022,ASSET MANAGEMENT HGF,OT GROUP LIMITED,"6,264.67",160 TOOLEY ST.,STATIONERY,5902555567,1000087285
06.12.2022,ASSET MANAGEMENT HGF,CASTLE WATER LTD,-345.08,7 TALFOURD ROAD,WATER,5902554117,1000078867
06.12.2022,ASSET MANAGEMENT HGF,CASTLE WATER LTD,"1,546.37",7 TALFOURD ROAD,WATER,5902555402,1000078867
06.12.2022,ASSET MANAGEMENT HGF,CASTLE WATER LTD,"2,448.37",7 TALFOURD ROAD,WATER,5902555402,1000078867
06.12.2022,C&A,ICE CREATES LTD,"-3,700.00",PREP FUNDING,CENTRAL GOVERNMENT,5902555839,1000087665
06.12.2022,C&A,ICE CREATES LTD,"3,700.00",PREP FUNDING,CENTRAL GOVERNMENT,5902555846,1000087665
06.12.2022,CENTRAL FUNCTIONS,ARTHUR J GALLAGHER INSURANCE BROKER,"5,300.00",HOME OWNERSHIP,LEGAL FEES & COURT COSTS,5902555557,1000082644
06.12.2022,CENTRAL FUNCTIONS,ARTHUR J GALLAGHER INSURANCE BROKER,"7,900.00",HOME OWNERSHIP,LEGAL FEES & COURT COSTS,5902555557,1000082644
06.12.2022,CHIEF EXECUTIVE,WALWORTH HOMES LTD,"686,772.20",CAPITAL PS (REGEN),CONST'N MAIN CONTRACT - NON CERTIFICATED,5902555504,1000079197
06.12.2022,CHIEF EXECUTIVE,WALWORTH HOMES LTD,"36,954.06",CAPITAL PS (REGEN),CONSTRUCTION FEES,5902555504,1000079197
06.12.2022,CHIEF EXECUTIVE,BL CW HOLDINGS LTD,762.54,CAPITAL PS (REGEN),CONSTRUCTION FEES  - EXTERNAL,5902555532,1000086680
06.12.2022,CHIEF EXECUTIVE,BL CW HOLDINGS LTD,"25,418.16",CAPITAL PS (REGEN),CONSTRUCTION FEES  - EXTERNAL,5902555530,1000086680
06.12.2022,CHIEF EXECUTIVE,SHERGROUP LTD,"3,360.00",CAPITAL PS (REGEN),CONSTRUCTION SITE COSTS,5902555549,1000087977
06.12.2022,CHILDREN AND FAMILIES,INTERCOUNTRY ADOPTION CENTRE,"5,695.00",ADOPT LONDON SOUTH,EXTERNAL AGENCIES AND BODIES,5902555368,1000035796
06.12.2022,CHILDREN AND FAMILIES,JORDAN AND ASSOCIATES LTD,297.00,ADOPTION SUPP FUND,EXTERNAL AGENCIES AND BODIES,5902555360,1000088103
06.12.2022,CHILDREN AND FAMILIES,THE CITY OF EDINBURGH COUNCIL,"33,871.00",ALS INTER AGENCY,EXTERNAL AGENCIES AND BODIES,5902555372,1000082726
06.12.2022,CHILDREN AND FAMILIES,247 BLUEBELL CARE LIMITED,"24,133.67",CHILDREN�S RESID,RESIDENTIAL CARE,2103594698,1000087186
06.12.2022,CHILDREN AND FAMILIES,247 BLUEBELL CARE LIMITED,"32,462.52",CHILDREN�S RESID,RESIDENTIAL CARE,2103594697,1000087186
06.12.2022,CHILDREN AND FAMILIES,CAMERON & COOPER LIMITED,"19,150.00",CHILDREN�S RESID,RESIDENTIAL CARE,2103594699,1000087598
06.12.2022,CHILDREN AND FAMILIES,TRIPOD PARTNERS LTD,317.60,DIRECTOR OF C&F,PAYMENTS FOR LEGAL SERVICES,5902555344,1000087988
06.12.2022,CHILDREN AND FAMILIES,TRIPOD PARTNERS LTD,457.14,DIRECTOR OF C&F,PAYMENTS FOR LEGAL SERVICES,5902555339,1000087988
06.12.2022,CHILDREN AND FAMILIES,TRIPOD PARTNERS LTD,580.78,DIRECTOR OF C&F,PAYMENTS FOR LEGAL SERVICES,5902555346,1000087988
06.12.2022,CHILDREN AND FAMILIES,TRIPOD PARTNERS LTD,679.24,DIRECTOR OF C&F,PAYMENTS FOR LEGAL SERVICES,5902555340,1000087988
06.12.2022,CHILDREN AND FAMILIES,TRIPOD PARTNERS LTD,715.57,DIRECTOR OF C&F,PAYMENTS FOR LEGAL SERVICES,5902555342,1000087988
06.12.2022,CHILDREN AND FAMILIES,TRIPOD PARTNERS LTD,801.42,DIRECTOR OF C&F,PAYMENTS FOR LEGAL SERVICES,5902555347,1000087988
06.12.2022,CHILDREN AND FAMILIES,TRIPOD PARTNERS LTD,"1,126.95",DIRECTOR OF C&F,PAYMENTS FOR LEGAL SERVICES,5902555338,1000087988
06.12.2022,CHILDREN AND FAMILIES,TRIPOD PARTNERS LTD,"1,681.18",DIRECTOR OF C&F,PAYMENTS FOR LEGAL SERVICES,5902555341,1000087988
06.12.2022,CHILDREN AND FAMILIES,TRIPOD PARTNERS LTD,"2,287.77",DIRECTOR OF C&F,PAYMENTS FOR LEGAL SERVICES,5902555335,1000087988
06.12.2022,CHILDREN AND FAMILIES,TRIPOD PARTNERS LTD,"3,256.54",DIRECTOR OF C&F,PAYMENTS FOR LEGAL SERVICES,5902555343,1000087988
06.12.2022,CHILDREN AND FAMILIES,TRIPOD PARTNERS LTD,"4,141.13",DIRECTOR OF C&F,PAYMENTS FOR LEGAL SERVICES,5902555336,1000087988
06.12.2022,CHILDREN AND FAMILIES,TRIPOD PARTNERS LTD,"6,972.20",DIRECTOR OF C&F,PAYMENTS FOR LEGAL SERVICES,5902555345,1000087988
06.12.2022,CHILDREN AND FAMILIES,FIVE RIVERS CHILD CARE LTD,"3,461.57",FRIENDS & FAMILY FOSTERING,EXTERNAL AGENCIES AND BODIES,2103594691,1000018792
06.12.2022,CHILDREN AND FAMILIES,CHRYSALIS CARE,"5,991.60",FRIENDS & FAMILY FOSTERING,EXTERNAL AGENCIES AND BODIES,2103594670,1000028987
06.12.2022,CHILDREN AND FAMILIES,GREATER LONDON FOSTERING,"3,420.00",FRIENDS & FAMILY FOSTERING,EXTERNAL AGENCIES AND BODIES,2103594665,1000029184
06.12.2022,CHILDREN AND FAMILIES,GREATER LONDON FOSTERING,"3,639.00",FRIENDS & FAMILY FOSTERING,EXTERNAL AGENCIES AND BODIES,2103594669,1000029184
06.12.2022,CHILDREN AND FAMILIES,GREATER LONDON FOSTERING,"4,067.40",FRIENDS & FAMILY FOSTERING,EXTERNAL AGENCIES AND BODIES,2103594667,1000029184
06.12.2022,CHILDREN AND FAMILIES,GREATER LONDON FOSTERING,"4,495.50",FRIENDS & FAMILY FOSTERING,EXTERNAL AGENCIES AND BODIES,2103594664,1000029184
06.12.2022,CHILDREN AND FAMILIES,GREATER LONDON FOSTERING,"4,944.00",FRIENDS & FAMILY FOSTERING,EXTERNAL AGENCIES AND BODIES,2103594692,1000029184
06.12.2022,CHILDREN AND FAMILIES,KASPER FOSTERING,"3,399.90",FRIENDS & FAMILY FOSTERING,EXTERNAL AGENCIES AND BODIES,2103594681,1000036628
06.12.2022,CHILDREN AND FAMILIES,KASPER FOSTERING,"4,490.70",FRIENDS & FAMILY FOSTERING,EXTERNAL AGENCIES AND BODIES,2103594679,1000036628
06.12.2022,CHILDREN AND FAMILIES,KASPER FOSTERING,"5,871.30",FRIENDS & FAMILY FOSTERING,EXTERNAL AGENCIES AND BODIES,2103594683,1000036628
06.12.2022,CHILDREN AND FAMILIES,NATIONAL FOSTERING AGENCY LTD,"3,210.00",FRIENDS & FAMILY FOSTERING,EXTERNAL AGENCIES AND BODIES,2103594673,1000038868
06.12.2022,CHILDREN AND FAMILIES,NATIONAL FOSTERING AGENCY LTD,"3,214.20",FRIENDS & FAMILY FOSTERING,EXTERNAL AGENCIES AND BODIES,2103594678,1000038868
06.12.2022,CHILDREN AND FAMILIES,NATIONAL FOSTERING AGENCY LTD,"3,308.00",FRIENDS & FAMILY FOSTERING,EXTERNAL AGENCIES AND BODIES,2103594668,1000038868
06.12.2022,CHILDREN AND FAMILIES,NATIONAL FOSTERING AGENCY LTD,"3,388.20",FRIENDS & FAMILY FOSTERING,EXTERNAL AGENCIES AND BODIES,2103594672,1000038868
06.12.2022,CHILDREN AND FAMILIES,NATIONAL FOSTERING AGENCY LTD,"3,852.90",FRIENDS & FAMILY FOSTERING,EXTERNAL AGENCIES AND BODIES,2103594687,1000038868
06.12.2022,CHILDREN AND FAMILIES,NATIONAL FOSTERING AGENCY LTD,"5,205.89",FRIENDS & FAMILY FOSTERING,EXTERNAL AGENCIES AND BODIES,2103594676,1000038868
06.12.2022,CHILDREN AND FAMILIES,NATIONAL FOSTERING AGENCY LTD,"6,769.50",FRIENDS & FAMILY FOSTERING,EXTERNAL AGENCIES AND BODIES,2103594693,1000038868
06.12.2022,CHILDREN AND FAMILIES,FAMILY FOSTERING LTD,"4,453.20",FRIENDS & FAMILY FOSTERING,EXTERNAL AGENCIES AND BODIES,2103594675,1000075179
06.12.2022,CHILDREN AND FAMILIES,DIVERSITY FOSTER CARE LTD,"3,976.16",FRIENDS & FAMILY FOSTERING,EXTERNAL AGENCIES AND BODIES,2103594689,1000081399
06.12.2022,CHILDREN AND FAMILIES,FAMILY WORKS FOSTERING LTD,"6,072.90",FRIENDS & FAMILY FOSTERING,EXTERNAL AGENCIES AND BODIES,2103594680,1000082529
06.12.2022,CHILDREN AND FAMILIES,FAMILY WORKS FOSTERING LTD,"8,078.70",FRIENDS & FAMILY FOSTERING,EXTERNAL AGENCIES AND BODIES,2103594690,1000082529
06.12.2022,CHILDREN AND FAMILIES,SILVER LINING FOSTERING LTD,"2,325.00",FRIENDS & FAMILY FOSTERING,EXTERNAL AGENCIES AND BODIES,2103594686,1000087318
06.12.2022,CHILDREN AND FAMILIES,SILVER LINING FOSTERING LTD,"2,657.14",FRIENDS & FAMILY FOSTERING,EXTERNAL AGENCIES AND BODIES,2103594671,1000087318
06.12.2022,CHILDREN AND FAMILIES,NURTURE FOSTERING LTD,"7,714.28",FRIENDS & FAMILY FOSTERING,EXTERNAL AGENCIES AND BODIES,2103594674,1000088623
06.12.2022,CHILDREN AND FAMILIES,SUBARI FOSTER CARE LIMITED,"3,085.50",FRIENDS & FAMILY FOSTERING,EXTERNAL AGENCIES AND BODIES,2103594682,1000088796
06.12.2022,CHILDREN AND FAMILIES,SUBARI FOSTER CARE LIMITED,"5,528.40",FRIENDS & FAMILY FOSTERING,EXTERNAL AGENCIES AND BODIES,2103594684,1000088796
06.12.2022,CHILDREN AND FAMILIES,BEDDY BUYZ WAREHOUSE,405.00,MGMT & PARENTING,FURNITURE PURCHASE & REPAIR,5902554524,1000026704
06.12.2022,CHILDREN AND FAMILIES,REBECCA TANNER,320.00,NEW ASF,EXTERNAL AGENCIES AND BODIES,5902554975,1000088605
06.12.2022,CHILDREN AND FAMILIES,RAGDOLL TRAINING AND THERAPEUTIC SERVICES LIMITED,575.00,NEW ASF,EXTERNAL AGENCIES AND BODIES,5902555425,1000085096
06.12.2022,CHILDREN AND FAMILIES,ALANNA THROWER,400.00,NEW ASF,EXTERNAL AGENCIES AND BODIES,5902554997,1000088589
06.12.2022,CHILDREN AND FAMILIES,REDACTED PERSONAL DATA,425.00,NEW ASF,EXTERNAL AGENCIES AND BODIES,REDACTED,REDACTED
06.12.2022,CHILDREN AND FAMILIES,REDACTED PERSONAL DATA,"1,225.00",NEW ASF,EXTERNAL AGENCIES AND BODIES,REDACTED,REDACTED
06.12.2022,CHILDREN AND FAMILIES,REDACTED PERSONAL DATA,"1,350.00",NEW ASF,EXTERNAL AGENCIES AND BODIES,REDACTED,REDACTED
06.12.2022,CHILDREN AND FAMILIES,REDACTED PERSONAL DATA,"1,350.00",NEW ASF,EXTERNAL AGENCIES AND BODIES,REDACTED,REDACTED
06.12.2022,CHILDREN AND FAMILIES,REDACTED PERSONAL DATA,"1,350.00",NEW ASF,EXTERNAL AGENCIES AND BODIES,REDACTED,REDACTED
06.12.2022,CHILDREN AND FAMILIES,REDACTED PERSONAL DATA,"1,980.00",NEW ASF,EXTERNAL AGENCIES AND BODIES,REDACTED,REDACTED
06.12.2022,CHILDREN AND FAMILIES,REDACTED PERSONAL DATA,"2,230.00",NEW ASF,EXTERNAL AGENCIES AND BODIES,REDACTED,REDACTED
06.12.2022,CHILDREN AND FAMILIES,REDACTED PERSONAL DATA,"2,440.00",NEW ASF,EXTERNAL AGENCIES AND BODIES,REDACTED,REDACTED
06.12.2022,CHILDREN AND FAMILIES,REDACTED PERSONAL DATA,"1,336.50",NEW ASF,EXTERNAL AGENCIES AND BODIES,REDACTED,REDACTED
06.12.2022,CHILDREN AND FAMILIES,REDACTED PERSONAL DATA,550.00,NEW ASF,EXTERNAL AGENCIES AND BODIES,REDACTED,REDACTED
06.12.2022,CHILDREN AND FAMILIES,REDACTED PERSONAL DATA,"2,560.00",NEW ASF,EXTERNAL AGENCIES AND BODIES,REDACTED,REDACTED
06.12.2022,CHILDREN AND FAMILIES,REDACTED PERSONAL DATA,280.00,NEW ASF,EXTERNAL AGENCIES AND BODIES,REDACTED,REDACTED
06.12.2022,CHILDREN AND FAMILIES,MOUNTVIEW ACADEMY OF THEATRE ARTS,330.00,P & R CARE TEAM,EXTERNAL AGENCIES AND BODIES,5902555370,1000076966
06.12.2022,CHILDREN AND FAMILIES,REDACTED PERSONAL DATA,320.00,P & R CARE TEAM,OTHER PAYMENTS FOR CLIENTS,REDACTED,REDACTED
06.12.2022,CHILDREN AND FAMILIES,CONTACT PROFESSIONALS,279.73,SEMI-IND CARELEAVERS,EXTERNAL AGENCIES AND BODIES,2103594660,1000057263
06.12.2022,CHILDREN AND FAMILIES,FINEFAIR LTD,"2,507.10",SEMI-IND CARELEAVERS,EXTERNAL AGENCIES AND BODIES,2103594649,1000075570
06.12.2022,CHILDREN AND FAMILIES,NETPEX LTD CORPORATE SERVICES,"2,464.26",SEMI-IND CARELEAVERS,EXTERNAL AGENCIES AND BODIES,2103594655,1000076073
06.12.2022,CHILDREN AND FAMILIES,NETPEX LTD CORPORATE SERVICES,"2,704.26",SEMI-IND CARELEAVERS,EXTERNAL AGENCIES AND BODIES,2103594662,1000076073
06.12.2022,CHILDREN AND FAMILIES,NETPEX LTD CORPORATE SERVICES,300.00,SEMI-IND CARELEAVERS,OTHER PAYMENTS FOR CLIENTS,2103594656,1000076073
06.12.2022,CHILDREN AND FAMILIES,ELLIOT LEIGH TLC LTD,"1,992.60",SEMI-IND CARELEAVERS,EXTERNAL AGENCIES AND BODIES,2103594653,1000079022
06.12.2022,CHILDREN AND FAMILIES,ELLIOT LEIGH TLC LTD,"3,303.00",SEMI-IND CARELEAVERS,EXTERNAL AGENCIES AND BODIES,2103594648,1000079022
06.12.2022,CHILDREN AND FAMILIES,NETPEX LTD CORPORATE SERVICES,"5,550.00",SEMI-IND LAC 16-17,EXTERNAL AGENCIES AND BODIES,2103594711,1000076073
06.12.2022,CHILDREN AND FAMILIES,SYDNEY CARE LTD,"7,367.14",SEMI-IND LAC 16-17,EXTERNAL AGENCIES AND BODIES,2103594709,1000081598
06.12.2022,CHILDREN AND FAMILIES,DREAMFO HOUSING LTD,"3,214.29",SEMI-IND LAC 16-17,EXTERNAL AGENCIES AND BODIES,2103594706,1000087273
06.12.2022,CHILDREN AND FAMILIES,DREAMFO HOUSING LTD,"3,471.30",SEMI-IND LAC 16-17,EXTERNAL AGENCIES AND BODIES,2103594707,1000087273
06.12.2022,CHILDREN AND FAMILIES,DREAMFO HOUSING LTD,"5,528.58",SEMI-IND LAC 16-17,EXTERNAL AGENCIES AND BODIES,2103594704,1000087273
06.12.2022,CHILDREN AND FAMILIES,DREAMFO HOUSING LTD,256.92,SEMI-IND LAC 16-17,OTHER PAYMENTS FOR CLIENTS,2103594703,1000087273
06.12.2022,CHILDREN AND FAMILIES,DREAMFO HOUSING LTD,257.01,SEMI-IND LAC 16-17,OTHER PAYMENTS FOR CLIENTS,2103594705,1000087273
06.12.2022,CHILDREN AND FAMILIES,GREATER LONDON FOSTERING,"1,821.30",STAYPUT- FOST CARERS,EXTERNAL AGENCIES AND BODIES,2103594652,1000029184
06.12.2022,CHILDREN AND FAMILIES,GREATER LONDON FOSTERING,"2,142.60",STAYPUT- FOST CARERS,EXTERNAL AGENCIES AND BODIES,2103594650,1000029184
06.12.2022,CHILDREN AND FAMILIES,ABBOTT TOXICOLOGY LTD,365.00,TEAM B,OTHER PAYMENTS FOR CLIENTS,5902555260,1000073381
06.12.2022,CHILDREN AND FAMILIES,WILLISPALMER,325.00,TEAM C,OTHER PAYMENTS FOR CLIENTS,5902555265,1000056409
06.12.2022,CHILDREN AND FAMILIES,CHANCE FURTHER SUPPORT CIC,"1,520.00",TEAM C,OTHER PAYMENTS FOR CLIENTS,5902555266,1000085852
06.12.2022,CHILDREN AND FAMILIES,MAGIC ROUNDABOUT NURSERIES LTD,580.32,TEAM D,OTHER PAYMENTS FOR CLIENTS,2103594643,1000045128
06.12.2022,CHILDREN AND FAMILIES,MAGIC ROUNDABOUT NURSERIES LTD,580.32,TEAM D,OTHER PAYMENTS FOR CLIENTS,2103594644,1000045128
06.12.2022,CHILDREN AND FAMILIES,NEGOTIATORS FAMILY CENTRE LIMITED,305.00,TEAM D,OTHER PAYMENTS FOR CLIENTS,5902555486,1000075672
06.12.2022,CHILDREN AND FAMILIES,OWNLIFE LTD,"1,815.00",UASC CARELEAVERS,EXTERNAL AGENCIES AND BODIES,2103594645,1000056219
06.12.2022,CHILDREN AND FAMILIES,NETPEX LTD CORPORATE SERVICES,"2,100.00",UASC CARELEAVERS,EXTERNAL AGENCIES AND BODIES,2103594661,1000076073
06.12.2022,CHILDREN AND FAMILIES,ELLIOT LEIGH TLC LTD,"1,701.30",UASC CARELEAVERS,EXTERNAL AGENCIES AND BODIES,2103594651,1000079022
06.12.2022,CHILDREN AND FAMILIES,ELLIOT LEIGH TLC LTD,"1,714.20",UASC CARELEAVERS,EXTERNAL AGENCIES AND BODIES,2103594659,1000079022
06.12.2022,CHILDREN AND FAMILIES,DREAMFO HOUSING LTD,"3,214.29",UASC CARELEAVERS,EXTERNAL AGENCIES AND BODIES,2103594646,1000087273
06.12.2022,CHILDREN AND FAMILIES,CONNEXIONS CUISINE LTD T/A MASONS CATERING,263.50,YJS MGMT & SUPPORT,REFRESHMENTS FOR MEETINGS,5902555253,11317153
06.12.2022,CHILDREN AND FAMILIES,THE AIM PROJECT,372.00,YJS MGMT & SUPPORT,TRAINING,5902555257,1000048090
06.12.2022,COMMUNITIES,SOUTHWARK CITIZENS ADVICE,"33,333.00",LEGAL GRANTS,EXTERNAL AGENCIES AND BODIES,5902555484,1874379
06.12.2022,COMMUNITIES,INSPIRING SOCIAL WORK LTD,"1,150.00",SAFEGUARDING BOARDS,CONSULTANTS SERVICES,5902555580,1000088627
06.12.2022,COMMUNITIES,SSCL MPS POLICE SERVICE,"14,963.00",SOUTH,GRANTS,5902555403,1000035048
06.12.2022,COMMUNITIES,REDACTED PERSONAL DATA,350.00,UKRAINIAN PROGRAMME,GRANTS,REDACTED,REDACTED
06.12.2022,COMMUNITIES,REDACTED PERSONAL DATA,350.00,UKRAINIAN PROGRAMME,GRANTS,REDACTED,REDACTED
06.12.2022,COMMUNITIES,REDACTED PERSONAL DATA,350.00,UKRAINIAN PROGRAMME,GRANTS,REDACTED,REDACTED
06.12.2022,COMMUNITIES,REDACTED PERSONAL DATA,350.00,UKRAINIAN PROGRAMME,GRANTS,REDACTED,REDACTED
06.12.2022,COMMUNITIES,REDACTED PERSONAL DATA,350.00,UKRAINIAN PROGRAMME,GRANTS,REDACTED,REDACTED
06.12.2022,COMMUNITIES,REDACTED PERSONAL DATA,350.00,UKRAINIAN PROGRAMME,GRANTS,REDACTED,REDACTED
06.12.2022,COMMUNITIES,REDACTED PERSONAL DATA,350.00,UKRAINIAN PROGRAMME,GRANTS,REDACTED,REDACTED
06.12.2022,COMMUNITIES,REDACTED PERSONAL DATA,350.00,UKRAINIAN PROGRAMME,GRANTS,REDACTED,REDACTED
06.12.2022,COMMUNITIES,REDACTED PERSONAL DATA,350.00,UKRAINIAN PROGRAMME,GRANTS,REDACTED,REDACTED
06.12.2022,COMMUNITIES,REDACTED PERSONAL DATA,350.00,UKRAINIAN PROGRAMME,GRANTS,REDACTED,REDACTED
06.12.2022,COMMUNITIES,REDACTED PERSONAL DATA,350.00,UKRAINIAN PROGRAMME,GRANTS,REDACTED,REDACTED
06.12.2022,CUSTOMER EXPERIENCE,CASTLE WATER LTD,299.50,CUSTOMER SUPPORT,WATER,5902554304,1000078867
06.12.2022,CUSTOMER EXPERIENCE HGF,SG PATH LTD,415.80,CORONER'S,PROFESSIONAL FEES,5902555423,1000077883
06.12.2022,CUSTOMER EXPERIENCE HGF,SG PATH LTD,415.80,CORONER'S,PROFESSIONAL FEES,5902555427,1000077883
06.12.2022,CUSTOMER EXPERIENCE HGF,SG PATH LTD,415.80,CORONER'S,PROFESSIONAL FEES,5902555447,1000077883
06.12.2022,CUSTOMER EXPERIENCE HGF,IMPERIAL COLLEGE PROJECTS LTD,263.00,CORONER'S,PROFESSIONAL FEES,5902555547,1000080106
06.12.2022,CUSTOMER EXPERIENCE HGF,IMPERIAL COLLEGE PROJECTS LTD,331.00,CORONER'S,PROFESSIONAL FEES,5902555577,1000080106
06.12.2022,CUSTOMER EXPERIENCE HGF,IMPERIAL COLLEGE PROJECTS LTD,336.00,CORONER'S,PROFESSIONAL FEES,5902555538,1000080106
06.12.2022,CUSTOMER EXPERIENCE HGF,IMPERIAL COLLEGE PROJECTS LTD,347.00,CORONER'S,PROFESSIONAL FEES,5902555463,1000080106
06.12.2022,CUSTOMER EXPERIENCE HGF,IMPERIAL COLLEGE PROJECTS LTD,357.00,CORONER'S,PROFESSIONAL FEES,5902555515,1000080106
06.12.2022,CUSTOMER EXPERIENCE HGF,IMPERIAL COLLEGE PROJECTS LTD,357.00,CORONER'S,PROFESSIONAL FEES,5902555524,1000080106
06.12.2022,CUSTOMER EXPERIENCE HGF,IMPERIAL COLLEGE PROJECTS LTD,357.00,CORONER'S,PROFESSIONAL FEES,5902555555,1000080106
06.12.2022,CUSTOMER EXPERIENCE HGF,IMPERIAL COLLEGE PROJECTS LTD,357.00,CORONER'S,PROFESSIONAL FEES,5902555558,1000080106
06.12.2022,CUSTOMER EXPERIENCE HGF,IMPERIAL COLLEGE PROJECTS LTD,357.00,CORONER'S,PROFESSIONAL FEES,5902555574,1000080106
06.12.2022,CUSTOMER EXPERIENCE HGF,IMPERIAL COLLEGE PROJECTS LTD,357.00,CORONER'S,PROFESSIONAL FEES,5902555588,1000080106
06.12.2022,CUSTOMER EXPERIENCE HGF,IMPERIAL COLLEGE PROJECTS LTD,357.00,CORONER'S,PROFESSIONAL FEES,5902555590,1000080106
06.12.2022,CUSTOMER EXPERIENCE HGF,IMPERIAL COLLEGE PROJECTS LTD,365.00,CORONER'S,PROFESSIONAL FEES,5902555523,1000080106
06.12.2022,CUSTOMER EXPERIENCE HGF,IMPERIAL COLLEGE PROJECTS LTD,378.00,CORONER'S,PROFESSIONAL FEES,5902555520,1000080106
06.12.2022,CUSTOMER EXPERIENCE HGF,IMPERIAL COLLEGE PROJECTS LTD,378.00,CORONER'S,PROFESSIONAL FEES,5902555569,1000080106
06.12.2022,CUSTOMER EXPERIENCE HGF,IMPERIAL COLLEGE PROJECTS LTD,382.00,CORONER'S,PROFESSIONAL FEES,5902555531,1000080106
06.12.2022,CUSTOMER EXPERIENCE HGF,IMPERIAL COLLEGE PROJECTS LTD,412.00,CORONER'S,PROFESSIONAL FEES,5902555533,1000080106
06.12.2022,CUSTOMER EXPERIENCE HGF,IMPERIAL COLLEGE PROJECTS LTD,412.00,CORONER'S,PROFESSIONAL FEES,5902555548,1000080106
06.12.2022,CUSTOMER EXPERIENCE HGF,IMPERIAL COLLEGE PROJECTS LTD,412.00,CORONER'S,PROFESSIONAL FEES,5902555554,1000080106
06.12.2022,CUSTOMER EXPERIENCE HGF,IMPERIAL COLLEGE PROJECTS LTD,412.00,CORONER'S,PROFESSIONAL FEES,5902555556,1000080106
06.12.2022,CUSTOMER EXPERIENCE HGF,IMPERIAL COLLEGE PROJECTS LTD,412.00,CORONER'S,PROFESSIONAL FEES,5902555585,1000080106
06.12.2022,CUSTOMER EXPERIENCE HGF,IMPERIAL COLLEGE PROJECTS LTD,412.00,CORONER'S,PROFESSIONAL FEES,5902555593,1000080106
06.12.2022,CUSTOMER EXPERIENCE HGF,IMPERIAL COLLEGE PROJECTS LTD,433.00,CORONER'S,PROFESSIONAL FEES,5902555541,1000080106
06.12.2022,CUSTOMER EXPERIENCE HGF,IMPERIAL COLLEGE PROJECTS LTD,467.00,CORONER'S,PROFESSIONAL FEES,5902555509,1000080106
06.12.2022,CUSTOMER EXPERIENCE HGF,IMPERIAL COLLEGE PROJECTS LTD,480.00,CORONER'S,PROFESSIONAL FEES,5902555573,1000080106
06.12.2022,CUSTOMER EXPERIENCE HGF,IMPERIAL COLLEGE PROJECTS LTD,514.00,CORONER'S,PROFESSIONAL FEES,5902555552,1000080106
06.12.2022,CUSTOMER EXPERIENCE HGF,IMPERIAL COLLEGE PROJECTS LTD,535.00,CORONER'S,PROFESSIONAL FEES,5902555505,1000080106
06.12.2022,CUSTOMER EXPERIENCE HGF,IMPERIAL COLLEGE PROJECTS LTD,582.00,CORONER'S,PROFESSIONAL FEES,5902555544,1000080106
06.12.2022,CUSTOMER EXPERIENCE HGF,IMPERIAL COLLEGE PROJECTS LTD,603.00,CORONER'S,PROFESSIONAL FEES,5902555513,1000080106
06.12.2022,CUSTOMER EXPERIENCE HGF,HIAM ALI LTD,"12,075.60",CORONER'S,PROFESSIONAL FEES,5902555543,1000084044
06.12.2022,CUSTOMER EXPERIENCE HGF,FORENSIC PATHOLOGY SERVICES,276.90,CORONER'S,PROFESSIONAL FEES,5902555450,1000086871
06.12.2022,CUSTOMER EXPERIENCE HGF,FORENSIC PATHOLOGY SERVICES,491.90,CORONER'S,PROFESSIONAL FEES,5902555458,1000086871
06.12.2022,CUSTOMER EXPERIENCE HGF,FORENSIC PATHOLOGY SERVICES,511.90,CORONER'S,PROFESSIONAL FEES,5902555461,1000086871
06.12.2022,CUSTOMER EXPERIENCE HGF,FORENSIC PATHOLOGY SERVICES,541.90,CORONER'S,PROFESSIONAL FEES,5902555459,1000086871
06.12.2022,CUSTOMER EXPERIENCE HGF,FORENSIC PATHOLOGY SERVICES,551.90,CORONER'S,PROFESSIONAL FEES,5902555453,1000086871
06.12.2022,CUSTOMER EXPERIENCE HGF,QUEEN MARY UNIVERSITY OF LONDON,"2,970.00",CORONER'S,PROFESSIONAL FEES,5902555417,1000088391
06.12.2022,DSG,BEORMUND PRIMARY SCHOOL,"40,432.11",BEORMUND PRIMARY SCHOOL,HIGH NEEDS - TOP UP FUNDING,2103594729,5001000008
06.12.2022,DSG,DOG KENNEL HILL PRIMARY SCHOOL,"4,252.50",COVID-19 SCHOOLS GRANTS,SCHOOLS CAPITATION,2103594764,5001000025
06.12.2022,DSG,DOG KENNEL HILL PRIMARY SCHOOL,"100,820.25",DOG KENNEL HILL PRIMARY SCHOOL,SCHOOLS CAPITATION,2103594765,5001000025
06.12.2022,DSG,ALFRED SALTER PRIMARY SCHOOL,"5,221.80",LBS MAINSTREAM,HIGH NEEDS - TOP UP FUNDING,2103594745,5001000005
06.12.2022,DSG,BESSEMER GRANGE PRIMARY SCHOOL,"24,180.93",LBS MAINSTREAM,HIGH NEEDS - TOP UP FUNDING,2103594743,5001000009
06.12.2022,DSG,BRUNSWICK PARK PRIMARY SCHOOL,"25,304.11",LBS MAINSTREAM,HIGH NEEDS - TOP UP FUNDING,2103594741,5001000013
06.12.2022,DSG,BRUNSWICK PARK PRIMARY SCHOOL,"27,106.00",LBS MAINSTREAM,HIGH NEEDS - TOP UP FUNDING,2103594742,5001000013
06.12.2022,DSG,CAMELOT PRIMARY SCHOOL,"13,770.88",LBS MAINSTREAM,HIGH NEEDS - TOP UP FUNDING,2103594755,5001000014
06.12.2022,DSG,CHARLOTTE  SHARMAN PRIMARY SCHOOL,"15,185.31",LBS MAINSTREAM,HIGH NEEDS - TOP UP FUNDING,2103594731,5001000016
06.12.2022,DSG,ST JOSEPHS CATHOLIC INFANTS SCHOOL,"3,197.16",LBS MAINSTREAM,HIGH NEEDS - TOP UP FUNDING,2103594733,5001000018
06.12.2022,DSG,COMBER GROVE PRIMARY SCHOOL,"2,679.12",LBS MAINSTREAM,HIGH NEEDS - TOP UP FUNDING,2103594754,5001000022
06.12.2022,DSG,DOG KENNEL HILL PRIMARY SCHOOL,"8,250.00",LBS MAINSTREAM,HIGH NEEDS - TOP UP FUNDING,2103594753,5001000025
06.12.2022,DSG,GRANGE PRIMARY SCHOOL,"38,594.08",LBS MAINSTREAM,HIGH NEEDS - TOP UP FUNDING,2103594752,5001000029
06.12.2022,DSG,FRIARS PRIMARY (FOUNDATION) SCHOOL,"5,570.88",LBS MAINSTREAM,HIGH NEEDS - TOP UP FUNDING,2103594732,5001000033
06.12.2022,DSG,IVYDALE PRIMARY SCHOOL,"14,331.19",LBS MAINSTREAM,HIGH NEEDS - TOP UP FUNDING,2103594751,5001000038
06.12.2022,DSG,KEYWORTH PRIMARY SCHOOL,"21,127.58",LBS MAINSTREAM,HIGH NEEDS - TOP UP FUNDING,2103594750,5001000041
06.12.2022,DSG,DULWICH WOOD PRIMARY SCHOOL,"10,337.10",LBS MAINSTREAM,HIGH NEEDS - TOP UP FUNDING,2103594749,5001000042
06.12.2022,DSG,NOTRE DAME RC GIRLS SCHOOL,"46,521.26",LBS MAINSTREAM,HIGH NEEDS - TOP UP FUNDING,2103594730,5001000050
06.12.2022,DSG,OLIVER GOLDSMITH PRIMARY SCHOOL,"20,614.82",LBS MAINSTREAM,HIGH NEEDS - TOP UP FUNDING,2103594744,5001000051
06.12.2022,DSG,PETER HILLS CE SCHOOL,"2,673.97",LBS MAINSTREAM,HIGH NEEDS - TOP UP FUNDING,2103594736,5001000053
06.12.2022,DSG,ROBERT BROWNING PRIMARY SCHOOL,"12,130.54",LBS MAINSTREAM,HIGH NEEDS - TOP UP FUNDING,2103594748,5001000057
06.12.2022,DSG,ROTHERHITHE PRIMARY SCHOOL,"24,318.04",LBS MAINSTREAM,HIGH NEEDS - TOP UP FUNDING,2103594747,5001000058
06.12.2022,DSG,SOUTHWARK PARK PRIMARY SCHOOL,"16,414.43",LBS MAINSTREAM,HIGH NEEDS - TOP UP FUNDING,2103594746,5001000062
06.12.2022,DSG,ST ANTHONYS RC SCHOOL,"35,157.94",LBS MAINSTREAM,HIGH NEEDS - TOP UP FUNDING,2103594734,5001000064
06.12.2022,DSG,ST JAMES CE PRIMARY SCHOOL,"12,506.47",LBS MAINSTREAM,HIGH NEEDS - TOP UP FUNDING,2103594740,5001000070
06.12.2022,DSG,ST JOSEPHS CATHOLIC SCHOOL,"1,464.18",LBS MAINSTREAM,HIGH NEEDS - TOP UP FUNDING,2103594738,5001000076
06.12.2022,DSG,ST MARY MAGDALENE CE SCHOOL,"13,914.69",LBS MAINSTREAM,HIGH NEEDS - TOP UP FUNDING,2103594737,5001000080
06.12.2022,DSG,ST SAVIOURS & ST OLAVES SCHOOL,"24,175.63",LBS MAINSTREAM,HIGH NEEDS - TOP UP FUNDING,2103594735,5001000084
06.12.2022,DSG,THE GROVE CHILDRENS CENTRE,"35,461.34",LBS RB / SEN UNIT,HIGH NEEDS - TOP UP FUNDING,2103594756,5001000090
06.12.2022,DSG,KINTORE WAY CHILDRENS CENTRE,888.79,LBS RB / SEN UNIT,HIGH NEEDS - TOP UP FUNDING,2103594757,5001000047
06.12.2022,DSG,THE ST THOMAS THE APOSTLE COLLEGE,"9,948.00",MATERNITY COVER,SCHOOLS CAPITATION,2103594615,5001000074
06.12.2022,DSG,ST MARY MAGDALENE CE SCHOOL,"9,948.00",MATERNITY COVER,SCHOOLS CAPITATION,2103594614,5001000080
06.12.2022,DSG,CATHEDRAL SCHOOL OF ST SAVIOUR & MARY,"8,589.00",MATERNITY COVER,SCHOOLS CAPITATION,2103594617,5001000088
06.12.2022,DSG,CATHEDRAL SCHOOL OF ST SAVIOUR & MARY,"11,998.00",MATERNITY COVER,SCHOOLS CAPITATION,2103594616,5001000088
06.12.2022,DSG,BESSEMER GRANGE PRIMARY SCHOOL,"8,982.05",NURSERY ED GRANT 2YR OLDS,EARLY YEARS - 2 YEAR OLD,2103594610,5001000009
06.12.2022,DSG,KEYWORTH PRIMARY SCHOOL,"7,410.00",NURSERY ED GRANT 2YR OLDS,EARLY YEARS - 2 YEAR OLD,2103594609,5001000041
06.12.2022,DSG,RYE OAK PRIMARY SCHOOL,"11,712.15",NURSERY ED GRANT 2YR OLDS,EARLY YEARS - 2 YEAR OLD,2103594612,5001000059
06.12.2022,DSG,ST JAMES CE PRIMARY SCHOOL,"10,365.15",NURSERY ED GRANT 2YR OLDS,EARLY YEARS - 2 YEAR OLD,2103594611,5001000070
06.12.2022,DSG,ANN BERNADT NURSERY SCHOOL,800.00,NURSERY ED GRANT 3 AND 4 YR OLDS,EARLY YEARS - 3 AND 4 YEAR OLDS,2103594613,5001000085
06.12.2022,DSG,DOG KENNEL HILL PRIMARY SCHOOL,"33,666.25",PUPIL PREMIUM,SCHOOLS CAPITATION,2103594763,5001000025
06.12.2022,DSG,NOTRE DAME RC GIRLS SCHOOL,"56,501.25",PUPIL PREMIUM,SCHOOLS CAPITATION,2103594762,5001000050
06.12.2022,DSG,NELL GWYNN NURSERY SCHOOL,"64,269.30",SCHOOLS IN FINANCIAL DIFFICULTY,SCHOOLS CAPITATION,2103594608,5001000049
06.12.2022,DSG,ANN BERNADT NURSERY SCHOOL,"1,775.57",SCHOOLS IN FINANCIAL DIFFICULTY,SCHOOLS CAPITATION,2103594607,5001000085
06.12.2022,DSG,CHARLES DICKENS PRIMARY SCHOOL,"15,477.78",TRADE UNIONS,SCHOOLS CAPITATION,2103594604,1000085158
06.12.2022,DSG,DULWICH WOOD CHILDRENS CENTRE,"108,340.80",TRUST FUND DRAW DOWN,SCHOOLS CAPITATION,2103594605,5001000099
06.12.2022,DSG,ST GEORGES RC SCHOOL,"1,319.00",TRUST FUND DRAW DOWN,SCHOOLS CAPITATION,2103594606,5001000068
06.12.2022,EDUCATION,LEARNING UNLIMITED,"3,757.00",ADULT SKILLS BUDGET,GRANTS,5902555534,1000068095
06.12.2022,EDUCATION,LEARNING UNLIMITED,"4,641.00",ADULT SKILLS BUDGET,GRANTS,5902555534,1000068095
06.12.2022,EDUCATION,LONDON WILDLIFE TRUST,-500.00,ALC COMMUNITY LEARNING,GRANTS,5902555495,1832374
06.12.2022,EDUCATION,LONDON WILDLIFE TRUST,"4,750.00",ALC COMMUNITY LEARNING,GRANTS,5902555494,1832374
06.12.2022,EDUCATION,LEARNING UNLIMITED,"1,750.00",ALC COMMUNITY LEARNING,GRANTS,5902555487,1000068095
06.12.2022,ENVIRONMENT AND LEISURE,BROMLEY HEALTHCARE CIC,760.66,SEXUAL HEALTH - STI,MEDICAL / HEALTH & SAFETY SERVICES,5902555385,1000081559
06.12.2022,ENVIRONMENT DIRECTORATE,LEX AUTOLEASE,"19,188.35",COMMERCIAL VEH CTRL A/C,HIRED VEHICLES,5902555272,1000069462
06.12.2022,ENVIRONMENT DIRECTORATE,UNIVERSAL TYRE & AUTOCENTRES,354.03,COMMERCIAL VEH CTRL A/C,OTHER VEHICLE RUNNING COSTS,5902555576,1000072475
06.12.2022,ENVIRONMENT DIRECTORATE,DAWSONGROUP VANS LTD,250.50,COMMERCIAL VEH CTRL A/C,HIRED VEHICLES,5902555393,1000082230
06.12.2022,ENVIRONMENT DIRECTORATE,DAWSONGROUP VANS LTD,250.50,COMMERCIAL VEH CTRL A/C,HIRED VEHICLES,5902555396,1000082230
06.12.2022,ENVIRONMENT DIRECTORATE,DAWSONGROUP VANS LTD,250.50,COMMERCIAL VEH CTRL A/C,HIRED VEHICLES,5902555418,1000082230
06.12.2022,ENVIRONMENT DIRECTORATE,DAWSONGROUP VANS LTD,267.00,COMMERCIAL VEH CTRL A/C,HIRED VEHICLES,5902555262,1000082230
06.12.2022,ENVIRONMENT DIRECTORATE,DAWSONGROUP VANS LTD,267.00,COMMERCIAL VEH CTRL A/C,HIRED VEHICLES,5902555283,1000082230
06.12.2022,ENVIRONMENT DIRECTORATE,DAWSONGROUP VANS LTD,267.00,COMMERCIAL VEH CTRL A/C,HIRED VEHICLES,5902555318,1000082230
06.12.2022,ENVIRONMENT DIRECTORATE,DAWSONGROUP VANS LTD,267.00,COMMERCIAL VEH CTRL A/C,HIRED VEHICLES,5902555320,1000082230
06.12.2022,ENVIRONMENT DIRECTORATE,DAWSONGROUP VANS LTD,267.00,COMMERCIAL VEH CTRL A/C,HIRED VEHICLES,5902555322,1000082230
06.12.2022,ENVIRONMENT DIRECTORATE,DAWSONGROUP VANS LTD,267.00,COMMERCIAL VEH CTRL A/C,HIRED VEHICLES,5902555381,1000082230
06.12.2022,ENVIRONMENT DIRECTORATE,DAWSONGROUP VANS LTD,267.00,COMMERCIAL VEH CTRL A/C,HIRED VEHICLES,5902555384,1000082230
06.12.2022,ENVIRONMENT DIRECTORATE,DAWSONGROUP VANS LTD,267.00,COMMERCIAL VEH CTRL A/C,HIRED VEHICLES,5902555386,1000082230
06.12.2022,ENVIRONMENT DIRECTORATE,DAWSONGROUP VANS LTD,267.00,COMMERCIAL VEH CTRL A/C,HIRED VEHICLES,5902555387,1000082230
06.12.2022,ENVIRONMENT DIRECTORATE,DAWSONGROUP VANS LTD,267.00,COMMERCIAL VEH CTRL A/C,HIRED VEHICLES,5902555409,1000082230
06.12.2022,ENVIRONMENT DIRECTORATE,DAWSONGROUP VANS LTD,267.00,COMMERCIAL VEH CTRL A/C,HIRED VEHICLES,5902555411,1000082230
06.12.2022,ENVIRONMENT DIRECTORATE,DAWSONGROUP VANS LTD,267.00,COMMERCIAL VEH CTRL A/C,HIRED VEHICLES,5902555448,1000082230
06.12.2022,ENVIRONMENT DIRECTORATE,DAWSONGROUP VANS LTD,274.28,COMMERCIAL VEH CTRL A/C,HIRED VEHICLES,5902555399,1000082230
06.12.2022,ENVIRONMENT DIRECTORATE,DAWSONGROUP VANS LTD,290.40,COMMERCIAL VEH CTRL A/C,HIRED VEHICLES,5902555274,1000082230
06.12.2022,ENVIRONMENT DIRECTORATE,DAWSONGROUP VANS LTD,290.40,COMMERCIAL VEH CTRL A/C,HIRED VEHICLES,5902555279,1000082230
06.12.2022,ENVIRONMENT DIRECTORATE,DAWSONGROUP VANS LTD,290.40,COMMERCIAL VEH CTRL A/C,HIRED VEHICLES,5902555307,1000082230
06.12.2022,ENVIRONMENT DIRECTORATE,DAWSONGROUP VANS LTD,290.40,COMMERCIAL VEH CTRL A/C,HIRED VEHICLES,5902555310,1000082230
06.12.2022,ENVIRONMENT DIRECTORATE,DAWSONGROUP VANS LTD,290.40,COMMERCIAL VEH CTRL A/C,HIRED VEHICLES,5902555380,1000082230
06.12.2022,ENVIRONMENT DIRECTORATE,DAWSONGROUP VANS LTD,290.40,COMMERCIAL VEH CTRL A/C,HIRED VEHICLES,5902555383,1000082230
06.12.2022,ENVIRONMENT DIRECTORATE,DAWSONGROUP VANS LTD,290.40,COMMERCIAL VEH CTRL A/C,HIRED VEHICLES,5902555414,1000082230
06.12.2022,ENVIRONMENT DIRECTORATE,DAWSONGROUP VANS LTD,290.40,COMMERCIAL VEH CTRL A/C,HIRED VEHICLES,5902555416,1000082230
06.12.2022,ENVIRONMENT DIRECTORATE,DAWSONGROUP VANS LTD,290.40,COMMERCIAL VEH CTRL A/C,HIRED VEHICLES,5902555431,1000082230
06.12.2022,ENVIRONMENT DIRECTORATE,DAWSONGROUP VANS LTD,290.40,COMMERCIAL VEH CTRL A/C,HIRED VEHICLES,5902555435,1000082230
06.12.2022,ENVIRONMENT DIRECTORATE,DAWSONGROUP VANS LTD,290.40,COMMERCIAL VEH CTRL A/C,HIRED VEHICLES,5902555439,1000082230
06.12.2022,ENVIRONMENT DIRECTORATE,DAWSONGROUP VANS LTD,290.40,COMMERCIAL VEH CTRL A/C,HIRED VEHICLES,5902555442,1000082230
06.12.2022,ENVIRONMENT DIRECTORATE,DAWSONGROUP VANS LTD,290.40,COMMERCIAL VEH CTRL A/C,HIRED VEHICLES,5902555445,1000082230
06.12.2022,ENVIRONMENT DIRECTORATE,DAWSONGROUP VANS LTD,290.40,COMMERCIAL VEH CTRL A/C,HIRED VEHICLES,5902555449,1000082230
06.12.2022,ENVIRONMENT DIRECTORATE,DAWSONGROUP VANS LTD,290.40,COMMERCIAL VEH CTRL A/C,HIRED VEHICLES,5902555452,1000082230
06.12.2022,ENVIRONMENT DIRECTORATE,DAWSONGROUP VANS LTD,310.28,COMMERCIAL VEH CTRL A/C,HIRED VEHICLES,5902555456,1000082230
06.12.2022,ENVIRONMENT DIRECTORATE,DAWSONGROUP VANS LTD,313.63,COMMERCIAL VEH CTRL A/C,HIRED VEHICLES,5902555405,1000082230
06.12.2022,ENVIRONMENT DIRECTORATE,DAWSONGROUP VANS LTD,315.00,COMMERCIAL VEH CTRL A/C,HIRED VEHICLES,5902555261,1000082230
06.12.2022,ENVIRONMENT DIRECTORATE,DAWSONGROUP VANS LTD,318.00,COMMERCIAL VEH CTRL A/C,HIRED VEHICLES,5902555376,1000082230
06.12.2022,ENVIRONMENT DIRECTORATE,DAWSONGROUP VANS LTD,318.00,COMMERCIAL VEH CTRL A/C,HIRED VEHICLES,5902555377,1000082230
06.12.2022,ENVIRONMENT DIRECTORATE,DAWSONGROUP VANS LTD,318.00,COMMERCIAL VEH CTRL A/C,HIRED VEHICLES,5902555378,1000082230
06.12.2022,ENVIRONMENT DIRECTORATE,DAWSONGROUP VANS LTD,318.00,COMMERCIAL VEH CTRL A/C,HIRED VEHICLES,5902555451,1000082230
06.12.2022,ENVIRONMENT DIRECTORATE,DAWSONGROUP VANS LTD,390.68,COMMERCIAL VEH CTRL A/C,HIRED VEHICLES,5902555311,1000082230
06.12.2022,ENVIRONMENT DIRECTORATE,DAWSONGROUP VANS LTD,399.60,COMMERCIAL VEH CTRL A/C,HIRED VEHICLES,5902555267,1000082230
06.12.2022,ENVIRONMENT DIRECTORATE,DAWSONGROUP VANS LTD,399.60,COMMERCIAL VEH CTRL A/C,HIRED VEHICLES,5902555269,1000082230
06.12.2022,ENVIRONMENT DIRECTORATE,DAWSONGROUP VANS LTD,399.60,COMMERCIAL VEH CTRL A/C,HIRED VEHICLES,5902555271,1000082230
06.12.2022,ENVIRONMENT DIRECTORATE,DAWSONGROUP VANS LTD,399.60,COMMERCIAL VEH CTRL A/C,HIRED VEHICLES,5902555273,1000082230
06.12.2022,ENVIRONMENT DIRECTORATE,DAWSONGROUP VANS LTD,411.60,COMMERCIAL VEH CTRL A/C,HIRED VEHICLES,5902555312,1000082230
06.12.2022,ENVIRONMENT DIRECTORATE,DAWSONGROUP VANS LTD,427.50,COMMERCIAL VEH CTRL A/C,HIRED VEHICLES,5902555289,1000082230
06.12.2022,ENVIRONMENT DIRECTORATE,DAWSONGROUP VANS LTD,435.00,COMMERCIAL VEH CTRL A/C,HIRED VEHICLES,5902555309,1000082230
06.12.2022,ENVIRONMENT DIRECTORATE,DAWSONGROUP VANS LTD,479.61,COMMERCIAL VEH CTRL A/C,HIRED VEHICLES,5902555379,1000082230
06.12.2022,ENVIRONMENT DIRECTORATE,DAWSONGROUP VANS LTD,485.18,COMMERCIAL VEH CTRL A/C,HIRED VEHICLES,5902555263,1000082230
06.12.2022,ENVIRONMENT DIRECTORATE,DAWSONGROUP VANS LTD,485.18,COMMERCIAL VEH CTRL A/C,HIRED VEHICLES,5902555270,1000082230
06.12.2022,ENVIRONMENT DIRECTORATE,DAWSONGROUP VANS LTD,485.18,COMMERCIAL VEH CTRL A/C,HIRED VEHICLES,5902555292,1000082230
06.12.2022,ENVIRONMENT DIRECTORATE,DAWSONGROUP VANS LTD,556.50,COMMERCIAL VEH CTRL A/C,HIRED VEHICLES,5902555277,1000082230
06.12.2022,ENVIRONMENT DIRECTORATE,LEEDS COMMERCIAL LIMITED T/A LC VEHICLE HIRE,"2,750.00",COMMERCIAL VEH CTRL A/C,HIRED VEHICLES,5902555264,1000082730
06.12.2022,ENVIRONMENT DIRECTORATE,LEEDS COMMERCIAL LIMITED T/A LC VEHICLE HIRE,"2,860.00",COMMERCIAL VEH CTRL A/C,HIRED VEHICLES,5902555268,1000082730
06.12.2022,ENVIRONMENT DIRECTORATE,GREENHAM TRADING LTD,365.44,ESTATE CLEANING-GENERAL,MATERIALS,5902555512,1000006610
06.12.2022,ENVIRONMENT DIRECTORATE,GREENHAM TRADING LTD,"1,575.00",ESTATE CLEANING-GENERAL,MATERIALS,5902555508,1000006610
06.12.2022,ENVIRONMENT DIRECTORATE,WATERMAN INFRASTRUCTURE & ENVIRONMENT LTD,"6,379.56",FLOOD RISK MANAGEMENT,HIGHWAYS TERM CONTRACT,5902555500,1000060529
06.12.2022,ENVIRONMENT DIRECTORATE,F M CONWAY LTD,"183,881.72",HIGHWAY MAINTENANCE OVERHEADS,HIGHWAYS TERM CONTRACT,2103594584,4001384
06.12.2022,ENVIRONMENT DIRECTORATE,F M CONWAY LTD,"208,829.28",HIGHWAY MAINTENANCE OVERHEADS,HIGHWAYS TERM CONTRACT,2103594583,4001384
06.12.2022,ENVIRONMENT DIRECTORATE,FAROL LTD,642.00,ICC SPECIAL TEAMS,EQUIPMENT PURCHASE & REPAIR,5902555579,1000078940
06.12.2022,EXTERNAL AFFAIRS,WHATEVER DESIGN LTD,"3,470.00",SOUTHWARK LIFE,PROFESSIONAL FEES,5902555511,1000036500
06.12.2022,FINANCE & GOVERNANCE,STAFFINO,"1,425.00",ADMINISTRATION SUPPORT,SOFTWARE,6102062397,INTERNATIONAL PAYMENT
06.12.2022,HOUSING HRA,DAVID ROGERSON,450.00,CAPITAL PS (HRA),CONSTRUCTION FEES  - EXTERNAL,5902555469,1753617
06.12.2022,HOUSING HRA,BAILY  GARNER LLP,"5,378.33",CAPITAL PS (HRA),CONSTRUCTION FEES - EMPLOYERS AGENT,5902555476,1000663
06.12.2022,HOUSING HRA,PHILIP PANK PARTNERSHIP LLP,"1,800.00",CAPITAL PS (HRA),CONSTRUCTION FEES - EMPLOYERS AGENT,5902555314,1015501
06.12.2022,HOUSING HRA,CALFORD SEADEN LLP,"11,305.00",CAPITAL PS (HRA),CONSTRUCTION FEES,5902555536,1061592
06.12.2022,HOUSING HRA,CALFORD SEADEN LLP,700.00,CAPITAL PS (HRA),CONSTRUCTION FEES  - EXTERNAL,5902555568,1061592
06.12.2022,HOUSING HRA,CALFORD SEADEN LLP,750.00,CAPITAL PS (HRA),CONSTRUCTION FEES  - EXTERNAL,5902555540,1061592
06.12.2022,HOUSING HRA,CALFORD SEADEN LLP,"2,499.99",CAPITAL PS (HRA),CONSTRUCTION FEES  - EXTERNAL,5902555473,1061592
06.12.2022,HOUSING HRA,EQUANS REGENERATION (APOLLO) LTD,"1,116,934.30",CAPITAL PS (HRA),CONSTRUCTION MAIN CONTRACT -CERTIFICATED,2103594586,4000449
06.12.2022,HOUSING HRA,STANDAGE & CO LTD,"47,483.84",CAPITAL PS (HRA),CONSTRUCTION MAIN CONTRACT -CERTIFICATED,2103594713,4002817
06.12.2022,HOUSING HRA,A & E ELKINS LTD,"43,406.08",CAPITAL PS (HRA),CONSTRUCTION MAIN CONTRACT -CERTIFICATED,2103594582,4012501
06.12.2022,HOUSING HRA,BAILY GARNER (HEALTH AND SAFETY) LIMITED,"1,120.00",CAPITAL PS (HRA),CONSTRUCTION FEES  - EXTERNAL,5902555562,1000033754
06.12.2022,HOUSING HRA,DUCTCLEAN (UK) LIMITED,"61,600.00",CAPITAL PS (HRA),CONSTRUCTION,5902555325,1000062478
06.12.2022,HOUSING HRA,MARTIN ARNOLD LTD,"5,040.73",CAPITAL PS (HRA),CONSTRUCTION FEES - EMPLOYERS AGENT,5902555499,1000076993
06.12.2022,HOUSING HRA,SILVER DCC LTD,"1,190.91",CAPITAL PS (HRA),CONSTRUCTION FEES  - EXTERNAL,5902555496,1000087546
06.12.2022,HOUSING HRA,SILVER DCC LTD,"1,225.90",CAPITAL PS (HRA),CONSTRUCTION FEES  - EXTERNAL,5902555432,1000087546
06.12.2022,HOUSING HRA,SILVER DCC LTD,"1,225.90",CAPITAL PS (HRA),CONSTRUCTION FEES  - EXTERNAL,5902555438,1000087546
06.12.2022,HOUSING HRA,SILVER DCC LTD,"1,225.90",CAPITAL PS (HRA),CONSTRUCTION FEES  - EXTERNAL,5902555441,1000087546
06.12.2022,HOUSING HRA,SILVER DCC LTD,"1,225.90",CAPITAL PS (HRA),CONSTRUCTION FEES  - EXTERNAL,5902555443,1000087546
06.12.2022,HOUSING HRA,SILVER DCC LTD,"1,225.90",CAPITAL PS (HRA),CONSTRUCTION FEES  - EXTERNAL,5902555446,1000087546
06.12.2022,HOUSING HRA,SILVER DCC LTD,"1,469.30",CAPITAL PS (HRA),CONSTRUCTION FEES  - EXTERNAL,5902555483,1000087546
06.12.2022,HOUSING HRA,GC CONSTRUCT LTD,609.66,CAPITAL PS (HRA),CONSTRUCTION,2103594601,3000002106
06.12.2022,HOUSING HRA,FAITHDEAN PLC,"32,832.53",CAPITAL PS (HRA),CONSTRUCTION MAIN CONTRACT -CERTIFICATED,2103594599,3000002188
06.12.2022,HOUSING HRA,FAITHDEAN PLC,"66,324.32",CAPITAL PS (HRA),CONSTRUCTION MAIN CONTRACT -CERTIFICATED,2103594600,3000002188
06.12.2022,HOUSING HRA,FAITHDEAN PLC,"75,956.36",CAPITAL PS (HRA),CONSTRUCTION MAIN CONTRACT -CERTIFICATED,2103594593,3000002188
06.12.2022,HOUSING HRA,DAVID ROGERSON,300.00,CAPITAL PS (REGEN),CONSTRUCTION,5902555591,1753617
06.12.2022,HOUSING HRA,SHARPE PRITCHARD LLP,"1,263.60",CAPITAL PS (REGEN),LAND & BUILDINGS ACQUISITION FEES,5902555501,1790085
06.12.2022,HOUSING HRA,LAND REGISTRY,399.00,HOME OWNERSHIP,PROFESSIONAL FEES,6102062276,DIRECT DEBIT PAYMENT
06.12.2022,HOUSING HRA,STAFFINO,"1,092.50",HOME OWNERSHIP,SOFTWARE,6102062397,INTERNATIONAL PAYMENT
06.12.2022,HR & OT,ALEXANDER MANN SOLUTIONS LTD,"2,000.00",HR PAYROLL COSTS,RECRUITMENT ADVERTISING,5902555502,1000087606
06.12.2022,HR & OT,ALEXANDER MANN SOLUTIONS LTD,"5,000.00",HR PAYROLL COSTS,RECRUITMENT ADVERTISING,5902555502,1000087606
06.12.2022,LEISURE DIRECTORATE,CASTLE WATER LTD,"-5,737.36",BURGESS AREA TEAM,WATER,5902553976,1000078867
06.12.2022,LEISURE DIRECTORATE,CASTLE WATER LTD,"-5,717.88",BURGESS AREA TEAM,WATER,5902553968,1000078867
06.12.2022,LEISURE DIRECTORATE,CASTLE WATER LTD,"-4,254.25",BURGESS AREA TEAM,WATER,5902553972,1000078867
06.12.2022,LEISURE DIRECTORATE,CASTLE WATER LTD,"-1,231.59",BURGESS AREA TEAM,WATER,5902553976,1000078867
06.12.2022,LEISURE DIRECTORATE,CASTLE WATER LTD,-947.67,BURGESS AREA TEAM,WATER,5902553971,1000078867
06.12.2022,LEISURE DIRECTORATE,CASTLE WATER LTD,-352.10,BURGESS AREA TEAM,WATER,5902553974,1000078867
06.12.2022,LEISURE DIRECTORATE,CASTLE WATER LTD,-332.81,BURGESS AREA TEAM,WATER,5902553973,1000078867
06.12.2022,LEISURE DIRECTORATE,CASTLE WATER LTD,-261.32,BURGESS AREA TEAM,WATER,5902553976,1000078867
06.12.2022,LEISURE DIRECTORATE,CASTLE WATER LTD,"1,916.50",BURGESS AREA TEAM,WATER,5902553947,1000078867
06.12.2022,LEISURE DIRECTORATE,CASTLE WATER LTD,"5,723.78",BURGESS AREA TEAM,WATER,5902553961,1000078867
06.12.2022,LEISURE DIRECTORATE,CASTLE WATER LTD,"5,737.36",BURGESS AREA TEAM,WATER,5902553975,1000078867
06.12.2022,LEISURE DIRECTORATE,EDF ENERGY PLC,756.42,CEMETERIES,ELECTRICITY,5902555415,1008746
06.12.2022,LEISURE DIRECTORATE,CASTLE WATER LTD,252.66,GROVE VALE LIBRARY,WATER,5902554754,1000078867
06.12.2022,LEISURE DIRECTORATE,WF EDUCATION GROUP LIMITED,"4,368.00",JOHN HARVARD LIBRARY,EQUIPMENT PURCHASE & REPAIR,5902555324,1000086286
06.12.2022,LEISURE DIRECTORATE,ROYAL BOROUGH OF WINDSOR & MAIDENHEAD,"21,869.18",LIBRARIES DEVELOPMENT,SUBSCRIPTIONS,5902555397,1000054837
06.12.2022,LEISURE DIRECTORATE,CASTLE WATER LTD,554.84,PECKHAM LIBRARY,WATER,5902554666,1000078867
06.12.2022,LEISURE DIRECTORATE,CASTLE WATER LTD,"1,535.44",SDM BUDGET,WATER,5902554252,1000078867
06.12.2022,LEISURE DIRECTORATE,CASTLE WATER LTD,"1,704.88",SDM BUDGET,WATER,5902554256,1000078867
06.12.2022,LEISURE DIRECTORATE,C S G (USHERS) LTD,"58,707.50",TREES TERM CONTRACT,TREE MAINTENANCE,5902555291,1000073203
06.12.2022,PLANNING AND TRANSPORT,BPS CHARTERED SURVEYORS,"4,920.00",VALIDATION & FAST TRACK,PROFESSIONAL FEES,5902555550,1000077923
06.12.2022,PUBLIC HEALTH,CHARLOTTE  SHARMAN PRIMARY SCHOOL,"8,000.00",COVID-19 CONTROL OUTBREAK MGMNT.FUND,"EXAM FEES, SCHOOLS ONLY",2103594760,5001000016
06.12.2022,PUBLIC HEALTH,GRANGE PRIMARY SCHOOL,"10,000.00",COVID-19 CONTROL OUTBREAK MGMNT.FUND,"EXAM FEES, SCHOOLS ONLY",2103594761,5001000029
06.12.2022,PUBLIC HEALTH,TOWER BRIDGE PRIMARY SCHOOL,"8,000.00",COVID-19 CONTROL OUTBREAK MGMNT.FUND,"EXAM FEES, SCHOOLS ONLY",2103594758,5001000095
06.12.2022,PUBLIC HEALTH,VICTORY SCHOOL,"5,000.00",COVID-19 CONTROL OUTBREAK MGMNT.FUND,"EXAM FEES, SCHOOLS ONLY",2103594759,5001000098
06.12.2022,RESIDENT SERVICES,INTO SERVICES LONDON LTD,"2,500.00",GREAT ESTATES,GROUNDS MAINTENANCE,5902555406,1000059328
06.12.2022,RESIDENT SERVICES HGF,MAKING MOVES LTD,"4,660.20",HOMELESS PROJECTS,GRANTS,5902555290,1000081632
06.12.2022,RESIDENT SERVICES HGF,FRESHVIEW ESTATES,"2,381.94",HOMELESS PROJECTS,GRANTS,5902555278,1000086397
06.12.2022,RESIDENT SERVICES HGF,FRESHVIEW ESTATES,"2,381.94",HOMELESS PROJECTS,GRANTS,5902555281,1000086397
06.12.2022,RESIDENT SERVICES HGF,FRESHVIEW ESTATES,"2,381.94",HOMELESS PROJECTS,GRANTS,5902555285,1000086397
06.12.2022,RESIDENT SERVICES HGF,REDACTED PERSONAL DATA,"5,935.00",NIGHTLY TA (NSC),EXTERNAL AGENCIES AND BODIES,REDACTED,REDACTED
06.12.2022,RESIDENT SERVICES HGF,A & M PROPERTY AND CONSTRUCTION LTD,"2,775.00",NIGHTLY TA (NSC),EXTERNAL AGENCIES AND BODIES,5902555275,1000014564
06.12.2022,RESIDENT SERVICES HGF,LIVING ACCOMMODATION LTD,"1,085.00",NIGHTLY TA (NSC),EXTERNAL AGENCIES AND BODIES,5902555472,1000063985
06.12.2022,RESIDENT SERVICES HGF,EASYMOVE EA LIMITED,"1,881.00",NIGHTLY TA (NSC),EXTERNAL AGENCIES AND BODIES,5902555422,1000066859
06.12.2022,RESIDENT SERVICES HGF,DIAMOND PROPERTY MANAGEMENT LTD,"1,410.00",NIGHTLY TA (NSC),EXTERNAL AGENCIES AND BODIES,5902555303,1000088789
06.12.2022,RESIDENT SERVICES HGF,ST MUNGOS,"53,878.96",RAPID REHOUSING,EXTERNAL AGENCIES AND BODIES,5902555595,1000017600
06.12.2022,SBS SUPPORT,LOCKESLEYS ELECTRICAL SERVICES LTD,760.44,SBS - HOLDING ACCOUNT,OTHER CONTRACTORS,2103594589,3000001480
07.12.2022,ADULT SOCIAL CARE,REDACTED PERSONAL DATA,395.20,APPOINTEESHIPS,OTHER PAYMENTS FOR CLIENTS,REDACTED,REDACTED
07.12.2022,ADULT SOCIAL CARE,MICHAEL MANDELSTAM LTD,"1,200.00",ASW - PROFESSIONAL DEVELOPMENT,CONSULTANTS SERVICES,5902555683,1000044282
07.12.2022,ADULT SOCIAL CARE,SIAN DAVIES,555.00,DIR OF ASC,LEGAL FEES & COURT COSTS,2103595520,1000042111
07.12.2022,ADULT SOCIAL CARE,KENT COUNTY COUNCIL - LASER,"1,746.46",FRED FRANCIS CENTRE,ELECTRICITY,5902555649,1000012926
07.12.2022,ADULT SOCIAL CARE,REDACTED PERSONAL DATA,391.04,LD LTS 18-64,PAYMENTS TO CLIENTS (DIRECT PAYMENTS),REDACTED,REDACTED
07.12.2022,ADULT SOCIAL CARE,KENT COUNTY COUNCIL - LASER,"1,892.36",SOUTHWARK RESOURCE CENTRE,ELECTRICITY,5902555681,1000012926
07.12.2022,ADULT SOCIAL CARE,CONTACT PROFESSIONALS,-270.60,SPECIALIST CARE,SECTION 17 PAYMENTS TO AGENCIES/CARERS,2103595357,1000057263
07.12.2022,ADULT SOCIAL CARE,CONTACT PROFESSIONALS,-270.60,SPECIALIST CARE,SECTION 17 PAYMENTS TO AGENCIES/CARERS,2103595368,1000057263
07.12.2022,ADULT SOCIAL CARE,CONTACT PROFESSIONALS,-270.60,SPECIALIST CARE,SECTION 17 PAYMENTS TO AGENCIES/CARERS,2103595369,1000057263
07.12.2022,ADULT SOCIAL CARE,CONTACT PROFESSIONALS,-270.60,SPECIALIST CARE,SECTION 17 PAYMENTS TO AGENCIES/CARERS,2103595454,1000057263
07.12.2022,ADULT SOCIAL CARE,CONTACT PROFESSIONALS,252.56,SPECIALIST CARE,SECTION 17 PAYMENTS TO AGENCIES/CARERS,2103595447,1000057263
07.12.2022,ADULT SOCIAL CARE,CONTACT PROFESSIONALS,270.60,SPECIALIST CARE,SECTION 17 PAYMENTS TO AGENCIES/CARERS,2103595342,1000057263
07.12.2022,ADULT SOCIAL CARE,CONTACT PROFESSIONALS,270.60,SPECIALIST CARE,SECTION 17 PAYMENTS TO AGENCIES/CARERS,2103595343,1000057263
07.12.2022,ADULT SOCIAL CARE,CONTACT PROFESSIONALS,270.60,SPECIALIST CARE,SECTION 17 PAYMENTS TO AGENCIES/CARERS,2103595346,1000057263
07.12.2022,ADULT SOCIAL CARE,CONTACT PROFESSIONALS,270.60,SPECIALIST CARE,SECTION 17 PAYMENTS TO AGENCIES/CARERS,2103595392,1000057263
07.12.2022,ADULT SOCIAL CARE,CONTACT PROFESSIONALS,288.64,SPECIALIST CARE,SECTION 17 PAYMENTS TO AGENCIES/CARERS,2103595353,1000057263
07.12.2022,ADULT SOCIAL CARE,CONTACT PROFESSIONALS,288.64,SPECIALIST CARE,SECTION 17 PAYMENTS TO AGENCIES/CARERS,2103595379,1000057263
07.12.2022,ADULT SOCIAL CARE,CONTACT PROFESSIONALS,324.72,SPECIALIST CARE,SECTION 17 PAYMENTS TO AGENCIES/CARERS,2103595384,1000057263
07.12.2022,ADULT SOCIAL CARE,CONTACT PROFESSIONALS,324.72,SPECIALIST CARE,SECTION 17 PAYMENTS TO AGENCIES/CARERS,2103595385,1000057263
07.12.2022,ADULT SOCIAL CARE,CONTACT PROFESSIONALS,324.72,SPECIALIST CARE,SECTION 17 PAYMENTS TO AGENCIES/CARERS,2103595386,1000057263
07.12.2022,ADULT SOCIAL CARE,CONTACT PROFESSIONALS,324.72,SPECIALIST CARE,SECTION 17 PAYMENTS TO AGENCIES/CARERS,2103595387,1000057263
07.12.2022,ADULT SOCIAL CARE,CONTACT PROFESSIONALS,324.72,SPECIALIST CARE,SECTION 17 PAYMENTS TO AGENCIES/CARERS,2103595461,1000057263
07.12.2022,ADULT SOCIAL CARE,CONTACT PROFESSIONALS,360.80,SPECIALIST CARE,SECTION 17 PAYMENTS TO AGENCIES/CARERS,2103595322,1000057263
07.12.2022,ADULT SOCIAL CARE,CONTACT PROFESSIONALS,360.80,SPECIALIST CARE,SECTION 17 PAYMENTS TO AGENCIES/CARERS,2103595334,1000057263
07.12.2022,ADULT SOCIAL CARE,CONTACT PROFESSIONALS,360.80,SPECIALIST CARE,SECTION 17 PAYMENTS TO AGENCIES/CARERS,2103595344,1000057263
07.12.2022,ADULT SOCIAL CARE,CONTACT PROFESSIONALS,360.80,SPECIALIST CARE,SECTION 17 PAYMENTS TO AGENCIES/CARERS,2103595462,1000057263
07.12.2022,ADULT SOCIAL CARE,CONTACT PROFESSIONALS,360.80,SPECIALIST CARE,SECTION 17 PAYMENTS TO AGENCIES/CARERS,2103595476,1000057263
07.12.2022,ADULT SOCIAL CARE,CONTACT PROFESSIONALS,432.96,SPECIALIST CARE,SECTION 17 PAYMENTS TO AGENCIES/CARERS,2103595366,1000057263
07.12.2022,ADULT SOCIAL CARE,CONTACT PROFESSIONALS,432.96,SPECIALIST CARE,SECTION 17 PAYMENTS TO AGENCIES/CARERS,2103595419,1000057263
07.12.2022,ADULT SOCIAL CARE,CONTACT PROFESSIONALS,631.40,SPECIALIST CARE,SECTION 17 PAYMENTS TO AGENCIES/CARERS,2103595402,1000057263
07.12.2022,ADULT SOCIAL CARE,CONTACT PROFESSIONALS,739.64,SPECIALIST CARE,SECTION 17 PAYMENTS TO AGENCIES/CARERS,2103595364,1000057263
07.12.2022,ADULT SOCIAL CARE,SUPREME CARE SERVICES LTD,288.00,SPECIALIST CARE,SECTION 17 PAYMENTS TO AGENCIES/CARERS,2103595404,1000059416
07.12.2022,ADULT SOCIAL CARE,SUPREME CARE SERVICES LTD,288.00,SPECIALIST CARE,SECTION 17 PAYMENTS TO AGENCIES/CARERS,2103595406,1000059416
07.12.2022,ADULT SOCIAL CARE,SUPREME CARE SERVICES LTD,288.00,SPECIALIST CARE,SECTION 17 PAYMENTS TO AGENCIES/CARERS,2103595434,1000059416
07.12.2022,ADULT SOCIAL CARE,SUPREME CARE SERVICES LTD,288.00,SPECIALIST CARE,SECTION 17 PAYMENTS TO AGENCIES/CARERS,2103595441,1000059416
07.12.2022,ADULT SOCIAL CARE,SUPREME CARE SERVICES LTD,288.00,SPECIALIST CARE,SECTION 17 PAYMENTS TO AGENCIES/CARERS,2103595442,1000059416
07.12.2022,ADULT SOCIAL CARE,SUPREME CARE SERVICES LTD,288.00,SPECIALIST CARE,SECTION 17 PAYMENTS TO AGENCIES/CARERS,2103595463,1000059416
07.12.2022,ADULT SOCIAL CARE,SUPREME CARE SERVICES LTD,288.00,SPECIALIST CARE,SECTION 17 PAYMENTS TO AGENCIES/CARERS,2103595464,1000059416
07.12.2022,ADULT SOCIAL CARE,SUPREME CARE SERVICES LTD,288.00,SPECIALIST CARE,SECTION 17 PAYMENTS TO AGENCIES/CARERS,2103595467,1000059416
07.12.2022,ADULT SOCIAL CARE,SUPREME CARE SERVICES LTD,288.00,SPECIALIST CARE,SECTION 17 PAYMENTS TO AGENCIES/CARERS,2103595468,1000059416
07.12.2022,ADULT SOCIAL CARE,SUPREME CARE SERVICES LTD,288.00,SPECIALIST CARE,SECTION 17 PAYMENTS TO AGENCIES/CARERS,2103595469,1000059416
07.12.2022,ADULT SOCIAL CARE,SUPREME CARE SERVICES LTD,324.00,SPECIALIST CARE,SECTION 17 PAYMENTS TO AGENCIES/CARERS,2103595433,1000059416
07.12.2022,ADULT SOCIAL CARE,SUPREME CARE SERVICES LTD,360.00,SPECIALIST CARE,SECTION 17 PAYMENTS TO AGENCIES/CARERS,2103595431,1000059416
07.12.2022,ADULT SOCIAL CARE,SUPREME CARE SERVICES LTD,360.00,SPECIALIST CARE,SECTION 17 PAYMENTS TO AGENCIES/CARERS,2103595439,1000059416
07.12.2022,ADULT SOCIAL CARE,SUPREME CARE SERVICES LTD,432.00,SPECIALIST CARE,SECTION 17 PAYMENTS TO AGENCIES/CARERS,2103595430,1000059416
07.12.2022,ADULT SOCIAL CARE,SUPREME CARE SERVICES LTD,432.00,SPECIALIST CARE,SECTION 17 PAYMENTS TO AGENCIES/CARERS,2103595435,1000059416
07.12.2022,ADULT SOCIAL CARE,SUPREME CARE SERVICES LTD,432.00,SPECIALIST CARE,SECTION 17 PAYMENTS TO AGENCIES/CARERS,2103595438,1000059416
07.12.2022,ADULT SOCIAL CARE,SUPREME CARE SERVICES LTD,432.00,SPECIALIST CARE,SECTION 17 PAYMENTS TO AGENCIES/CARERS,2103595440,1000059416
07.12.2022,ADULT SOCIAL CARE,SUPREME CARE SERVICES LTD,432.00,SPECIALIST CARE,SECTION 17 PAYMENTS TO AGENCIES/CARERS,2103595465,1000059416
07.12.2022,ADULT SOCIAL CARE,SUPREME CARE SERVICES LTD,504.00,SPECIALIST CARE,SECTION 17 PAYMENTS TO AGENCIES/CARERS,2103595436,1000059416
07.12.2022,ADULT SOCIAL CARE,SUPREME CARE SERVICES LTD,612.00,SPECIALIST CARE,SECTION 17 PAYMENTS TO AGENCIES/CARERS,2103595405,1000059416
07.12.2022,ADULT SOCIAL CARE,SUPREME CARE SERVICES LTD,864.00,SPECIALIST CARE,SECTION 17 PAYMENTS TO AGENCIES/CARERS,2103595432,1000059416
07.12.2022,ADULT SOCIAL CARE,SUPREME CARE SERVICES LTD,864.00,SPECIALIST CARE,SECTION 17 PAYMENTS TO AGENCIES/CARERS,2103595437,1000059416
07.12.2022,ADULT SOCIAL CARE,CHILDREN'S COMPLEX  CARE LTD,366.24,SPECIALIST CARE,SECTION 17 PAYMENTS TO AGENCIES/CARERS,2103595428,1000069262
07.12.2022,ADULT SOCIAL CARE,CHILDREN'S COMPLEX  CARE LTD,366.24,SPECIALIST CARE,SECTION 17 PAYMENTS TO AGENCIES/CARERS,2103595429,1000069262
07.12.2022,ADULT SOCIAL CARE,CHILDREN'S COMPLEX  CARE LTD,686.70,SPECIALIST CARE,SECTION 17 PAYMENTS TO AGENCIES/CARERS,2103595327,1000069262
07.12.2022,ADULT SOCIAL CARE,CHILDREN'S COMPLEX  CARE LTD,"2,366.92",SPECIALIST CARE,SECTION 17 PAYMENTS TO AGENCIES/CARERS,2103595427,1000069262
07.12.2022,ADULT SOCIAL CARE,CHILDREN'S COMPLEX  CARE LTD,"4,803.84",SPECIALIST CARE,SECTION 17 PAYMENTS TO AGENCIES/CARERS,2103595403,1000069262
07.12.2022,ASSET MANAGEMENT,SGN CONNECTIONS LTD,"1,317.60",VOIDS (SOUTH),OTHER R&M,5902555715,1000055428
07.12.2022,CENTRAL FUNCTIONS,CATCH - IT PEST CONTROL LIMITED,"2,138.00",COMMERCIAL PROPERTIES,BUILDING R&M,5902555644,1000083836
07.12.2022,CENTRAL FUNCTIONS,EDF ENERGY CUST FIELD SERVICES,432.00,HEATING ACCOUNT,ELECTRICITY,5902555647,1000025781
07.12.2022,CENTRAL FUNCTIONS,SWITCH 2 ENERGY LIMTED,278.65,HEATING ACCOUNT,GAS,5902555628,1000085578
07.12.2022,CENTRAL FUNCTIONS,SWITCH 2 ENERGY LIMTED,807.68,HEATING ACCOUNT,GAS,5902555614,1000085578
07.12.2022,CENTRAL FUNCTIONS,SWITCH 2 ENERGY LIMTED,"1,042.23",HEATING ACCOUNT,GAS,5902555609,1000085578
07.12.2022,CHIEF EXECUTIVE,SHERGROUP LTD,872.00,CAPITAL PS (REGEN),CONSTRUCTION SITE COSTS,5902555773,1000087977
07.12.2022,CHIEF EXECUTIVE,SHERGROUP LTD,"2,488.00",CAPITAL PS (REGEN),CONSTRUCTION SITE COSTS,5902555773,1000087977
07.12.2022,CHIEF EXECUTIVE,CIRCET (UK) LTD,"45,476.19",CAPITAL PS (REGEN),CONSTRUCTION MAIN CONTRACT -CERTIFICATED,2103595485,3000002134
07.12.2022,CHIEF EXECUTIVE'S OFFICE,HANLON COMPUTER SYSTEM LTD,"8,895.00",CHIEF EXECUTIVE'S OFFICE,EXTERNAL AGENCIES AND BODIES,5902555762,1000023031
07.12.2022,CHIEF EXECUTIVE'S OFFICE,SABROSO LTD,479.77,CHIEF EXECUTIVE'S OFFICE,EXTERNAL AGENCIES AND BODIES,5902555758,1000084610
07.12.2022,CHILDREN AND FAMILIES,ACAINN LTD,"6,500.00",ADOPT LONDON SOUTH,CONSULTANTS SERVICES,5902555597,1000083763
07.12.2022,CHILDREN AND FAMILIES,ALICE MALLORIE THERAPY SERVICE,405.00,ADOPTION SUPP FUND,EXTERNAL AGENCIES AND BODIES,5902555713,1000085491
07.12.2022,CHILDREN AND FAMILIES,PLAY THERAPY SERVICES LTD,600.00,ADOPTION SUPP FUND,EXTERNAL AGENCIES AND BODIES,5902555742,1000085546
07.12.2022,CHILDREN AND FAMILIES,REDACTED PERSONAL DATA,338.00,ADOPTION SUPP FUND,EXTERNAL AGENCIES AND BODIES,REDACTED,REDACTED
07.12.2022,CHILDREN AND FAMILIES,REDACTED PERSONAL DATA,379.50,ADOPTION SUPP FUND,EXTERNAL AGENCIES AND BODIES,REDACTED,REDACTED
07.12.2022,CHILDREN AND FAMILIES,ST DAVID'S CHILDREN SOCIETY,"5,634.00",ALS INTER AGENCY,EXTERNAL AGENCIES AND BODIES,5902555726,1000051640
07.12.2022,CHILDREN AND FAMILIES,DISCLOSURE & BARRING SERVICE,"2,584.00",CENTRAL SUPPORT,EXTERNAL AGENCIES AND BODIES,5902555703,1000027861
07.12.2022,CHILDREN AND FAMILIES,CASTLE WATER LTD,521.62,CENTRAL SUPPORT,WATER,5902555749,1000078867
07.12.2022,CHILDREN AND FAMILIES,STONELAKE LONDON LTD,"18,000.00",CHILDREN�S RESID,RESIDENTIAL CARE,2103595313,1000080075
07.12.2022,CHILDREN AND FAMILIES,KEYS PCE LTD,"17,380.00",CHILDREN�S RESID,RESIDENTIAL CARE,2103595314,1000080090
07.12.2022,CHILDREN AND FAMILIES,AVOCET SOCIAL CARE LTD,"5,200.00",FOSTERING TEAM,PROFESSIONAL FEES,5902555695,1000071940
07.12.2022,CHILDREN AND FAMILIES,REDACTED PERSONAL DATA,"2,000.00",LEAVING CARE GRANT,OTHER PAYMENTS FOR CLIENTS,REDACTED,REDACTED
07.12.2022,CHILDREN AND FAMILIES,ALICE MALLORIE THERAPY SERVICE,600.00,NEW ASF,EXTERNAL AGENCIES AND BODIES,5902555712,1000085491
07.12.2022,CHILDREN AND FAMILIES,PLAY THERAPY SERVICES LTD,300.00,NEW ASF,EXTERNAL AGENCIES AND BODIES,5902555743,1000085546
07.12.2022,CHILDREN AND FAMILIES,THE PURPLE ELEPHANT PROJECT,580.00,NEW ASF,EXTERNAL AGENCIES AND BODIES,5902555751,1000088332
07.12.2022,CHILDREN AND FAMILIES,REDACTED PERSONAL DATA,"1,210.00",NEW ASF,EXTERNAL AGENCIES AND BODIES,REDACTED,REDACTED
07.12.2022,CHILDREN AND FAMILIES,REDACTED PERSONAL DATA,552.00,NEW ASF,EXTERNAL AGENCIES AND BODIES,REDACTED,REDACTED
07.12.2022,CHILDREN AND FAMILIES,REDACTED PERSONAL DATA,300.00,NEW ASF,EXTERNAL AGENCIES AND BODIES,REDACTED,REDACTED
07.12.2022,CHILDREN AND FAMILIES,REDACTED PERSONAL DATA,455.10,NEW ASF,EXTERNAL AGENCIES AND BODIES,REDACTED,REDACTED
07.12.2022,CHILDREN AND FAMILIES,REDACTED PERSONAL DATA,606.80,NEW ASF,EXTERNAL AGENCIES AND BODIES,REDACTED,REDACTED
07.12.2022,CHILDREN AND FAMILIES,REDACTED PERSONAL DATA,606.80,NEW ASF,EXTERNAL AGENCIES AND BODIES,REDACTED,REDACTED
07.12.2022,CHILDREN AND FAMILIES,REDACTED PERSONAL DATA,825.00,NEW ASF,EXTERNAL AGENCIES AND BODIES,REDACTED,REDACTED
07.12.2022,CHILDREN AND FAMILIES,PURPLE PEBBLES(CHILD CARE) SERVICES,"3,857.14",SEMI-IND CARELEAVERS,EXTERNAL AGENCIES AND BODIES,2103595227,1000070705
07.12.2022,CHILDREN AND FAMILIES,PURPLE PEBBLES(CHILD CARE) SERVICES,800.00,SEMI-IND LAC 16-17,OTHER PAYMENTS FOR CLIENTS,2103595200,1000070705
07.12.2022,CHILDREN AND FAMILIES,HARVEST CARE GROUP LTD,"3,120.00",SEMI-IND LAC 16-17,OTHER PAYMENTS FOR CLIENTS,2103595202,1000079059
07.12.2022,CHILDREN AND FAMILIES,EXPERT IN MIND LTD,685.74,SFS MGMT & SUPPORT,LEGAL FEES & COURT COSTS,2103595501,1000062889
07.12.2022,CHILDREN AND FAMILIES,DR GRANGE AND ASSOCIATES LTD,"1,717.96",SFS MGMT & SUPPORT,LEGAL FEES & COURT COSTS,2103595496,1000078560
07.12.2022,CHILDREN AND FAMILIES,REDACTED PERSONAL DATA,300.00,SFS MGMT & SUPPORT,LEGAL FEES & COURT COSTS,REDACTED,REDACTED
07.12.2022,CHILDREN AND FAMILIES,REDACTED PERSONAL DATA,750.00,SFS MGMT & SUPPORT,LEGAL FEES & COURT COSTS,REDACTED,REDACTED
07.12.2022,CHILDREN AND FAMILIES,JOSHUA SWIRSKY,300.00,SFS MGMT & SUPPORT,LEGAL FEES & COURT COSTS,2103595508,1000017798
07.12.2022,CHILDREN AND FAMILIES,TABITHA BARRAN,500.00,SFS MGMT & SUPPORT,LEGAL FEES & COURT COSTS,2103595521,1000053940
07.12.2022,CHILDREN AND FAMILIES,TABITHA BARRAN,500.00,SFS MGMT & SUPPORT,LEGAL FEES & COURT COSTS,2103595522,1000053940
07.12.2022,CHILDREN AND FAMILIES,WILLIAM DEAN,400.00,SFS MGMT & SUPPORT,LEGAL FEES & COURT COSTS,2103595528,1000070780
07.12.2022,CHILDREN AND FAMILIES,WILLIAM DEAN,980.00,SFS MGMT & SUPPORT,LEGAL FEES & COURT COSTS,2103595529,1000070780
07.12.2022,CHILDREN AND FAMILIES,WILLIAM DEAN,"1,250.00",SFS MGMT & SUPPORT,LEGAL FEES & COURT COSTS,2103595530,1000070780
07.12.2022,CHILDREN AND FAMILIES,THOMAS JONES,400.00,SFS MGMT & SUPPORT,LEGAL FEES & COURT COSTS,2103595524,1000081619
07.12.2022,CHILDREN AND FAMILIES,VICTORIA KIVER,600.00,SFS MGMT & SUPPORT,LEGAL FEES & COURT COSTS,2103595526,1000083032
07.12.2022,CHILDREN AND FAMILIES,FRANCESCA KOLAR,275.00,SFS MGMT & SUPPORT,LEGAL FEES & COURT COSTS,2103595502,1000086974
07.12.2022,CHILDREN AND FAMILIES,MADELEINE MILLER,600.00,SFS MGMT & SUPPORT,LEGAL FEES & COURT COSTS,2103595510,1000087913
07.12.2022,CHILDREN AND FAMILIES,JOANNA THOM,300.00,SFS MGMT & SUPPORT,LEGAL FEES & COURT COSTS,2103595505,1000088907
07.12.2022,CHILDREN AND FAMILIES,REDACTED PERSONAL DATA,388.04,SPECIAL GUARDIANSHIP,PAYMENTS TO CARERS,REDACTED,REDACTED
07.12.2022,CHILDREN AND FAMILIES,REDACTED PERSONAL DATA,342.45,SPECIAL GUARDIANSHIP,PAYMENTS TO CARERS,REDACTED,REDACTED
07.12.2022,CHILDREN AND FAMILIES,REDACTED PERSONAL DATA,389.34,SPECIAL GUARDIANSHIP,PAYMENTS TO CARERS,REDACTED,REDACTED
07.12.2022,CHILDREN AND FAMILIES,REDACTED PERSONAL DATA,356.15,SPECIAL GUARDIANSHIP,PAYMENTS TO CARERS,REDACTED,REDACTED
07.12.2022,CHILDREN AND FAMILIES,REDACTED PERSONAL DATA,403.04,SPECIAL GUARDIANSHIP,PAYMENTS TO CARERS,REDACTED,REDACTED
07.12.2022,CHILDREN AND FAMILIES,REDACTED PERSONAL DATA,525.00,SPECIAL GUARDIANSHIP,PAYMENTS TO CARERS,REDACTED,REDACTED
07.12.2022,CHILDREN AND FAMILIES,REDACTED PERSONAL DATA,341.15,SPECIAL GUARDIANSHIP,PAYMENTS TO CARERS,REDACTED,REDACTED
07.12.2022,CHILDREN AND FAMILIES,REDACTED PERSONAL DATA,338.00,SPECIAL GUARDIANSHIP,PAYMENTS TO CARERS,REDACTED,REDACTED
07.12.2022,CHILDREN AND FAMILIES,REDACTED PERSONAL DATA,338.00,SPECIAL GUARDIANSHIP,PAYMENTS TO CARERS,REDACTED,REDACTED
07.12.2022,CHILDREN AND FAMILIES,REDACTED PERSONAL DATA,472.71,SPECIAL GUARDIANSHIP,PAYMENTS TO CARERS,REDACTED,REDACTED
07.12.2022,CHILDREN AND FAMILIES,REDACTED PERSONAL DATA,472.71,SPECIAL GUARDIANSHIP,PAYMENTS TO CARERS,REDACTED,REDACTED
07.12.2022,CHILDREN AND FAMILIES,REDACTED PERSONAL DATA,341.22,SPECIAL GUARDIANSHIP,PAYMENTS TO CARERS,REDACTED,REDACTED
07.12.2022,CHILDREN AND FAMILIES,STEP AHEAD SERVICES LTD,"2,057.14",UASC CARELEAVERS,EXTERNAL AGENCIES AND BODIES,2103595225,1000036544
07.12.2022,CHILDREN AND FAMILIES,STEP AHEAD SERVICES LTD,300.00,UASC CARELEAVERS,OTHER PAYMENTS FOR CLIENTS,2103595226,1000036544
07.12.2022,CHILDREN AND FAMILIES,LOVE146,"2,101.79",UASC CARELEAVERS,EXTERNAL AGENCIES AND BODIES,2103595229,1000085884
07.12.2022,CHILDREN AND FAMILIES,PURPLE PEBBLES(CHILD CARE) SERVICES,"3,642.86",UASC LAC 16-17,EXTERNAL AGENCIES AND BODIES,2103595215,1000070705
07.12.2022,CHILDREN AND FAMILIES,PURPLE PEBBLES(CHILD CARE) SERVICES,800.00,UASC LAC 16-17,OTHER PAYMENTS FOR CLIENTS,2103595213,1000070705
07.12.2022,COMMUNITIES HRA,EDF ENERGY PLC,"1,303.09",TRA HALLS (REPAIRS),ELECTRICITY,5902555612,1008746
07.12.2022,CUSTOMER EXPERIENCE HGF,DIGNITY FUNERALS LTD,"15,705.00",CORONER'S,OTHER CONTRACTORS,5902555709,1000041373
07.12.2022,CUSTOMER EXPERIENCE HGF,DIGNITY FUNERALS LTD,"18,860.00",CORONER'S,OTHER CONTRACTORS,5902555704,1000041373
07.12.2022,CUSTOMER EXPERIENCE HGF,IMPERIAL COLLEGE PROJECTS LTD,578.00,CORONER'S,PROFESSIONAL FEES,5902555605,1000080106
07.12.2022,CUSTOMER EXPERIENCE HGF,IMPERIAL COLLEGE PROJECTS LTD,599.00,CORONER'S,PROFESSIONAL FEES,5902555604,1000080106
07.12.2022,CUSTOMER EXPERIENCE HGF,QUEEN MARY UNIVERSITY OF LONDON,"1,659.00",CORONER'S,PROFESSIONAL FEES,5902555757,1000088391
07.12.2022,CUSTOMER EXPERIENCE HGF,HARTLEPOWER C.I.C.,833.50,IT MANAGEMENT,COMPUTER CONSUMABLES,5902555724,1000087238
07.12.2022,DSG,SALTCO LTD T/A KELLY EXECUTIVE,"4,692.00",SUMMERHOUSE,HIRED VEHICLES,5902555783,1000000548
07.12.2022,DSG,SALTCO LTD T/A KELLY EXECUTIVE,"4,692.00",SUMMERHOUSE,HIRED VEHICLES,5902555786,1000000548
07.12.2022,DSG,GV GROUP (GATE VENTURES) LTD,942.31,SUMMERHOUSE,CATERING MATERIALS & SUPPLIES,5902555790,1000086643
07.12.2022,EDUCATION,THE BLACK NURSERY MANAGER LTD,350.00,GOVERNOR SUPPORT,CONSULTANTS SERVICES,5902555629,1000087818
07.12.2022,ENVIRONMENT AND LEISURE,WATERMAN INFRASTRUCTURE & ENVIRONMENT LTD,"5,317.80",CAPITAL PS (LEISURE),CONSTR'N SUB CONTRACT - NON CERTIFICATED,5902555774,1000060529
07.12.2022,ENVIRONMENT AND LEISURE,WHEELS FOR WELLBEING,500.00,CAPITAL PS (LEISURE),CONSTRUCTION,5902555732,1000069996
07.12.2022,ENVIRONMENT AND LEISURE,AHMED MUEN,350.00,ENFORCEMENT,LEGAL FEES & COURT COSTS,2103595490,1000084896
07.12.2022,ENVIRONMENT AND LEISURE,OT GROUP LIMITED,415.55,MANAGEMENT TEAM,STATIONERY,5902555615,1000087285
07.12.2022,ENVIRONMENT AND LEISURE,SOUTHWARK NEWSPAPER LTD,768.00,STREET WORKS OVERHEADS,MARKETING & PUBLICITY SERVICES,5902555667,1556957
07.12.2022,ENVIRONMENT AND LEISURE,SOUTHWARK NEWSPAPER LTD,792.00,STREET WORKS OVERHEADS,MARKETING & PUBLICITY SERVICES,5902555668,1556957
07.12.2022,ENVIRONMENT AND LEISURE,SOUTHWARK NEWSPAPER LTD,"1,032.00",STREET WORKS OVERHEADS,MARKETING & PUBLICITY SERVICES,5902555688,1556957
07.12.2022,ENVIRONMENT AND LEISURE,SOUTHWARK NEWSPAPER LTD,"1,056.00",STREET WORKS OVERHEADS,MARKETING & PUBLICITY SERVICES,5902555684,1556957
07.12.2022,ENVIRONMENT AND LEISURE,SOUTHWARK NEWSPAPER LTD,"1,152.00",STREET WORKS OVERHEADS,MARKETING & PUBLICITY SERVICES,5902555666,1556957
07.12.2022,ENVIRONMENT AND LEISURE,SOUTHWARK NEWSPAPER LTD,"1,272.00",STREET WORKS OVERHEADS,MARKETING & PUBLICITY SERVICES,5902555671,1556957
07.12.2022,ENVIRONMENT AND LEISURE,SOUTHWARK NEWSPAPER LTD,"1,344.00",STREET WORKS OVERHEADS,MARKETING & PUBLICITY SERVICES,5902555725,1556957
07.12.2022,ENVIRONMENT DIRECTORATE,GREENHAM TRADING LTD,708.63,ESTATE CLEANING-GENERAL,MATERIALS,5902555779,1000006610
07.12.2022,ENVIRONMENT DIRECTORATE,JARED NORMAN,500.00,SASBU,LEGAL FEES & COURT COSTS,2103595504,1000064080
07.12.2022,ENVIRONMENT DIRECTORATE,RICHARD DAVIES,300.00,SASBU,LEGAL FEES & COURT COSTS,2103595512,1000080907
07.12.2022,ENVIRONMENT DIRECTORATE,GLASDON UK LIMITED,"2,501.94",STREET CLEANING-GENERAL,MATERIALS,5902555606,1024073
07.12.2022,HOUSING,BCS (ELECTRICAL & BUILDING SERVICES LTD),"56,489.95",BCS,I-WORLD CONTRACTORS HOLDING ACCOUNT,5902555784,1000062321
07.12.2022,HOUSING,DUCTCLEAN (UK) LTD,"2,190.19",DUCTCLEAN,I-WORLD CONTRACTORS HOLDING ACCOUNT,2103595487,3000001635
07.12.2022,HOUSING,DUCTCLEAN (UK) LTD,"29,266.56",DUCTCLEAN,I-WORLD CONTRACTORS HOLDING ACCOUNT,2103595486,3000001635
07.12.2022,HOUSING,FRANKLYN SHAW ASSOCIATES LTD,"89,104.12",FRANKLIN SHAW ASSOCIATES,I-WORLD CONTRACTORS HOLDING ACCOUNT,2103595484,3000001465
07.12.2022,HOUSING GENERAL FUND,AJM ADAPTIONS LTD,940.00,CAPITAL PS (HOUSING GF),CAPITAL GRANTS,5902555613,1000080297
07.12.2022,HOUSING GENERAL FUND,UNIFIED CONSULTANCY LTD,"18,000.00",CAPITAL PS (HOUSING GF),ICT ACQUISITION,5902555747,1000081827
07.12.2022,HOUSING HRA,LONDON UNDERGROUND LTD,722.50,CAPITAL PS (HRA),CONSTRUCTION FEES  - EXTERNAL,5902555707,1000059727
07.12.2022,HOUSING HRA,AIREY MILLER LIMITED,"3,602.50",CAPITAL PS (HRA),CONSTRUCTION FEES - EMPLOYERS AGENT,5902555600,1000085476
07.12.2022,HOUSING HRA,ANAYSSE-JACOBS SOLICITORS,"30,000.00",CAPITAL PS (HRA),CAPITAL GRANTS,2103593936,1000086247
07.12.2022,HR & OT,ANDERSON TRAVEL LTD,335.00,CORPORATE TRAINING BUDGETS,HIRED VEHICLES,5902554999,1958067
07.12.2022,LEISURE DIRECTORATE,WESTMINSTER WASTE,709.00,CEMETERIES,OTHER CONTRACTORS,5902555382,1000080933
07.12.2022,LEISURE DIRECTORATE,QUADRON SERVICES LIMITED,-318.48,SOUTHWARK AREA TEAM,GROUNDS MAINTENANCE,5902554851,1000066528
07.12.2022,LEISURE DIRECTORATE,QUADRON SERVICES LIMITED,318.48,SOUTHWARK AREA TEAM,GROUNDS MAINTENANCE,5902554850,1000066528
07.12.2022,LEISURE DIRECTORATE,THE PARTICIPATION PEOPLE,"2,682.00",YOUTH PARLIAMENT,TRAINING,5902555610,1000074059
07.12.2022,RESIDENT SERVICES,REDACTED PERSONAL DATA,720.00,TA PLACEMENTS,EXTERNAL AGENCIES AND BODIES,REDACTED,REDACTED
07.12.2022,RESIDENT SERVICES HGF,ROYALTY LETTINGS LTD,"1,853.73",HOMELESS PROJECTS,GRANTS,5902555717,1000086357
07.12.2022,RESIDENT SERVICES HGF,ANDREW LANE,"2,500.00",HOMELESS PROJECTS,LEGAL FEES & COURT COSTS,2103595491,1000029956
07.12.2022,RESIDENT SERVICES HGF,JANE HODGSON,"1,800.00",HOMELESS PROJECTS,LEGAL FEES & COURT COSTS,2103595503,1000068972
07.12.2022,RESIDENT SERVICES HGF,NOWMEDICAL LTD,"3,925.00",HOUSING OPTIONS,PROFESSIONAL FEES,5902555637,1000068185
07.12.2022,RESIDENT SERVICES HGF,SOUTH THAMES HOUSING LTD,"2,750.70",PSL PLACEMENTS,GRANTS,5902555771,1000084224
08.12.2022,ADULT SOCIAL CARE,ALLPAY LTD,487.78,APPOINTEESHIPS,EXTERNAL AGENCIES AND BODIES,5902555817,1000043001
08.12.2022,ADULT SOCIAL CARE,REDACTED PERSONAL DATA,600.00,APPOINTEESHIPS,OTHER PAYMENTS FOR CLIENTS,REDACTED,REDACTED
08.12.2022,ADULT SOCIAL CARE,ALLPAY LTD,578.27,ASC CLIENT AFFAIRS TEAM,REMOVAL EXPENSES,5902556009,1000043001
08.12.2022,ADULT SOCIAL CARE,CREATING CARE CHOICES LTD,"21,214.29",DISABILITIES LAC,RESIDENTIAL CARE,2103595611,1000076738
08.12.2022,ADULT SOCIAL CARE,REDACTED PERSONAL DATA,639.00,LD LTS 18-64,SUPPORTED LIVING,REDACTED,REDACTED
08.12.2022,ADULT SOCIAL CARE,MIHOMECARE LTD,"1,495.51",MEM LTS 65+,HOMECARE - C&V,2103595669,1000042594
08.12.2022,ADULT SOCIAL CARE,MIHOMECARE LTD,"1,892.83",MEM LTS 65+,HOMECARE - C&V,2103595635,1000042594
08.12.2022,ADULT SOCIAL CARE,ANDREW RELIABLE REMOVAL SERVICE LTD,300.00,MH LTS 18-64,PUBLIC TRANSPORT,5902555941,1000071141
08.12.2022,ADULT SOCIAL CARE,ANDREW RELIABLE REMOVAL SERVICE LTD,300.00,MH LTS 18-64,PUBLIC TRANSPORT,5902555942,1000071141
08.12.2022,ADULT SOCIAL CARE,ANDREW RELIABLE REMOVAL SERVICE LTD,350.00,MH LTS 18-64,PUBLIC TRANSPORT,5902555939,1000071141
08.12.2022,ADULT SOCIAL CARE,ANDREW RELIABLE REMOVAL SERVICE LTD,300.00,MH LTS 18-64,REMOVAL EXPENSES,5902555934,1000071141
08.12.2022,ADULT SOCIAL CARE,REDACTED PERSONAL DATA,284.00,MH LTS 18-64,SUPPORTED LIVING,REDACTED,REDACTED
08.12.2022,ADULT SOCIAL CARE,REDACTED PERSONAL DATA,284.00,MH LTS 18-64,SUPPORTED LIVING,REDACTED,REDACTED
08.12.2022,ADULT SOCIAL CARE,REDACTED PERSONAL DATA,284.00,MH LTS 18-64,SUPPORTED LIVING,REDACTED,REDACTED
08.12.2022,ADULT SOCIAL CARE,REDACTED PERSONAL DATA,284.00,MH LTS 18-64,SUPPORTED LIVING,REDACTED,REDACTED
08.12.2022,ADULT SOCIAL CARE,REDACTED PERSONAL DATA,284.00,MH LTS 18-64,SUPPORTED LIVING,REDACTED,REDACTED
08.12.2022,ADULT SOCIAL CARE,REDACTED PERSONAL DATA,319.50,MH LTS 18-64,SUPPORTED LIVING,REDACTED,REDACTED
08.12.2022,ADULT SOCIAL CARE,REDACTED PERSONAL DATA,355.00,MH LTS 18-64,SUPPORTED LIVING,REDACTED,REDACTED
08.12.2022,ADULT SOCIAL CARE,REDACTED PERSONAL DATA,426.00,MH LTS 18-64,SUPPORTED LIVING,REDACTED,REDACTED
08.12.2022,ADULT SOCIAL CARE,REDACTED PERSONAL DATA,497.00,MH LTS 18-64,SUPPORTED LIVING,REDACTED,REDACTED
08.12.2022,ADULT SOCIAL CARE,REDACTED PERSONAL DATA,497.00,MH LTS 18-64,SUPPORTED LIVING,REDACTED,REDACTED
08.12.2022,ADULT SOCIAL CARE,REDACTED PERSONAL DATA,497.00,MH LTS 18-64,SUPPORTED LIVING,REDACTED,REDACTED
08.12.2022,ADULT SOCIAL CARE,REDACTED PERSONAL DATA,532.50,MH LTS 18-64,SUPPORTED LIVING,REDACTED,REDACTED
08.12.2022,ADULT SOCIAL CARE,REDACTED PERSONAL DATA,568.00,MH LTS 18-64,SUPPORTED LIVING,REDACTED,REDACTED
08.12.2022,ADULT SOCIAL CARE,REDACTED PERSONAL DATA,639.00,MH LTS 18-64,SUPPORTED LIVING,REDACTED,REDACTED
08.12.2022,ADULT SOCIAL CARE,REDACTED PERSONAL DATA,639.00,MH LTS 18-64,SUPPORTED LIVING,REDACTED,REDACTED
08.12.2022,ADULT SOCIAL CARE,REDACTED PERSONAL DATA,639.00,MH LTS 18-64,SUPPORTED LIVING,REDACTED,REDACTED
08.12.2022,ADULT SOCIAL CARE,REDACTED PERSONAL DATA,"1,170.00",MH LTS 18-64,SUPPORTED LIVING,REDACTED,REDACTED
08.12.2022,ADULT SOCIAL CARE,MIHOMECARE LTD,530.78,MH LTS 65+,HOMECARE - C&V,2103595713,1000042594
08.12.2022,ADULT SOCIAL CARE,REDACTED PERSONAL DATA,408.25,MH LTS 65+,SUPPORTED LIVING,REDACTED,REDACTED
08.12.2022,ADULT SOCIAL CARE,PINEAPPLE CONTRACTS UNLIMITED,"1,086.00",ORIENT ST � RESPITE,FURNITURE PURCHASE & REPAIR,5902555861,11003086
08.12.2022,ADULT SOCIAL CARE,MIHOMECARE LTD,369.32,PHY LTS 18-64,HOMECARE - C&V,2103595647,1000042594
08.12.2022,ADULT SOCIAL CARE,MIHOMECARE LTD,595.45,PHY LTS 18-64,HOMECARE - C&V,2103595661,1000042594
08.12.2022,ADULT SOCIAL CARE,MIHOMECARE LTD,"1,273.92",PHY LTS 18-64,HOMECARE - C&V,2103595723,1000042594
08.12.2022,ADULT SOCIAL CARE,MIHOMECARE LTD,290.75,PHY LTS 65+,HOMECARE - C&V,2103595717,1000042594
08.12.2022,ADULT SOCIAL CARE,MIHOMECARE LTD,355.47,PHY LTS 65+,HOMECARE - C&V,2103595685,1000042594
08.12.2022,ADULT SOCIAL CARE,MIHOMECARE LTD,406.18,PHY LTS 65+,HOMECARE - C&V,2103595653,1000042594
08.12.2022,ADULT SOCIAL CARE,MIHOMECARE LTD,447.69,PHY LTS 65+,HOMECARE - C&V,2103595659,1000042594
08.12.2022,ADULT SOCIAL CARE,MIHOMECARE LTD,463.72,PHY LTS 65+,HOMECARE - C&V,2103595645,1000042594
08.12.2022,ADULT SOCIAL CARE,MIHOMECARE LTD,466.28,PHY LTS 65+,HOMECARE - C&V,2103595729,1000042594
08.12.2022,ADULT SOCIAL CARE,MIHOMECARE LTD,469.93,PHY LTS 65+,HOMECARE - C&V,2103595671,1000042594
08.12.2022,ADULT SOCIAL CARE,MIHOMECARE LTD,507.76,PHY LTS 65+,HOMECARE - C&V,2103595657,1000042594
08.12.2022,ADULT SOCIAL CARE,MIHOMECARE LTD,569.24,PHY LTS 65+,HOMECARE - C&V,2103595683,1000042594
08.12.2022,ADULT SOCIAL CARE,MIHOMECARE LTD,627.78,PHY LTS 65+,HOMECARE - C&V,2103595707,1000042594
08.12.2022,ADULT SOCIAL CARE,MIHOMECARE LTD,634.88,PHY LTS 65+,HOMECARE - C&V,2103595727,1000042594
08.12.2022,ADULT SOCIAL CARE,MIHOMECARE LTD,646.25,PHY LTS 65+,HOMECARE - C&V,2103595655,1000042594
08.12.2022,ADULT SOCIAL CARE,MIHOMECARE LTD,669.26,PHY LTS 65+,HOMECARE - C&V,2103595715,1000042594
08.12.2022,ADULT SOCIAL CARE,MIHOMECARE LTD,672.44,PHY LTS 65+,HOMECARE - C&V,2103595689,1000042594
08.12.2022,ADULT SOCIAL CARE,MIHOMECARE LTD,687.76,PHY LTS 65+,HOMECARE - C&V,2103595667,1000042594
08.12.2022,ADULT SOCIAL CARE,MIHOMECARE LTD,701.61,PHY LTS 65+,HOMECARE - C&V,2103595633,1000042594
08.12.2022,ADULT SOCIAL CARE,MIHOMECARE LTD,720.08,PHY LTS 65+,HOMECARE - C&V,2103595673,1000042594
08.12.2022,ADULT SOCIAL CARE,MIHOMECARE LTD,738.55,PHY LTS 65+,HOMECARE - C&V,2103595637,1000042594
08.12.2022,ADULT SOCIAL CARE,MIHOMECARE LTD,743.18,PHY LTS 65+,HOMECARE - C&V,2103595711,1000042594
08.12.2022,ADULT SOCIAL CARE,MIHOMECARE LTD,747.90,PHY LTS 65+,HOMECARE - C&V,2103595697,1000042594
08.12.2022,ADULT SOCIAL CARE,MIHOMECARE LTD,770.87,PHY LTS 65+,HOMECARE - C&V,2103595703,1000042594
08.12.2022,ADULT SOCIAL CARE,MIHOMECARE LTD,817.04,PHY LTS 65+,HOMECARE - C&V,2103595719,1000042594
08.12.2022,ADULT SOCIAL CARE,MIHOMECARE LTD,867.64,PHY LTS 65+,HOMECARE - C&V,2103595693,1000042594
08.12.2022,ADULT SOCIAL CARE,MIHOMECARE LTD,895.46,PHY LTS 65+,HOMECARE - C&V,2103595699,1000042594
08.12.2022,ADULT SOCIAL CARE,MIHOMECARE LTD,932.41,PHY LTS 65+,HOMECARE - C&V,2103595643,1000042594
08.12.2022,ADULT SOCIAL CARE,MIHOMECARE LTD,955.55,PHY LTS 65+,HOMECARE - C&V,2103595631,1000042594
08.12.2022,ADULT SOCIAL CARE,MIHOMECARE LTD,960.08,PHY LTS 65+,HOMECARE - C&V,2103595721,1000042594
08.12.2022,ADULT SOCIAL CARE,MIHOMECARE LTD,973.96,PHY LTS 65+,HOMECARE - C&V,2103595701,1000042594
08.12.2022,ADULT SOCIAL CARE,MIHOMECARE LTD,"1,140.17",PHY LTS 65+,HOMECARE - C&V,2103595681,1000042594
08.12.2022,ADULT SOCIAL CARE,MIHOMECARE LTD,"1,366.52",PHY LTS 65+,HOMECARE - C&V,2103595675,1000042594
08.12.2022,ADULT SOCIAL CARE,MIHOMECARE LTD,"1,398.61",PHY LTS 65+,HOMECARE - C&V,2103595649,1000042594
08.12.2022,ADULT SOCIAL CARE,MIHOMECARE LTD,"1,403.08",PHY LTS 65+,HOMECARE - C&V,2103595705,1000042594
08.12.2022,ADULT SOCIAL CARE,MIHOMECARE LTD,"1,753.99",PHY LTS 65+,HOMECARE - C&V,2103595679,1000042594
08.12.2022,ADULT SOCIAL CARE,MIHOMECARE LTD,"2,060.90",PHY LTS 65+,HOMECARE - C&V,2103595651,1000042594
08.12.2022,ADULT SOCIAL CARE,MIHOMECARE LTD,"2,201.77",PHY LTS 65+,HOMECARE - C&V,2103595677,1000042594
08.12.2022,ADULT SOCIAL CARE,MIHOMECARE LTD,"2,234.18",PHY LTS 65+,HOMECARE - C&V,2103595695,1000042594
08.12.2022,ADULT SOCIAL CARE,MIHOMECARE LTD,"2,280.09",PHY LTS 65+,HOMECARE - C&V,2103595691,1000042594
08.12.2022,ADULT SOCIAL CARE,MIHOMECARE LTD,"2,478.96",PHY LTS 65+,HOMECARE - C&V,2103595731,1000042594
08.12.2022,ADULT SOCIAL CARE,MIHOMECARE LTD,"4,245.56",PHY LTS 65+,HOMECARE - C&V,2103595687,1000042594
08.12.2022,ADULT SOCIAL CARE,TUNSTALL HEALTHCARE (UK) LTD,"1,149.20",TELECARE EQUIPMENT,EQUIPMENT PURCHASE & REPAIR,5902554986,1012297
08.12.2022,ASSET MANAGEMENT,FRANKLYN SHAW ASSOCIATES LTD,"3,561.26",DISREPAIR,BUILDING R&M,5902555823,1000068289
08.12.2022,ASSET MANAGEMENT,ASHFORDS LLP OFFICE ACCOUNT,363.00,DISREPAIR,BUILDING R&M,5902554803,1000082695
08.12.2022,ASSET MANAGEMENT,ASHFORDS LLP OFFICE ACCOUNT,398.50,DISREPAIR,BUILDING R&M,5902554806,1000082695
08.12.2022,ASSET MANAGEMENT,ASHFORDS LLP OFFICE ACCOUNT,425.00,DISREPAIR,BUILDING R&M,5902554807,1000082695
08.12.2022,ASSET MANAGEMENT,ASHFORDS LLP OFFICE ACCOUNT,600.00,DISREPAIR,BUILDING R&M,5902554801,1000082695
08.12.2022,ASSET MANAGEMENT,ASHFORDS LLP OFFICE ACCOUNT,744.00,DISREPAIR,BUILDING R&M,5902554780,1000082695
08.12.2022,ASSET MANAGEMENT,ASHFORDS LLP OFFICE ACCOUNT,780.80,DISREPAIR,BUILDING R&M,5902554777,1000082695
08.12.2022,ASSET MANAGEMENT,ARMINA LTD,871.31,DISREPAIR,BUILDING R&M,2103595904,3000002121
08.12.2022,ASSET MANAGEMENT,ARMINA LTD,"1,173.66",DISREPAIR,BUILDING R&M,2103593763,3000002121
08.12.2022,ASSET MANAGEMENT,ARMINA LTD,"1,237.69",DISREPAIR,BUILDING R&M,2103595909,3000002121
08.12.2022,ASSET MANAGEMENT,ARMINA LTD,"1,493.09",DISREPAIR,BUILDING R&M,2103595908,3000002121
08.12.2022,ASSET MANAGEMENT,ARMINA LTD,"2,002.29",DISREPAIR,BUILDING R&M,2103594588,3000002121
08.12.2022,ASSET MANAGEMENT,ALLIED REMEDIAL TREATMENTS LTD,"15,645.00",MAJOR REPAIRS,BUILDING R&M,2103595551,4000538
08.12.2022,ASSET MANAGEMENT HGF,ROYAL MAIL GROUP LTD,"1,439.76",160 TOOLEY ST.,POSTAGES,5902554457,1000061535
08.12.2022,ASSET MANAGEMENT HGF,OT GROUP LIMITED,827.01,160 TOOLEY ST.,STATIONERY,5902555847,1000087285
08.12.2022,ASSET MANAGEMENT HGF,KENT COUNTY COUNCIL - LASER,"1,873.07",BOURNEMOUTH GROVE,ELECTRICITY,5902554589,1000012926
08.12.2022,ASSET MANAGEMENT HGF,NPOWER LTD,"1,089.46",CURLEW HOUSE,ELECTRICITY,5902554483,1000078994
08.12.2022,ASSET MANAGEMENT HGF,NPOWER LTD,"1,205.76",CURLEW HOUSE,ELECTRICITY,5902554479,1000078994
08.12.2022,ASSET MANAGEMENT HGF,OT GROUP LIMITED,"1,112.41",QUEENS RD 1 (BLOCK F),STATIONERY,5902555843,1000087285
08.12.2022,ASSET MANAGEMENT HGF,KENT COUNTY COUNCIL - LASER,"3,986.19",QUEENS ROAD 2 (BLOCK J),ELECTRICITY,5902554774,1000012926
08.12.2022,ASSET MANAGEMENT HGF,MITIE FM LIMITED,"83,038.12",TSFM CONTINGENCY,INTEGRATED FACILITIES MANAGEMENT CONTRACT,5902555685,1000070792
08.12.2022,CENTRAL FUNCTIONS,1ST ACE SECURITY LTD,"19,857.60",LAKANAL (TENANCY),SECURITY SERVICES,5902555010,1000006992
08.12.2022,CENTRAL FUNCTIONS,NEC SOFTWARE SOLUTIONS UK LTD,850.00,OPERATIONAL TEAM,SOFTWARE,5902555856,1000087043
08.12.2022,CHIEF EXECUTIVE,LAMBERT SMITH HAMPTON GROUP LTD,750.00,CAPITAL PS (REGEN),CONSTRUCTION FEES  - EXTERNAL,5902555028,1000060045
08.12.2022,CHIEF EXECUTIVE,PEMBROKE COLLEGE SETTLEMENT,"50,000.00",CAPITAL PS (REGEN),CAPITAL GRANTS,5902555829,1000073444
08.12.2022,CHIEF EXECUTIVE,MARTIN ARNOLD LTD,"2,166.66",CAPITAL PS (REGEN),CONSTRUCTION FEES  - EXTERNAL,5902555831,1000076993
08.12.2022,CHIEF EXECUTIVE,MICA ARCHITECTS LTD,"2,412.50",CAPITAL PS (REGEN),CONSTRUCTION FEES - ARCHITECT,5902555319,1000087566
08.12.2022,CHIEF EXECUTIVE'S OFFICE,UNITY WORKS SOCIAL ENTERPRISES,"36,470.58",CHIEF EXECUTIVE'S OFFICE,EXTERNAL AGENCIES AND BODIES,5902554623,1000083486
08.12.2022,CHILDREN AND ADULT,CULLINAN STUDIO LTD,"87,492.01",CAPITAL PS (EDUCATION),CONSTRUCTION FEES - ARCHITECT,5902555828,1000087576
08.12.2022,CHILDREN AND FAMILIES,DOG KENNEL HILL ADVENTURE PLAYGROUND LTD,350.00,ADOPT LONDON SOUTH,EXTERNAL AGENCIES AND BODIES,5902555883,11134529
08.12.2022,CHILDREN AND FAMILIES,ISLINGTON COUNCIL,"7,280.00",ADOPT LONDON SOUTH,RECOUPMENT,5902555407,11204697
08.12.2022,CHILDREN AND FAMILIES,ZENITH CARS LTD,"1,320.00",AI TEAMS A-D,CLIENT TRANSPORT,5902555868,1000070570
08.12.2022,CHILDREN AND FAMILIES,MCRAE RESIDENTIAL CARE SERVICES LTD,"18,313.20",CHILDREN�S RESID,RESIDENTIAL CARE,2103595613,1000050558
08.12.2022,CHILDREN AND FAMILIES,AIDHOUR LIMITED,"3,087.50",DIRECTOR OF C&F,PROFESSIONAL FEES,5902555965,1000057345
08.12.2022,CHILDREN AND FAMILIES,GENAS CONSULTING LTD,"5,950.00",DIRECTOR OF C&F,PROFESSIONAL FEES,5902555795,1000089178
08.12.2022,CHILDREN AND FAMILIES,REDACTED PERSONAL DATA,300.00,FE SUPPORT,CLIENT TRANSPORT,REDACTED,REDACTED
08.12.2022,CHILDREN AND FAMILIES,REDACTED PERSONAL DATA,300.00,FE SUPPORT,CLIENT TRANSPORT,REDACTED,REDACTED
08.12.2022,CHILDREN AND FAMILIES,REDACTED PERSONAL DATA,-630.00,FOSTERING ALLOWANCES,PAYMENTS TO CARERS,REDACTED,REDACTED
08.12.2022,CHILDREN AND FAMILIES,REDACTED PERSONAL DATA,-628.57,FOSTERING ALLOWANCES,PAYMENTS TO CARERS,REDACTED,REDACTED
08.12.2022,CHILDREN AND FAMILIES,REDACTED PERSONAL DATA,"1,258.57",FOSTERING ALLOWANCES,PAYMENTS TO CARERS,REDACTED,REDACTED
08.12.2022,CHILDREN AND FAMILIES,BANYA FAMILY PLACEMENT AGENCY LTD,"2,299.00",FRIENDS & FAMILY FOSTERING,EXTERNAL AGENCIES AND BODIES,2103595605,11328315
08.12.2022,CHILDREN AND FAMILIES,BANYA FAMILY PLACEMENT AGENCY LTD,"3,422.78",FRIENDS & FAMILY FOSTERING,EXTERNAL AGENCIES AND BODIES,2103595607,11328315
08.12.2022,CHILDREN AND FAMILIES,BANYA FAMILY PLACEMENT AGENCY LTD,"3,448.50",FRIENDS & FAMILY FOSTERING,EXTERNAL AGENCIES AND BODIES,2103595592,11328315
08.12.2022,CHILDREN AND FAMILIES,BANYA FAMILY PLACEMENT AGENCY LTD,"3,612.94",FRIENDS & FAMILY FOSTERING,EXTERNAL AGENCIES AND BODIES,2103595601,11328315
08.12.2022,CHILDREN AND FAMILIES,BANYA FAMILY PLACEMENT AGENCY LTD,"3,750.00",FRIENDS & FAMILY FOSTERING,EXTERNAL AGENCIES AND BODIES,2103595595,11328315
08.12.2022,CHILDREN AND FAMILIES,BANYA FAMILY PLACEMENT AGENCY LTD,"4,335.42",FRIENDS & FAMILY FOSTERING,EXTERNAL AGENCIES AND BODIES,2103595603,11328315
08.12.2022,CHILDREN AND FAMILIES,SUNBEAM FOSTERING AGENCY LTD,"2,550.00",FRIENDS & FAMILY FOSTERING,EXTERNAL AGENCIES AND BODIES,2103595599,1000041457
08.12.2022,CHILDREN AND FAMILIES,FLOURISH FOSTERING LTD,"4,223.91",FRIENDS & FAMILY FOSTERING,EXTERNAL AGENCIES AND BODIES,2103595590,1000084796
08.12.2022,CHILDREN AND FAMILIES,FLOURISH FOSTERING LTD,"4,523.48",FRIENDS & FAMILY FOSTERING,EXTERNAL AGENCIES AND BODIES,2103595597,1000084796
08.12.2022,CHILDREN AND FAMILIES,KENT COUNTY COUNCIL - LASER,"1,110.25",MGMT & PARENTING,ELECTRICITY,5902555909,1000012926
08.12.2022,CHILDREN AND FAMILIES,CARE O LINE,"1,024.05",P & R CARE TEAM,OTHER PAYMENTS FOR CLIENTS,2103595609,11241743
08.12.2022,CHILDREN AND FAMILIES,ZENITH CARS LTD,450.00,P & R CARE TEAM,CLIENT TRANSPORT,5902555862,1000070570
08.12.2022,CHILDREN AND FAMILIES,ZENITH CARS LTD,960.00,P & R CARE TEAM,CLIENT TRANSPORT,5902555867,1000070570
08.12.2022,CHILDREN AND FAMILIES,ROWLAND PROPERTIES LIMITED,900.00,SEMI-IND CARELEAVERS,EXTERNAL AGENCIES AND BODIES,2103595586,1000086752
08.12.2022,CHILDREN AND FAMILIES,FAVOUR HEALTH LTD,"2,150.00",SEMI-IND LAC 16-17,EXTERNAL AGENCIES AND BODIES,2103595623,1000088976
08.12.2022,CHILDREN AND FAMILIES,PAVE CARE LTD,"5,814.29",SEMI-IND LAC 16-17,EXTERNAL AGENCIES AND BODIES,2103595617,1000089134
08.12.2022,CHILDREN AND FAMILIES,PAVE CARE LTD,359.99,SEMI-IND LAC 16-17,OTHER PAYMENTS FOR CLIENTS,2103595615,1000089134
08.12.2022,CHILDREN AND FAMILIES,QUALIFIED CARE RESIDENTIAL SERVICES,"1,428.57",SEMI-IND LAC 16-17,EXTERNAL AGENCIES AND BODIES,2103595629,1000089168
08.12.2022,CHILDREN AND FAMILIES,QUALIFIED CARE RESIDENTIAL SERVICES,"5,535.71",SEMI-IND LAC 16-17,EXTERNAL AGENCIES AND BODIES,2103595621,1000089168
08.12.2022,CHILDREN AND FAMILIES,QUALIFIED CARE RESIDENTIAL SERVICES,270.28,SEMI-IND LAC 16-17,OTHER PAYMENTS FOR CLIENTS,2103595619,1000089168
08.12.2022,CHILDREN AND FAMILIES,BANYA FAMILY PLACEMENT AGENCY LTD,"2,142.86",STAYPUT- FOST CARERS,EXTERNAL AGENCIES AND BODIES,2103595588,11328315
08.12.2022,CHILDREN AND FAMILIES,FLOURISH FOSTERING LTD,"4,422.60",STAYPUT- FOST CARERS,EXTERNAL AGENCIES AND BODIES,2103595584,1000084796
08.12.2022,CHILDREN AND FAMILIES,ZENITH CARS LTD,575.00,TEAM B,CLIENT TRANSPORT,5902555865,1000070570
08.12.2022,CHILDREN AND FAMILIES,ZENITH CARS LTD,"2,220.00",TEAM B,CLIENT TRANSPORT,5902555868,1000070570
08.12.2022,CHILDREN AND FAMILIES,AIDHOUR LIMITED,297.00,TEAM C,PROFESSIONAL FEES,5902555955,1000057345
08.12.2022,CHILDREN AND FAMILIES,AIDHOUR LIMITED,297.00,TEAM C,PROFESSIONAL FEES,5902555957,1000057345
08.12.2022,CHILDREN AND FAMILIES,AIDHOUR LIMITED,297.00,TEAM C,PROFESSIONAL FEES,5902555960,1000057345
08.12.2022,CHILDREN AND FAMILIES,ZENITH CARS LTD,"2,155.00",TEAM C,CLIENT TRANSPORT,5902555868,1000070570
08.12.2022,CHILDREN AND FAMILIES,ZENITH CARS LTD,"1,290.00",TEAM D,CLIENT TRANSPORT,5902555868,1000070570
08.12.2022,CHILDREN AND FAMILIES,REDACTED PERSONAL DATA,461.34,UASC CARELEAVERS,OTHER PAYMENTS FOR CLIENTS,REDACTED,REDACTED
08.12.2022,CHILDREN AND FAMILIES,ROADWORKS MEDIA,"4,150.00",YJS MGMT & SUPPORT,EXTERNAL AGENCIES AND BODIES,5902554659,1000081375
08.12.2022,COMMUNITIES,DANIEL PALMER,680.00,COMMUNITIES PROJECTS,PROFESSIONAL FEES,2103595797,1000088758
08.12.2022,COMMUNITIES,METROPOLITAN HOUSING TRUST LTD,"1,036.00",NO RECOURSE TO PUBLIC FUNDS,ACCOMMODATION CHARGES,5902555845,1000047547
08.12.2022,COMMUNITIES,LIVING ACCOMMODATION LTD,"1,320.00",NO RECOURSE TO PUBLIC FUNDS,ACCOMMODATION CHARGES,5902555866,1000063985
08.12.2022,COMMUNITIES,LIVING ACCOMMODATION LTD,"1,705.00",NO RECOURSE TO PUBLIC FUNDS,ACCOMMODATION CHARGES,5902555864,1000063985
08.12.2022,COMMUNITIES,SK HOUSING LTD,272.00,NO RECOURSE TO PUBLIC FUNDS,ACCOMMODATION CHARGES,5902555835,1000070716
08.12.2022,COMMUNITIES,SK HOUSING LTD,"1,168.00",NO RECOURSE TO PUBLIC FUNDS,ACCOMMODATION CHARGES,5902555835,1000070716
08.12.2022,COMMUNITIES,STENFORD PROPERTY LTD,"3,579.00",NO RECOURSE TO PUBLIC FUNDS,ACCOMMODATION CHARGES,5902555853,1000074759
08.12.2022,COMMUNITIES,REDACTED PERSONAL DATA,350.00,UKRAINIAN PROGRAMME,GRANTS,REDACTED,REDACTED
08.12.2022,COMMUNITIES,REDACTED PERSONAL DATA,350.00,UKRAINIAN PROGRAMME,GRANTS,REDACTED,REDACTED
08.12.2022,COMMUNITIES,SITTARA LTD,867.00,UKRAINIAN REFUGEES,ACCOMMODATION CHARGES,5902555891,1000080857
08.12.2022,COMMUNITIES HRA,STYLES HOUSE TMO,"78,226.02",STYLES HOUSE TMO,M&M ALLOWANCE CO-OPS,5902556017,1000072012
08.12.2022,CUSTOMER EXPERIENCE,KENT COUNTY COUNCIL - LASER,"4,186.86",CUSTOMER SUPPORT,ELECTRICITY,5902554642,1000012926
08.12.2022,CUSTOMER EXPERIENCE HGF,VALTECH LTD,293.88,BLUE BADGES,MATERIALS,5902554862,1000082245
08.12.2022,CUSTOMER EXPERIENCE HGF,PROFESSOR  S AL-SARRAJ,"2,600.00",CORONER'S,PROFESSIONAL FEES,5902555804,1000043051
08.12.2022,CUSTOMER EXPERIENCE HGF,GUYS & ST THOMAS NHS FOUNDATION TRUST,"9,577.00",CORONER'S,OTHER CONTRACTORS,5902555810,1765536
08.12.2022,CUSTOMER EXPERIENCE HGF,CHUBB FIRE & SECURITY LTD,"1,701.70",CORONER'S,OP LEASE/HIRE CHARGES:PLANT/EQUIP/FURNIT,5902556005,11166155
08.12.2022,CUSTOMER EXPERIENCE HGF,SG PATH LTD,595.90,CORONER'S,PROFESSIONAL FEES,5902556015,1000077883
08.12.2022,CUSTOMER EXPERIENCE HGF,SG PATH LTD,595.90,CORONER'S,PROFESSIONAL FEES,5902556019,1000077883
08.12.2022,DSG,BACONS COLLEGE,"7,110.00",HOLIDAY SCHL MEAL VOUCHERS,SCHOOLS CAPITATION,2103595811,1693125
08.12.2022,DSG,THE ACADEMY @ PECKHAM,"3,930.00",HOLIDAY SCHL MEAL VOUCHERS,SCHOOLS CAPITATION,2103595837,1000041433
08.12.2022,DSG,CITY OF LONDON ACADEMY,"9,435.00",HOLIDAY SCHL MEAL VOUCHERS,SCHOOLS CAPITATION,2103595819,1000049128
08.12.2022,DSG,HARRIS ACADEMY BERMONDSEY,"5,460.00",HOLIDAY SCHL MEAL VOUCHERS,SCHOOLS CAPITATION,2103595836,1000052842
08.12.2022,DSG,ARK SCHOOLS T/A GLOBE ACADEMY,"11,175.00",HOLIDAY SCHL MEAL VOUCHERS,SCHOOLS CAPITATION,2103595809,1000060008
08.12.2022,DSG,WALWORTH ACADEMY,"8,115.00",HOLIDAY SCHL MEAL VOUCHERS,SCHOOLS CAPITATION,2103595810,1000062868
08.12.2022,DSG,THE CHARTER SCHOOLS EDUCATIONAL TRUST,"1,140.00",HOLIDAY SCHL MEAL VOUCHERS,SCHOOLS CAPITATION,2103595825,1000066949
08.12.2022,DSG,GOOSE GREEN PRIMARY AND NURSERY SCHOOL,"4,260.00",HOLIDAY SCHL MEAL VOUCHERS,SCHOOLS CAPITATION,2103595832,1000070613
08.12.2022,DSG,ST MICHAELS CATHOLIC COLLEGE,"3,645.00",HOLIDAY SCHL MEAL VOUCHERS,SCHOOLS CAPITATION,2103595889,1000071000
08.12.2022,DSG,NEWLANDS ACADEMY,645.00,HOLIDAY SCHL MEAL VOUCHERS,SCHOOLS CAPITATION,2103595857,1000072567
08.12.2022,DSG,ANGEL OAK ACADEMY,"3,000.00",HOLIDAY SCHL MEAL VOUCHERS,SCHOOLS CAPITATION,2103595807,1000075379
08.12.2022,DSG,COMPASS SCHOOLS TRUST,"3,270.00",HOLIDAY SCHL MEAL VOUCHERS,SCHOOLS CAPITATION,2103595821,1000076195
08.12.2022,DSG,HARRIS BOYS ACADEMY EAST DULWICH,"4,140.00",HOLIDAY SCHL MEAL VOUCHERS,SCHOOLS CAPITATION,2103595838,1000079700
08.12.2022,DSG,SPA EDUCATION TRUST,750.00,HOLIDAY SCHL MEAL VOUCHERS,SCHOOLS CAPITATION,2103595873,1000081600
08.12.2022,DSG,SPA EDUCATION TRUST,990.00,HOLIDAY SCHL MEAL VOUCHERS,SCHOOLS CAPITATION,2103595872,1000081600
08.12.2022,DSG,HABERDASHERS' ASKE'S BOROUGH ACADEMY,"3,945.00",HOLIDAY SCHL MEAL VOUCHERS,SCHOOLS CAPITATION,2103595835,1000083830
08.12.2022,DSG,NELL GWYNN NURSERY SCHOOL,525.00,HOLIDAY SCHL MEAL VOUCHERS,SCHOOLS CAPITATION,2103595856,5001000049
08.12.2022,DSG,ANN BERNADT NURSERY SCHOOL,480.00,HOLIDAY SCHL MEAL VOUCHERS,SCHOOLS CAPITATION,2103595808,5001000085
08.12.2022,DSG,THE GROVE CHILDRENS CENTRE,495.00,HOLIDAY SCHL MEAL VOUCHERS,SCHOOLS CAPITATION,2103595834,5001000090
08.12.2022,DSG,SOUTHWARK INCLUSIVE LEARNING SERVICE,255.00,HOLIDAY SCHL MEAL VOUCHERS,SCHOOLS CAPITATION,2103595869,5001000105
08.12.2022,DSG,THE CHARTER SCHOOL EDUCATIONAL TRUST,"19,290.00",HOLIDAY SCHL MEAL VOUCHERS,SCHOOLS CAPITATION,2103595897,1000064975
08.12.2022,DSG,KINGSDALE FOUNDATION SCHOOL,"4,545.00",HOLIDAY SCHL MEAL VOUCHERS,SCHOOLS CAPITATION,2103595852,1000065405
08.12.2022,DSG,REDRIFF PRIMARY SCHOOL,"1,710.00",HOLIDAY SCHL MEAL VOUCHERS,SCHOOLS CAPITATION,2103595863,1000067877
08.12.2022,DSG,HARRIS PRIMARY ACADEMY PECKHAM PARK,"1,575.00",HOLIDAY SCHL MEAL VOUCHERS,SCHOOLS CAPITATION,2103595840,1000068029
08.12.2022,DSG,HARRIS PRIMARY FREE SCHOOL PECKHAM,"1,785.00",HOLIDAY SCHL MEAL VOUCHERS,SCHOOLS CAPITATION,2103595841,1000071084
08.12.2022,DSG,SACRED HEART CATHOLIC SCHOOL,"4,035.00",HOLIDAY SCHL MEAL VOUCHERS,SCHOOLS CAPITATION,2103595868,1000071091
08.12.2022,DSG,JOHN DONNE PRIMARY SCHOOL,"2,940.00",HOLIDAY SCHL MEAL VOUCHERS,SCHOOLS CAPITATION,2103595848,1000073253
08.12.2022,DSG,GALLEYWALL PRIMARY SCHOOL,"2,355.00",HOLIDAY SCHL MEAL VOUCHERS,SCHOOLS CAPITATION,2103595830,1000078128
08.12.2022,DSG,THE BELHAM PRIMARY SCHOOL,"1,590.00",HOLIDAY SCHL MEAL VOUCHERS,SCHOOLS CAPITATION,2103595895,1000080044
08.12.2022,DSG,ST PAULS C OF E PRIMARY SCHOOL,"1,170.00",HOLIDAY SCHL MEAL VOUCHERS,SCHOOLS CAPITATION,2103595890,1000082314
08.12.2022,DSG,JOHN KEATS PRIMARY SCHOOL,"1,875.00",HOLIDAY SCHL MEAL VOUCHERS,SCHOOLS CAPITATION,2103595849,1000082645
08.12.2022,DSG,SURREY SQUARE PRIMARY SCHOOL,"3,645.00",HOLIDAY SCHL MEAL VOUCHERS,SCHOOLS CAPITATION,2103595894,1000082648
08.12.2022,DSG,CHARTER SCHOOLS EDUCATIONAL TRUST T/A LYNDHURST PRIMARY SCHOOL,"2,550.00",HOLIDAY SCHL MEAL VOUCHERS,SCHOOLS CAPITATION,2103595854,1000086766
08.12.2022,DSG,ALBION PRIMARY SCHOOL,"2,310.00",HOLIDAY SCHL MEAL VOUCHERS,SCHOOLS CAPITATION,2103595805,5001000000
08.12.2022,DSG,ALFRED SALTER PRIMARY SCHOOL,"1,680.00",HOLIDAY SCHL MEAL VOUCHERS,SCHOOLS CAPITATION,2103595806,5001000005
08.12.2022,DSG,BELLENDEN PRIMARY SCHOOL,"1,275.00",HOLIDAY SCHL MEAL VOUCHERS,SCHOOLS CAPITATION,2103595812,5001000007
08.12.2022,DSG,BEORMUND PRIMARY SCHOOL,285.00,HOLIDAY SCHL MEAL VOUCHERS,SCHOOLS CAPITATION,2103595813,5001000008
08.12.2022,DSG,BESSEMER GRANGE PRIMARY SCHOOL,"1,530.00",HOLIDAY SCHL MEAL VOUCHERS,SCHOOLS CAPITATION,2103595814,5001000009
08.12.2022,DSG,BOUCHER C OF E PRIMARY SCHOOL,"1,050.00",HOLIDAY SCHL MEAL VOUCHERS,SCHOOLS CAPITATION,2103595815,5001000011
08.12.2022,DSG,BRUNSWICK PARK PRIMARY SCHOOL,"2,805.00",HOLIDAY SCHL MEAL VOUCHERS,SCHOOLS CAPITATION,2103595816,5001000013
08.12.2022,DSG,CAMELOT PRIMARY SCHOOL,"3,105.00",HOLIDAY SCHL MEAL VOUCHERS,SCHOOLS CAPITATION,2103595817,5001000014
08.12.2022,DSG,ST JOSEPHS RC JUNIOR  SCHOOL,"1,245.00",HOLIDAY SCHL MEAL VOUCHERS,SCHOOLS CAPITATION,2103595883,5001000017
08.12.2022,DSG,ST JOSEPHS CATHOLIC INFANTS SCHOOL,630.00,HOLIDAY SCHL MEAL VOUCHERS,SCHOOLS CAPITATION,2103595882,5001000018
08.12.2022,DSG,ST JUDES CHURCH OF ENGLAND PRIMARY,540.00,HOLIDAY SCHL MEAL VOUCHERS,SCHOOLS CAPITATION,2103595887,5001000019
08.12.2022,DSG,CHERRY GARDEN SCHOOL,555.00,HOLIDAY SCHL MEAL VOUCHERS,SCHOOLS CAPITATION,2103595818,5001000020
08.12.2022,DSG,COBOURG PRIMARY SCHOOL,"1,185.00",HOLIDAY SCHL MEAL VOUCHERS,SCHOOLS CAPITATION,2103595820,5001000021
08.12.2022,DSG,CRAMPTON PRIMARY SCHOOL,900.00,HOLIDAY SCHL MEAL VOUCHERS,SCHOOLS CAPITATION,2103595822,5001000023
08.12.2022,DSG,CRAWFORD PRIMARY SCHOOL,"2,700.00",HOLIDAY SCHL MEAL VOUCHERS,SCHOOLS CAPITATION,2103595823,5001000024
08.12.2022,DSG,DOG KENNEL HILL PRIMARY SCHOOL,"1,275.00",HOLIDAY SCHL MEAL VOUCHERS,SCHOOLS CAPITATION,2103595824,5001000025
08.12.2022,DSG,DULWICH VILLAGE CE INFANTS SCHOOL,510.00,HOLIDAY SCHL MEAL VOUCHERS,SCHOOLS CAPITATION,2103595826,5001000027
08.12.2022,DSG,GOODRICH PRIMARY SCHOOL,"1,785.00",HOLIDAY SCHL MEAL VOUCHERS,SCHOOLS CAPITATION,2103595831,5001000028
08.12.2022,DSG,GRANGE PRIMARY SCHOOL,"2,505.00",HOLIDAY SCHL MEAL VOUCHERS,SCHOOLS CAPITATION,2103595833,5001000029
08.12.2022,DSG,ENGLISH MARTYRS RC PRIMARY SCHOOL,"1,575.00",HOLIDAY SCHL MEAL VOUCHERS,SCHOOLS CAPITATION,2103595828,5001000030
08.12.2022,DSG,PHOENIX PRIMARY SCHOOL,"2,985.00",HOLIDAY SCHL MEAL VOUCHERS,SCHOOLS CAPITATION,2103595861,5001000032
08.12.2022,DSG,FRIARS PRIMARY (FOUNDATION) SCHOOL,"1,110.00",HOLIDAY SCHL MEAL VOUCHERS,SCHOOLS CAPITATION,2103595829,5001000033
08.12.2022,DSG,HEBER PRIMARY SCHOOL,945.00,HOLIDAY SCHL MEAL VOUCHERS,SCHOOLS CAPITATION,2103595843,5001000035
08.12.2022,DSG,HOLLYDALE PRIMARY SCHOOL,990.00,HOLIDAY SCHL MEAL VOUCHERS,SCHOOLS CAPITATION,2103595845,5001000036
08.12.2022,DSG,ILDERTON PRIMARY SCHOOL,"1,380.00",HOLIDAY SCHL MEAL VOUCHERS,SCHOOLS CAPITATION,2103595846,5001000037
08.12.2022,DSG,IVYDALE PRIMARY SCHOOL,"1,260.00",HOLIDAY SCHL MEAL VOUCHERS,SCHOOLS CAPITATION,2103595847,5001000038
08.12.2022,DSG,JOHN RUSKIN PRIMARY SCHOOL,"3,255.00",HOLIDAY SCHL MEAL VOUCHERS,SCHOOLS CAPITATION,2103595850,5001000040
08.12.2022,DSG,KEYWORTH PRIMARY SCHOOL,"2,565.00",HOLIDAY SCHL MEAL VOUCHERS,SCHOOLS CAPITATION,2103595851,5001000041
08.12.2022,DSG,DULWICH WOOD PRIMARY SCHOOL,"1,515.00",HOLIDAY SCHL MEAL VOUCHERS,SCHOOLS CAPITATION,2103595827,5001000042
08.12.2022,DSG,HAYMERLE SCHOOL,555.00,HOLIDAY SCHL MEAL VOUCHERS,SCHOOLS CAPITATION,2103595842,5001000045
08.12.2022,DSG,HIGHSHORE SCHOOL,"1,395.00",HOLIDAY SCHL MEAL VOUCHERS,SCHOOLS CAPITATION,2103595844,5001000046
08.12.2022,DSG,KINTORE WAY CHILDRENS CENTRE,"1,500.00",HOLIDAY SCHL MEAL VOUCHERS,SCHOOLS CAPITATION,2103595853,5001000047
08.12.2022,DSG,MICHAEL FARADAY PRIMARY SCHOOL,"2,190.00",HOLIDAY SCHL MEAL VOUCHERS,SCHOOLS CAPITATION,2103595855,5001000048
08.12.2022,DSG,NOTRE DAME RC GIRLS SCHOOL,"2,670.00",HOLIDAY SCHL MEAL VOUCHERS,SCHOOLS CAPITATION,2103595858,5001000050
08.12.2022,DSG,OLIVER GOLDSMITH PRIMARY SCHOOL,"2,085.00",HOLIDAY SCHL MEAL VOUCHERS,SCHOOLS CAPITATION,2103595859,5001000051
08.12.2022,DSG,PETER HILLS CE SCHOOL,"1,410.00",HOLIDAY SCHL MEAL VOUCHERS,SCHOOLS CAPITATION,2103595860,5001000053
08.12.2022,DSG,PILGRIM'S WAY PRIMARY SCHOOL,"1,545.00",HOLIDAY SCHL MEAL VOUCHERS,SCHOOLS CAPITATION,2103595862,5001000054
08.12.2022,DSG,RIVERSIDE PRIMARY SCHOOL,"1,710.00",HOLIDAY SCHL MEAL VOUCHERS,SCHOOLS CAPITATION,2103595864,5001000056
08.12.2022,DSG,ROBERT BROWNING PRIMARY SCHOOL,"1,215.00",HOLIDAY SCHL MEAL VOUCHERS,SCHOOLS CAPITATION,2103595865,5001000057
08.12.2022,DSG,ROTHERHITHE PRIMARY SCHOOL,"2,085.00",HOLIDAY SCHL MEAL VOUCHERS,SCHOOLS CAPITATION,2103595866,5001000058
08.12.2022,DSG,RYE OAK PRIMARY SCHOOL,"2,265.00",HOLIDAY SCHL MEAL VOUCHERS,SCHOOLS CAPITATION,2103595867,5001000059
08.12.2022,DSG,SNOWSFIELDS PRIMARY SCHOOL,"1,200.00",HOLIDAY SCHL MEAL VOUCHERS,SCHOOLS CAPITATION,2103595870,5001000061
08.12.2022,DSG,SOUTHWARK PARK PRIMARY SCHOOL,"2,610.00",HOLIDAY SCHL MEAL VOUCHERS,SCHOOLS CAPITATION,2103595871,5001000062
08.12.2022,DSG,ST ANTHONYS RC SCHOOL,"1,485.00",HOLIDAY SCHL MEAL VOUCHERS,SCHOOLS CAPITATION,2103595874,5001000064
08.12.2022,DSG,ST FRANCESCA CABRINI PRIMARY SCHOOL,480.00,HOLIDAY SCHL MEAL VOUCHERS,SCHOOLS CAPITATION,2103595875,5001000065
08.12.2022,DSG,ST FRANCIS'S RC PRIMARY SCHOOL,"1,590.00",HOLIDAY SCHL MEAL VOUCHERS,SCHOOLS CAPITATION,2103595876,5001000067
08.12.2022,DSG,ST GEORGES CE SCHOOL,"1,395.00",HOLIDAY SCHL MEAL VOUCHERS,SCHOOLS CAPITATION,2103595877,5001000069
08.12.2022,DSG,ST JAMES CE PRIMARY SCHOOL,"4,095.00",HOLIDAY SCHL MEAL VOUCHERS,SCHOOLS CAPITATION,2103595878,5001000070
08.12.2022,DSG,ST JAMES THE GREAT RC SCHOOL,"1,230.00",HOLIDAY SCHL MEAL VOUCHERS,SCHOOLS CAPITATION,2103595879,5001000071
08.12.2022,DSG,ST JOHNS & ST CLEMENTS CE SCHOOL,"1,140.00",HOLIDAY SCHL MEAL VOUCHERS,SCHOOLS CAPITATION,2103595880,5001000073
08.12.2022,DSG,THE ST THOMAS THE APOSTLE COLLEGE,"5,460.00",HOLIDAY SCHL MEAL VOUCHERS,SCHOOLS CAPITATION,2103595893,5001000074
08.12.2022,DSG,ST JOHNS RC PRIMARY SCHOOL,"1,050.00",HOLIDAY SCHL MEAL VOUCHERS,SCHOOLS CAPITATION,2103595881,5001000075
08.12.2022,DSG,ST JOSEPHS CATHOLIC SCHOOL,"1,095.00",HOLIDAY SCHL MEAL VOUCHERS,SCHOOLS CAPITATION,2103595885,5001000076
08.12.2022,DSG,ST JOSEPHS RC PRIMARY SCHOOL,"1,305.00",HOLIDAY SCHL MEAL VOUCHERS,SCHOOLS CAPITATION,2103595886,5001000077
